Transaction Number,Service - Fund ,Service  - Function ,Service - Cost Centre,Expense Type ,Expense Description,Supplier Name,Supplier Post Code (first 4 digits),Payment Date,Amount �
68159234,Physical Support,Adults,Physical Support 18 - 64,3rd Party Payments,Personal Budget - Domiciliary care,247 HOME CARE LTD,SN5 ,10/02/2023,"1,252.54"
66535233,Physical Support,Adults,Physical Support 65 and over,3rd Party Payments,Personal Budget - Domiciliary care,247 HOME CARE LTD,SN5 ,03/02/2023,-162.87
66533233,Physical Support,Adults,Physical Support 18 - 64,3rd Party Payments,Carers,247 HOME CARE LTD,SN5 ,03/02/2023,151.44
69673233,Physical Support,Adults,Physical Support 18 - 64,3rd Party Payments,Personal Budget - Domiciliary care,247 HOME CARE LTD,SN5 ,17/02/2023,-3.8
71198233,Physical Support,Adults,Physical Support 65 and over,3rd Party Payments,Personal Budget - Domiciliary care,247 HOME CARE LTD,SN5 ,24/02/2023,-162.87
68159236,Physical Support,Adults,Physical Support 65 and over,3rd Party Payments,Personal Budget - Domiciliary care,247 HOME CARE LTD,SN5 ,10/02/2023,-162.87
68159235,Physical Support,Adults,Physical Support 65 and over,3rd Party Payments,Personal Budget - Domiciliary care,247 HOME CARE LTD,SN5 ,10/02/2023,"1,099.98"
69673233,Physical Support,Adults,Physical Support 18 - 64,3rd Party Payments,Personal Budget - Domiciliary care,247 HOME CARE LTD,SN5 ,17/02/2023,"1,140.18"
66533233,Physical Support,Adults,Physical Support 18 - 64,3rd Party Payments,Personal Budget - Domiciliary care,247 HOME CARE LTD,SN5 ,03/02/2023,"1,140.18"
71197233,Physical Support,Adults,Physical Support 65 and over,3rd Party Payments,Personal Budget - Domiciliary care,247 HOME CARE LTD,SN5 ,24/02/2023,"1,099.98"
66534233,Physical Support,Adults,Physical Support 65 and over,3rd Party Payments,Personal Budget - Domiciliary care,247 HOME CARE LTD,SN5 ,03/02/2023,"1,099.98"
68159236,Physical Support,Adults,Physical Support 65 and over,3rd Party Payments,Personal Budget - Domiciliary care,247 HOME CARE LTD,SN5 ,10/02/2023,894.23
71196233,Physical Support,Adults,Physical Support 18 - 64,3rd Party Payments,Carers,247 HOME CARE LTD,SN5 ,24/02/2023,111.82
68159234,Physical Support,Adults,Physical Support 18 - 64,3rd Party Payments,Personal Budget - Domiciliary care,247 HOME CARE LTD,SN5 ,10/02/2023,-4.34
66533233,Physical Support,Adults,Physical Support 18 - 64,3rd Party Payments,Personal Budget - Domiciliary care,247 HOME CARE LTD,SN5 ,03/02/2023,-3.8
66535233,Physical Support,Adults,Physical Support 65 and over,3rd Party Payments,Personal Budget - Domiciliary care,247 HOME CARE LTD,SN5 ,03/02/2023,894.23
71196233,Physical Support,Adults,Physical Support 18 - 64,3rd Party Payments,Personal Budget - Domiciliary care,247 HOME CARE LTD,SN5 ,24/02/2023,"1,140.18"
71196233,Physical Support,Adults,Physical Support 18 - 64,3rd Party Payments,Personal Budget - Domiciliary care,247 HOME CARE LTD,SN5 ,24/02/2023,-3.8
71198233,Physical Support,Adults,Physical Support 65 and over,3rd Party Payments,Personal Budget - Domiciliary care,247 HOME CARE LTD,SN5 ,24/02/2023,894.23
69675233,Physical Support,Adults,Physical Support 65 and over,3rd Party Payments,Personal Budget - Domiciliary care,247 HOME CARE LTD,SN5 ,17/02/2023,-162.87
69674233,Physical Support,Adults,Physical Support 65 and over,3rd Party Payments,Personal Budget - Domiciliary care,247 HOME CARE LTD,SN5 ,17/02/2023,"1,099.98"
69675233,Physical Support,Adults,Physical Support 65 and over,3rd Party Payments,Personal Budget - Domiciliary care,247 HOME CARE LTD,SN5 ,17/02/2023,894.23
70550233,School Transport,"Education, Inclusion and Skills",Mainstream School Transport,Transport Costs,Home to School Transport,4K TRAVEL LTD,SN2 ,20/02/2023,"5,392.20"
69953233,School Transport,"Education, Inclusion and Skills",Special Educational Needs Transport,Transport Costs,Home to School Transport,4K TRAVEL LTD,SN2 ,15/02/2023,"2,362.50"
71892233,Property Service Charged Properties,Property,Service Charged - Carriageworks,Premises Costs,Waste,707 LTD T/A CLICK WASTE,NG24,24/02/2023,"1,616.62"
71898233,Property Service Charged Properties,Property,Service Charged - Carriageworks,Premises Costs,Waste,707 LTD T/A CLICK WASTE,NG24,24/02/2023,"1,476.28"
71889233,Property Service Charged Properties,Property,Service Charged - Carriageworks,Premises Costs,Waste,707 LTD T/A CLICK WASTE,NG24,24/02/2023,"1,173.26"
71891233,Property Service Charged Properties,Property,Service Charged - Carriageworks,Premises Costs,Waste,707 LTD T/A CLICK WASTE,NG24,24/02/2023,"2,887.40"
70623233,Human Resources and Organisational Development,"People, Culture and Organisational Resilience",Organisational Development,Employees,Training,A PLUS SAFETY & TRAINING SERVICES LTD,SN3 ,20/02/2023,549
67768233,Human Resources and Organisational Development,"People, Culture and Organisational Resilience",Organisational Development,Employees,Training,A PLUS SAFETY & TRAINING SERVICES LTD,SN3 ,06/02/2023,589
71276233,Homelessness and Travellers,Housing Services,Leased Private Managed Accommodation,Transfer Payments,Payment of Costs,REDACTED PERSONAL DATA,SN3 ,22/02/2023,800
67053233,Planned Maintenance Programme,HRA Capital Financing,Electrics,Capital,Contractor Payments,ABBEY ELECTRICAL (SWINDON) LTD T/A ABBEY ELECTRICAL UK,SN6 ,03/02/2023,"1,410.77"
67052233,Planned Maintenance Programme,HRA Capital Financing,Electrics,Capital,Contractor Payments,ABBEY ELECTRICAL (SWINDON) LTD T/A ABBEY ELECTRICAL UK,SN6 ,03/02/2023,"1,611.01"
68706233,Other Repairs,Repairs,Cyclical Maintenance,Supplies and Services,Testing / Inspection,ABBEY ELECTRICAL (SWINDON) LTD T/A ABBEY ELECTRICAL UK,SN6 ,15/02/2023,529.9
70148233,Responsive Repairs,Repairs,Responsive Repairs,3rd Party Payments,Contract Payments,ABBEY ELECTRICAL (SWINDON) LTD T/A ABBEY ELECTRICAL UK,SN6 ,17/02/2023,521.52
68709233,Other Repairs,Repairs,Cyclical Maintenance,Supplies and Services,Testing / Inspection,ABBEY ELECTRICAL (SWINDON) LTD T/A ABBEY ELECTRICAL UK,SN6 ,15/02/2023,799.75
71905234,Responsive Repairs,Repairs,Responsive Repairs,3rd Party Payments,Contract Payments,ABBEY ELECTRICAL (SWINDON) LTD T/A ABBEY ELECTRICAL UK,SN6 ,24/02/2023,420.72
68800233,Early Years Block,DSG Skills and Attainment,Free Nursery Education Commissioning - three & four  year olds,3rd Party Payments,Contracts - Child Care,ABBEY FARM EDUCATE TOGETHER PRIMARY,SN25,15/02/2023,"8,412.53"
68803233,Early Years Block,DSG Skills and Attainment,Free Nursery Education Commissioning - three & four  year olds,3rd Party Payments,Contracts - Child Care,ABBEY MEADS COMMUNITY PRIMARY SCHOOL,SN25,15/02/2023,"9,222.49"
69030281,High Needs Block,DSG Skills and Attainment,SEN Resourcing Assessment Panel,3rd Party Payments,Top up funding - Academies and Free Schools Pre 16,ABBEY MEADS COMMUNITY PRIMARY SCHOOL,SN25,13/02/2023,"6,215.42"
66385233,Physical Support,Adults,Physical Support 18 - 64,3rd Party Payments,Personal Budget - Domiciliary care,ABICARE SERVICES LTD,BS32,01/02/2023,632.3
68345233,Physical Support,Adults,Physical Support 18 - 64,3rd Party Payments,Personal Budget - Domiciliary care,ABICARE SERVICES LTD,BS32,08/02/2023,571.78
66845251,Physical Support,Adults,Physical Support 18 - 64,3rd Party Payments,Personal Budget - Domiciliary care,ABICARE SERVICES LTD,BS32,01/02/2023,571.78
71584260,Physical Support,Adults,Physical Support 18 - 64,3rd Party Payments,Personal Budget - Domiciliary care,ABICARE SERVICES LTD,BS32,22/02/2023,571.78
70124233,Physical Support,Adults,Physical Support 18 - 64,3rd Party Payments,Personal Budget - Domiciliary care,ABICARE SERVICES LTD,BS32,17/02/2023,571.78
66845256,Mental Health,Adults,Mental Health 65 and over,3rd Party Payments,Personal Budget - Domiciliary care,ABICARE SERVICES LTD (LIVE IN),SP2 ,01/02/2023,988.68
71584265,Mental Health,Adults,Mental Health 65 and over,3rd Party Payments,Personal Budget - Domiciliary care,ABICARE SERVICES LTD (LIVE IN),SP2 ,22/02/2023,"1,106.00"
68360233,Mental Health,Adults,Mental Health 65 and over,3rd Party Payments,Personal Budget - Domiciliary care,ABICARE SERVICES LTD (LIVE IN),SP2 ,08/02/2023,"1,106.00"
70129233,Mental Health,Adults,Mental Health 65 and over,3rd Party Payments,Personal Budget - Domiciliary care,ABICARE SERVICES LTD (LIVE IN),SP2 ,17/02/2023,"1,106.00"
69276233,Mental Health,Adults,Mental Health 65 and over,3rd Party Payments,Personal Budget - Domiciliary care,ABICARE SERVICES LTD (LIVE IN),SP2 ,13/02/2023,988.68
69275233,Mental Health,Adults,Mental Health 65 and over,3rd Party Payments,Personal Budget - Domiciliary care,ABICARE SERVICES LTD (LIVE IN),SP2 ,13/02/2023,"1,106.00"
71584264,Mental Health,Adults,Mental Health 65 and over,3rd Party Payments,Personal Budget - Domiciliary care,ABICARE SERVICES LTD (LIVE IN),SP2 ,22/02/2023,"1,106.00"
70126233,Mental Health,Adults,Mental Health 65 and over,3rd Party Payments,Personal Budget - Domiciliary care,ABICARE SERVICES LTD (LIVE IN),SP2 ,17/02/2023,"1,106.00"
70128233,Physical Support,Adults,Physical Support 18 - 64,3rd Party Payments,Personal Budget - Domiciliary care,ABICARE SERVICES LTD (LIVE IN),SP2 ,17/02/2023,"1,106.00"
66845254,Physical Support,Adults,Physical Support 18 - 64,3rd Party Payments,Personal Budget - Domiciliary care,ABICARE SERVICES LTD (LIVE IN),SP2 ,01/02/2023,988.68
68361233,Physical Support,Adults,Physical Support 18 - 64,3rd Party Payments,Personal Budget - Domiciliary care,ABICARE SERVICES LTD (LIVE IN),SP2 ,08/02/2023,"1,200.00"
66845255,Mental Health,Adults,Mental Health 65 and over,3rd Party Payments,Personal Budget - Domiciliary care,ABICARE SERVICES LTD (LIVE IN),SP2 ,01/02/2023,"1,106.00"
71584262,Physical Support,Adults,Physical Support 18 - 64,3rd Party Payments,Personal Budget - Domiciliary care,ABICARE SERVICES LTD (LIVE IN),SP2 ,22/02/2023,"1,200.00"
68358233,Physical Support,Adults,Physical Support 18 - 64,3rd Party Payments,Personal Budget - Domiciliary care,ABICARE SERVICES LTD (LIVE IN),SP2 ,08/02/2023,"1,106.00"
69273233,Physical Support,Adults,Physical Support 18 - 64,3rd Party Payments,Personal Budget - Domiciliary care,ABICARE SERVICES LTD (LIVE IN),SP2 ,13/02/2023,"1,200.00"
69274233,Physical Support,Adults,Physical Support 18 - 64,3rd Party Payments,Personal Budget - Domiciliary care,ABICARE SERVICES LTD (LIVE IN),SP2 ,13/02/2023,988.68
66845253,Physical Support,Adults,Physical Support 18 - 64,3rd Party Payments,Personal Budget - Domiciliary care,ABICARE SERVICES LTD (LIVE IN),SP2 ,01/02/2023,"1,200.00"
70127233,Physical Support,Adults,Physical Support 18 - 64,3rd Party Payments,Personal Budget - Domiciliary care,ABICARE SERVICES LTD (LIVE IN),SP2 ,17/02/2023,"1,200.00"
71584263,Physical Support,Adults,Physical Support 18 - 64,3rd Party Payments,Personal Budget - Domiciliary care,ABICARE SERVICES LTD (LIVE IN),SP2 ,22/02/2023,"1,106.00"
68359233,Mental Health,Adults,Mental Health 65 and over,3rd Party Payments,Personal Budget - Domiciliary care,ABICARE SERVICES LTD (LIVE IN),SP2 ,08/02/2023,"1,106.00"
67041233,Streetsmart,Streetsmart,Waterside Fleet Hires,Transport Costs,Vehicle Hire / Contract,ACCESS HIRE NATIONWIDE,WF6 ,06/02/2023,"1,585.43"
67040233,Streetsmart,Streetsmart,Waterside Fleet Hires,Transport Costs,Vehicle Hire / Contract,ACCESS HIRE NATIONWIDE,WF6 ,06/02/2023,"1,527.86"
70515381,Physical Support,Adults,Physical Support 18 - 64,3rd Party Payments,Residential Care,ACCOMPLISH,B45 ,17/02/2023,"6,855.89"
70515381,Physical Support,Adults,Physical Support 18 - 64,Income,Client Contribution - Residential,ACCOMPLISH,B45 ,17/02/2023,-517.16
70438233,Disabled Children,"Children, Families and Community Health Services",ICES Paediatric,Supplies and Services,Equipment,ACCORA LIMITED,SG8 ,17/02/2023,-675
67919233,Disabled Children,"Children, Families and Community Health Services",ICES Paediatric,Supplies and Services,Equipment,ACCORA LIMITED,SG8 ,08/02/2023,"1,182.00"
71299233,Homelessness and Travellers,Housing Services,Leased Private Managed Accommodation,Transfer Payments,Payment of Costs,REDACTED PERSONAL DATA,SN8 ,22/02/2023,700
71336233,Homelessness and Travellers,Housing Services,Leased Private Managed Accommodation,Transfer Payments,Payment of Costs,REDACTED PERSONAL DATA,SN8 ,22/02/2023,650
69030336,High Needs Block,DSG Skills and Attainment,SEN Resourcing Assessment Panel,3rd Party Payments,Top up funding - Academies and Free Schools Post 16,ACTIVATE LEARNING EDUCATION TRUST,OX1 ,13/02/2023,"2,372.83"
68172233,Social Care,"Children, Families and Community Health Services",Unaccompanied Asylum Seeking Children (UASC),3rd Party Payments,Independent Fostering Agency Placements,ACTIVE CARE SOLUTIONS LTD,B60 ,08/02/2023,"3,925.04"
68174233,Social Care,"Children, Families and Community Health Services",External Placements,3rd Party Payments,Independent Fostering Agency Placements,ACTIVE CARE SOLUTIONS LTD,B60 ,08/02/2023,"3,039.68"
68173233,Social Care,"Children, Families and Community Health Services",External Placements,3rd Party Payments,Independent Fostering Agency Placements,ACTIVE CARE SOLUTIONS LTD,B60 ,08/02/2023,"2,959.88"
68171233,Social Care,"Children, Families and Community Health Services",External Placements,3rd Party Payments,Independent Fostering Agency Placements,ACTIVE CARE SOLUTIONS LTD,B60 ,08/02/2023,"5,775.84"
72057239,Learning Disabilities,Adults,Learning Disability 18 - 64,Transfer Payments,Personal Budget - Direct Payments - Domiciliary Care,REDACTED PERSONAL DATA,SN4 ,27/02/2023,"1,146.29"
65674237,Learning Disabilities,Adults,Learning Disability 18 - 64,Transfer Payments,Personal Budget - Direct Payments - Domiciliary Care,REDACTED PERSONAL DATA,SN4 ,01/02/2023,"1,146.29"
72057496,Learning Disabilities,Adults,Learning Disability 18 - 64,Transfer Payments,Personal Budget - Direct Payments - Domiciliary Care,REDACTED PERSONAL DATA,SN3 ,27/02/2023,"1,958.68"
65691471,Learning Disabilities,Adults,Learning Disability 18 - 64,Transfer Payments,Personal Budget - Direct Payments - Domiciliary Care,REDACTED PERSONAL DATA,SN3 ,01/02/2023,"1,958.68"
71298233,Homelessness and Travellers,Housing Services,Leased Private Managed Accommodation,Transfer Payments,Payment of Costs,ADVANCE HOUSING & SUPPORT LTD,OX28,22/02/2023,"1,074.00"
67209233,Streetsmart,Streetsmart,Waterside Fleet Workshops,Supplies and Services,Materials,ADVANCED PRINTING SERVICES UK LTD,SN2 ,03/02/2023,335
72145233,Other Repairs,Repairs,Cyclical Maintenance,Supplies and Services,Testing / Inspection,AFFLECK ELECTRICAL LTD,SN3 ,24/02/2023,525.16
70515403,Learning Disabilities,Adults,Learning Disability 65 and over,3rd Party Payments,Supported Lodgings (Childrens)/Supported Living (Adults),AGINCARE ENABLE LTD,DT5 ,17/02/2023,"2,902.35"
70515403,Learning Disabilities,Adults,Learning Disability 65 and over,Income,Client Contribution - Supported Living,AGINCARE ENABLE LTD,DT5 ,17/02/2023,-561.71
70515403,Learning Disabilities,Adults,Learning Disability 65 and over,3rd Party Payments,Supported Lodgings (Childrens)/Supported Living (Adults),AGINCARE ENABLE LTD,DT5 ,17/02/2023,"6,876.96"
70515332,Physical Support,Adults,Physical Support 65 and over,Income,Client Contribution - Residential,AGINCARE LTD,DT5 ,17/02/2023,"-1,450.96"
70515332,Physical Support,Adults,Physical Support 65 and over,3rd Party Payments,Residential Care,AGINCARE LTD,DT5 ,17/02/2023,"4,242.86"
68807233,Early Years Block,DSG Skills and Attainment,Free Nursery Education Commissioning - three & four  year olds,3rd Party Payments,Contracts - Child Care,REDACTED PERSONAL DATA,SN3 ,15/02/2023,581.63
67983233,School Transport,"Education, Inclusion and Skills",Special Educational Needs Transport,Transport Costs,Home to School Transport,AKCESS CIC,SN2 ,08/02/2023,"31,049.55"
67981233,School Transport,"Education, Inclusion and Skills",Special Educational Needs Transport,Transport Costs,Home to School Transport,AKCESS CIC,SN2 ,08/02/2023,"2,992.50"
67980233,Learning Disabilities,Adults,Learning Disability 18 - 64,Transport Costs,Home to Centre Transport,AKCESS CIC,SN2 ,08/02/2023,"5,395.21"
67980233,Physical Support,Adults,Physical Support 65 and over,Transport Costs,Home to Centre Transport,AKCESS CIC,SN2 ,08/02/2023,"5,395.21"
68683234,Travel,Highways & Transport,Public Transport,3rd Party Payments,Contract Payments,AKCESS CIC,SN2 ,10/02/2023,"14,973.69"
67980233,Learning Disabilities,Adults,Learning Disability 18 - 64,Transport Costs,Home to Centre Transport,AKCESS CIC,SN2 ,08/02/2023,"18,889.76"
67980233,Physical Support,Adults,Physical Support 65 and over,Transport Costs,Home to Centre Transport,AKCESS CIC,SN2 ,08/02/2023,"2,698.54"
67978233,School Transport,"Education, Inclusion and Skills",Special Educational Needs Transport,Transport Costs,Home to School Transport,AKCESS CIC,SN2 ,08/02/2023,"93,548.06"
67978233,School Transport,"Education, Inclusion and Skills",Mainstream School Transport,Transport Costs,Home to School Transport,AKCESS CIC,SN2 ,08/02/2023,"2,313.09"
67984233,School Transport,"Education, Inclusion and Skills",Special Educational Needs Transport,Employees,Temporary / Agency - by Accounts Payable,AKCESS CIC,SN2 ,08/02/2023,"15,504.00"
67980233,Physical Support,Adults,Physical Support 65 and over,Transport Costs,Home to Centre Transport,AKCESS CIC,SN2 ,08/02/2023,"5,395.21"
67982233,School Transport,"Education, Inclusion and Skills",Mainstream School Transport,Transport Costs,Home to School Transport,AKCESS CIC,SN2 ,08/02/2023,"2,165.63"
67979233,School Transport,"Education, Inclusion and Skills",Special Educational Needs Transport,Transport Costs,Home to School Transport,AKCESS CIC,SN2 ,08/02/2023,"64,598.21"
71545233,Social Care,"Children, Families and Community Health Services",Legal Fees,Supplies and Services,Fees,ALBION CHAMBERS,BS1 ,22/02/2023,575
72445233,Mental Health,Adults,Mental Health 18-64,Supplies and Services,Fees,ALBION CHAMBERS,BS1 ,27/02/2023,500
66779233,Streetsmart,Streetsmart,Waste - Disposal,Supplies and Services,Materials,ALBUTT LTD,GL20,01/02/2023,"3,758.00"
70892233,Learning Disabilities,Adults,Learning Disability 18 - 64,3rd Party Payments,Supported Accommodation Scheme,REDACTED PERSONAL DATA,SN2 ,22/02/2023,"2,444.96"
67745233,Disabled Children,"Children, Families and Community Health Services",DCT Daytime Short Breaks,Transfer Payments,Personal Budget - Direct Payments - Other,REDACTED PERSONAL DATA,SN1 ,06/02/2023,"1,270.00"
72057513,Learning Disabilities,Adults,Learning Disability 18 - 64,Transfer Payments,Personal Budget - Direct Payments - Domiciliary Care,REDACTED PERSONAL DATA,SN25,27/02/2023,973.45
65691488,Learning Disabilities,Adults,Learning Disability 18 - 64,Transfer Payments,Personal Budget - Direct Payments - Domiciliary Care,REDACTED PERSONAL DATA,SN25,01/02/2023,973.45
70940233,Learning Disabilities,Adults,Learning Disability 18 - 64,3rd Party Payments,Supported Accommodation Scheme,REDACTED PERSONAL DATA,SN1 ,22/02/2023,"2,444.96"
65691592,Learning Disabilities,Adults,Learning Disability 18 - 64,Transfer Payments,Personal Budget - Direct Payments - Other,REDACTED PERSONAL DATA,SN4 ,01/02/2023,"1,730.53"
65691591,Learning Disabilities,Adults,Learning Disability 18 - 64,Transfer Payments,Personal Budget - Direct Payments - Domiciliary Care,REDACTED PERSONAL DATA,SN4 ,01/02/2023,"1,023.33"
65691593,Learning Disabilities,Adults,Learning Disability 18 - 64,Transfer Payments,Personal Budget - Direct Payments - Domiciliary Care,REDACTED PERSONAL DATA,SN4 ,01/02/2023,"1,009.37"
65691594,Learning Disabilities,Adults,Learning Disability 18 - 64,Transfer Payments,Personal Budget - Direct Payments - Other,REDACTED PERSONAL DATA,SN4 ,01/02/2023,"1,706.91"
72057610,Learning Disabilities,Adults,Learning Disability 18 - 64,Transfer Payments,Personal Budget - Direct Payments - Other,REDACTED PERSONAL DATA,SN4 ,27/02/2023,"1,730.53"
72057609,Learning Disabilities,Adults,Learning Disability 18 - 64,Transfer Payments,Personal Budget - Direct Payments - Domiciliary Care,REDACTED PERSONAL DATA,SN4 ,27/02/2023,"1,023.33"
72115281,School Transport,"Education, Inclusion and Skills",Special Educational Needs Transport,Transport Costs,Home to School Transport,REDACTED PERSONAL DATA,SN5 ,24/02/2023,518.18
70941233,Learning Disabilities,Adults,Learning Disability 18 - 64,3rd Party Payments,Supported Accommodation Scheme,REDACTED PERSONAL DATA,SN2 ,22/02/2023,"1,707.36"
70941233,Learning Disabilities,Adults,Learning Disability 18 - 64,3rd Party Payments,Supported Accommodation Scheme,REDACTED PERSONAL DATA,SN2 ,22/02/2023,"1,671.04"
70941233,Learning Disabilities,Adults,Learning Disability 18 - 64,3rd Party Payments,Supported Accommodation Scheme,REDACTED PERSONAL DATA,SN2 ,22/02/2023,"1,985.40"
65674239,Learning Disabilities,Adults,Learning Disability 18 - 64,Transfer Payments,Personal Budget - Direct Payments - Domiciliary Care,REDACTED PERSONAL DATA,SN5 ,01/02/2023,"8,820.69"
72057241,Learning Disabilities,Adults,Learning Disability 18 - 64,Transfer Payments,Personal Budget - Direct Payments - Domiciliary Care,REDACTED PERSONAL DATA,SN5 ,27/02/2023,"8,820.69"
68809233,Early Years Block,DSG Skills and Attainment,Free Nursery Education Commissioning - three & four  year olds,3rd Party Payments,Contracts - Child Care,REDACTED PERSONAL DATA,SN1 ,15/02/2023,930.61
68810233,Early Years Block,DSG Skills and Attainment,Free Nursery Education Commissioning - two year olds,3rd Party Payments,Contracts - Child Care,REDACTED PERSONAL DATA,SN1 ,15/02/2023,512.33
72057407,Learning Disabilities,Adults,Learning Disability 18 - 64,Transfer Payments,Personal Budget - Direct Payments - Domiciliary Care,REDACTED PERSONAL DATA,SN5 ,27/02/2023,"3,416.22"
65691381,Learning Disabilities,Adults,Learning Disability 18 - 64,Transfer Payments,Personal Budget - Direct Payments - Domiciliary Care,REDACTED PERSONAL DATA,SN5 ,01/02/2023,"3,416.22"
71771233,Highways & Transport,Highways & Transport,Rights of Way (ROW),Supplies and Services,Repairs & Maintenance,ALLBUILD BUILDING & LANDSCAPING SERVICES,SN25,24/02/2023,"2,460.00"
67470233,Environmental & Regulatory,Highways & Transport,Shaw Farm Landfill Site,Supplies and Services,Testing / Inspection,ALLBUILD BUILDING & LANDSCAPING SERVICES,SN25,03/02/2023,936
67450233,Environmental & Regulatory,Highways & Transport,Shaw Farm Landfill Site,Supplies and Services,Testing / Inspection,ALLBUILD BUILDING & LANDSCAPING SERVICES,SN25,03/02/2023,"1,950.00"
67273233,Highways Schemes,Strategic Planning and Highways,Non Highways Structures (Bridges within Parks),Capital,Contractor Payments,ALLBUILD BUILDING & LANDSCAPING SERVICES,SN25,03/02/2023,576
66713233,Highways Inspections & Maintenance,Highway Operations and Car Parking,Highway Maintenance,Supplies and Services,Equipment,ALLIANCE AUTOMOTIVE UK T/A BRAYMARC,BD4 ,01/02/2023,150
66713233,Highways Inspections & Maintenance,Highway Operations and Car Parking,Highway Maintenance,Supplies and Services,Equipment,ALLIANCE AUTOMOTIVE UK T/A BRAYMARC,BD4 ,01/02/2023,894.5
Corporate Card Transaction,Social Care,"Children, Families and Community Health Services",Placement - Care Leaver Team,3rd Party Payments,Personal Needs,Allpay *greensquareaccord,,06/02/2023,603.71
69543233,Landlord Services,Supervision & Management,Estate Management Team,Supplies and Services,Contracts,ALLPAY-NET LIMITED,HR1 ,15/02/2023,"1,778.85"
68224233,Treasury,Corporate Finance,Treasury,Supplies and Services,Bank Charges,ALLPAY-NET LIMITED,HR1 ,08/02/2023,889.13
67035233,Town Centre,"Economy, Growth and Place",HAZ Streets and spaces,Capital,Professional Fees,ALPHA HIGHWAY CONSULTANTS LIMITED,SG5 ,03/02/2023,"1,185.00"
72121233,Highways Schemes,Strategic Planning and Highways,Key Routes East,Capital,Professional Fees,ALPHA HIGHWAY CONSULTANTS LIMITED,SG5 ,24/02/2023,"1,225.00"
67121233,Town Centre,"Economy, Growth and Place",Kimmerfields enabling works,Capital,Professional Fees,ALPHA HIGHWAY CONSULTANTS LIMITED,SG5 ,03/02/2023,"1,325.00"
70701234,Social Care,"Children, Families and Community Health Services",Legal Fees,Supplies and Services,Fees,ALPHABIOLABS,WA5 ,20/02/2023,104.5
70701234,Social Care,"Children, Families and Community Health Services",Legal Fees,Supplies and Services,Fees,ALPHABIOLABS,WA5 ,20/02/2023,132
70701234,Social Care,"Children, Families and Community Health Services",Legal Fees,Supplies and Services,Fees,ALPHABIOLABS,WA5 ,20/02/2023,352
70515408,Physical Support,Adults,Physical Support 65 and over,3rd Party Payments,Nursing Care,ALTOGETHER CARE WEYMOUTH CARE HOME,DT4 ,17/02/2023,"15,518.37"
69534233,"Volutary Sector, Equipment and Carers",Adults,Voluntary Sector Adults,3rd Party Payments,Contracts - Social Care,ALZHEIMERS SOCIETY,PL2 ,15/02/2023,"2,433.00"
71857233,Social Care,"Children, Families and Community Health Services",Looked After Children Service,3rd Party Payments,Personal Needs,AMANDA SHIRTCLIFF,TR3 ,24/02/2023,500
Corporate Card Transaction,Digital & Business Change,Digital & Business Change,IT Operations,Supplies and Services,Materials,Amazon.Co.Uk*138nu9rl4,,22/02/2023,619
67977238,DSG Other Funding,DSG Skills and Attainment,LAC pupil premium,Supplies and Services,Services,AMBERLEIGH CARE LTD,TF2 ,15/02/2023,600
71397233,Social Care,"Children, Families and Community Health Services",External Placements,3rd Party Payments,Residential Care,AMEGREEN CHILDREN'S SERVICES LTD,RG7 ,22/02/2023,"3,105.00"
71396233,Social Care,"Children, Families and Community Health Services",External Placements,3rd Party Payments,Residential Care,AMEGREEN CHILDREN'S SERVICES LTD,RG7 ,22/02/2023,"15,750.00"
70101233,Responsive Repairs,Repairs,Responsive Repairs,Premises Costs,Repairs - Buildings,AMELIO UTILITIES(GLOU) LTD T/A 3 COUNTIES DRAIN SERVICES,GL1 ,17/02/2023,159.94
72191234,Responsive Repairs,Repairs,Responsive Repairs,Premises Costs,Repairs - Buildings,AMELIO UTILITIES(GLOU) LTD T/A 3 COUNTIES DRAIN SERVICES,GL1 ,24/02/2023,127.35
72191234,Responsive Repairs,Repairs,Responsive Repairs,Premises Costs,Repairs - Buildings,AMELIO UTILITIES(GLOU) LTD T/A 3 COUNTIES DRAIN SERVICES,GL1 ,24/02/2023,318.37
72191234,Responsive Repairs,Repairs,Responsive Repairs,Premises Costs,Repairs - Buildings,AMELIO UTILITIES(GLOU) LTD T/A 3 COUNTIES DRAIN SERVICES,GL1 ,24/02/2023,533.13
70101233,Responsive Repairs,Repairs,Responsive Repairs,Premises Costs,Repairs - Buildings,AMELIO UTILITIES(GLOU) LTD T/A 3 COUNTIES DRAIN SERVICES,GL1 ,17/02/2023,127.35
72191234,Responsive Repairs,Repairs,Responsive Repairs,Premises Costs,Repairs - Buildings,AMELIO UTILITIES(GLOU) LTD T/A 3 COUNTIES DRAIN SERVICES,GL1 ,24/02/2023,287.29
72191234,Responsive Repairs,Repairs,Responsive Repairs,Premises Costs,Repairs - Buildings,AMELIO UTILITIES(GLOU) LTD T/A 3 COUNTIES DRAIN SERVICES,GL1 ,24/02/2023,319.88
70101233,Responsive Repairs,Repairs,Responsive Repairs,Premises Costs,Repairs - Buildings,AMELIO UTILITIES(GLOU) LTD T/A 3 COUNTIES DRAIN SERVICES,GL1 ,17/02/2023,"1,150.65"
72191234,Responsive Repairs,Repairs,Responsive Repairs,Premises Costs,Repairs - Buildings,AMELIO UTILITIES(GLOU) LTD T/A 3 COUNTIES DRAIN SERVICES,GL1 ,24/02/2023,0.1
70102233,Responsive Repairs,Repairs,Responsive Repairs,Premises Costs,Repairs - Buildings,AMELIO UTILITIES(GLOU) LTD T/A 3 COUNTIES DRAIN SERVICES,GL1 ,17/02/2023,127.35
70102233,Responsive Repairs,Repairs,Responsive Repairs,Premises Costs,Repairs - Buildings,AMELIO UTILITIES(GLOU) LTD T/A 3 COUNTIES DRAIN SERVICES,GL1 ,17/02/2023,159.94
70101233,Responsive Repairs,Repairs,Responsive Repairs,Premises Costs,Repairs - Buildings,AMELIO UTILITIES(GLOU) LTD T/A 3 COUNTIES DRAIN SERVICES,GL1 ,17/02/2023,319.88
72191234,Responsive Repairs,Repairs,Responsive Repairs,Premises Costs,Repairs - Buildings,AMELIO UTILITIES(GLOU) LTD T/A 3 COUNTIES DRAIN SERVICES,GL1 ,24/02/2023,159.94
70101233,Responsive Repairs,Repairs,Responsive Repairs,Premises Costs,Repairs - Buildings,AMELIO UTILITIES(GLOU) LTD T/A 3 COUNTIES DRAIN SERVICES,GL1 ,17/02/2023,350.96
70101233,Responsive Repairs,Repairs,Responsive Repairs,Premises Costs,Repairs - Buildings,AMELIO UTILITIES(GLOU) LTD T/A 3 COUNTIES DRAIN SERVICES,GL1 ,17/02/2023,191.02
69732233,Highways & Transport,Highways & Transport,Project Delivery,Supplies and Services,Services,AMEY OW LTD,L19 ,15/02/2023,"33,987.54"
67861233,Highways & Transport,Highways & Transport,Project Delivery,Supplies and Services,Services,AMEY OW LTD,L19 ,06/02/2023,"47,709.20"
67860233,Highways & Transport,Highways & Transport,Project Delivery,Supplies and Services,Services,AMEY OW LTD,L19 ,06/02/2023,"18,835.44"
67365233,Property Estates,Property,Estates - Corporate Property General,Premises Costs,Rents,AMEY TPT,EC4A,03/02/2023,"2,785.00"
68165233,Social Care,"Children, Families and Community Health Services",External Placements,3rd Party Payments,Independent Fostering Agency Placements,AMICUS FOSTER CARE,BS2 ,08/02/2023,"5,256.05"
65691251,Mental Health,Adults,Mental Health 18-64,Transfer Payments,Personal Budget - Direct Payments - Domiciliary Care,REDACTED PERSONAL DATA,SN25,01/02/2023,555.51
72057276,Mental Health,Adults,Mental Health 18-64,Transfer Payments,Personal Budget - Direct Payments - Domiciliary Care,REDACTED PERSONAL DATA,SN25,27/02/2023,555.51
68815233,Early Years Block,DSG Skills and Attainment,Free Nursery Education Commissioning - three & four  year olds,3rd Party Payments,Contracts - Child Care,REDACTED PERSONAL DATA,SN25,15/02/2023,736.73
67834233,Senior Management Team,"Children, Families and Community Health Services",Senior Management Team - Non Staffing,Supplies and Services,Fees,REDACTED PERSONAL DATA,TA5 ,06/02/2023,"2,132.58"
71522233,Social Care,"Children, Families and Community Health Services",Legal Fees,Supplies and Services,Fees,REDACTED PERSONAL DATA,EC4Y,22/02/2023,"1,900.00"
71513233,Social Care,"Children, Families and Community Health Services",Legal Fees,Supplies and Services,Fees,REDACTED PERSONAL DATA,EC4Y,22/02/2023,800
71520233,Social Care,"Children, Families and Community Health Services",Legal Fees,Supplies and Services,Fees,REDACTED PERSONAL DATA,EC4Y,22/02/2023,"2,500.00"
66573233,Planning & Regulatory,Strategic Planning,Landscape & Countryside Works,Supplies and Services,Discretionary Costs,ANDREW CUNNINGHAM ARBORICULTURAL CONSULTANT LIMITED (ACAC),GL5 ,01/02/2023,"1,400.00"
71205242,Homelessness and Travellers,Housing Services,Leased Private Managed Accommodation,Transfer Payments,Payment of Costs,REDACTED PERSONAL DATA,SN26,22/02/2023,675
69701233,"Volutary Sector, Equipment and Carers",Adults,Carers Short Term Breaks - Adults,3rd Party Payments,Carers,REDACTED PERSONAL DATA,SN3 ,15/02/2023,500
71418233,Social Care,"Children, Families and Community Health Services",Legal Fees,Supplies and Services,Fees,ANDY MORGAN-SMITH (SALISBURY) LTD,SP1 ,22/02/2023,"1,932.00"
71415233,Social Care,"Children, Families and Community Health Services",Legal Fees,Supplies and Services,Fees,ANDY MORGAN-SMITH (SALISBURY) LTD,SP1 ,22/02/2023,"1,437.00"
71416233,Social Care,"Children, Families and Community Health Services",Legal Fees,Supplies and Services,Fees,ANDY MORGAN-SMITH (SALISBURY) LTD,SP1 ,22/02/2023,"2,199.00"
71417233,Social Care,"Children, Families and Community Health Services",Legal Fees,Supplies and Services,Fees,ANDY MORGAN-SMITH (SALISBURY) LTD,SP1 ,22/02/2023,"1,602.00"
70831237,High Needs Block,DSG Skills and Attainment,SEN Resourcing Assessment Panel,3rd Party Payments,Top up funding - Maintained providers Pre 16,REDACTED PERSONAL DATA,SN5 ,22/02/2023,"1,320.00"
71288233,Homelessness and Travellers,Housing Services,Leased Private Managed Accommodation,Transfer Payments,Payment of Costs,ANGELVIEW PROPERTIES LTD,ALBO,22/02/2023,548.45
65627233,Physical Support,Adults,Physical Support 65 and over,3rd Party Payments,Carers,REDACTED PERSONAL DATA,SP11,01/02/2023,505.06
72004233,Physical Support,Adults,Physical Support 65 and over,3rd Party Payments,Carers,REDACTED PERSONAL DATA,SP11,27/02/2023,505.06
69086233,Social Care,"Children, Families and Community Health Services",Placement Fostering Service,3rd Party Payments,Carers Skills Payments - Advanced,REDACTED PERSONAL DATA,SN5 ,13/02/2023,1
69086233,Social Care,"Children, Families and Community Health Services",Placement Fostering Service,3rd Party Payments,Carers Skills Payments - Advanced,REDACTED PERSONAL DATA,SN5 ,13/02/2023,105.71
69086233,Social Care,"Children, Families and Community Health Services",Placement Fostering Service,3rd Party Payments,Carers Skills Payments - Qualified,REDACTED PERSONAL DATA,SN5 ,13/02/2023,-1
69086233,Social Care,"Children, Families and Community Health Services",Placement Fostering Service,3rd Party Payments,Foster Care Basic Payments,REDACTED PERSONAL DATA,SN5 ,13/02/2023,144.57
72057498,Physical Support,Adults,Physical Support 18 - 64,Transfer Payments,Personal Budget - Direct Payments - Domiciliary Care,REDACTED PERSONAL DATA,SN25,27/02/2023,"2,397.79"
65691473,Physical Support,Adults,Physical Support 18 - 64,Transfer Payments,Personal Budget - Direct Payments - Domiciliary Care,REDACTED PERSONAL DATA,SN25,01/02/2023,"2,397.79"
69916234,Early Help,Early Intervention & Prevention,On Trak Youth Counselling Service,3rd Party Payments,Contract Payments,REDACTED PERSONAL DATA,SN2 ,15/02/2023,585
71570233,HRA Overheads,Supervision & Management,Admin / Management General,Premises Costs,Insurance - Premises,AON UK LIMITED,EC3V,24/02/2023,"3,999.48"
70182233,Supported Employment,Housing Services,Community Meals,Supplies and Services,Food,APETITO LIMITED,BA14,17/02/2023,"1,026.06"
66755233,Supported Employment,Housing Services,Community Meals,Supplies and Services,Food,APETITO LIMITED,BA14,01/02/2023,"1,128.74"
70184233,Supported Employment,Housing Services,Community Meals,Supplies and Services,Food,APETITO LIMITED,BA14,17/02/2023,"1,269.80"
71908233,Responsive Repairs,Repairs,Responsive Repairs,3rd Party Payments,Contract Payments,APEX SCAFFOLDING SERVICES,SN2 ,24/02/2023,625
71910233,Responsive Repairs,Repairs,Responsive Repairs,3rd Party Payments,Contract Payments,APEX SCAFFOLDING SERVICES,SN2 ,24/02/2023,495
68025237,Responsive Repairs,Repairs,Responsive Repairs,3rd Party Payments,Contract Payments,APEX SCAFFOLDING SERVICES,SN2 ,08/02/2023,"3,600.00"
70150233,Responsive Repairs,Repairs,Responsive Repairs,3rd Party Payments,Contract Payments,APEX SCAFFOLDING SERVICES,SN2 ,17/02/2023,720
68024234,Responsive Repairs,Repairs,Responsive Repairs,3rd Party Payments,Contract Payments,APEX SCAFFOLDING SERVICES,SN2 ,08/02/2023,416.67
71031233,Responsive Repairs,Repairs,Responsive Repairs,3rd Party Payments,Contract Payments,APEX SCAFFOLDING SERVICES,SN2 ,22/02/2023,850
67490233,Responsive Repairs,Repairs,Responsive Repairs,3rd Party Payments,Contract Payments,APEX SCAFFOLDING SERVICES,SN2 ,03/02/2023,594
71027233,Responsive Repairs,Repairs,Responsive Repairs,3rd Party Payments,Contract Payments,APEX SCAFFOLDING SERVICES,SN2 ,22/02/2023,"1,200.00"
71912233,Responsive Repairs,Repairs,Responsive Repairs,3rd Party Payments,Contract Payments,APEX SCAFFOLDING SERVICES,SN2 ,24/02/2023,625
71025233,Responsive Repairs,Repairs,Responsive Repairs,3rd Party Payments,Contract Payments,APEX SCAFFOLDING SERVICES,SN2 ,22/02/2023,450
70100233,,,Balance Sheet,Balance Sheet & Recharge,Resources Recharges,APOGEE CORPORATION LIMITED,EC2A,17/02/2023,"1,997.85"
67885233,,,Balance Sheet,Balance Sheet & Recharge,Resources Recharges,APOGEE CORPORATION LIMITED,EC2A,06/02/2023,"11,054.13"
71896233,,,Balance Sheet,Balance Sheet & Recharge,Resources Recharges,APOGEE CORPORATION LIMITED,EC2A,24/02/2023,"9,415.66"
70515342,Learning Disabilities,Adults,Learning Disability 18 - 64,3rd Party Payments,Residential Care,APPLEFORD LTD T/A DANESWOOD,BS25,17/02/2023,"23,796.44"
70515342,Learning Disabilities,Adults,Learning Disability 18 - 64,Income,Client Contribution - Residential,APPLEFORD LTD T/A DANESWOOD,BS25,17/02/2023,-517.16
68209233,Adults - Staffing and Supporting People,Adults,Blue Badges,Supplies and Services,Materials,APS GROUP,SK3 ,08/02/2023,"1,086.08"
70678233,Early Years Block,DSG Skills and Attainment,Free Nursery Education Commissioning - three & four  year olds,3rd Party Payments,Contracts - Child Care,REDACTED PERSONAL DATA,SN2 ,22/02/2023,800
70677233,Early Years Block,DSG Skills and Attainment,Free Nursery Education Commissioning - three & four  year olds,3rd Party Payments,Contracts - Child Care,REDACTED PERSONAL DATA,SN2 ,22/02/2023,800
70831233,High Needs Block,DSG Skills and Attainment,SEN Resourcing Assessment Panel,3rd Party Payments,Top up funding - Maintained providers Pre 16,REDACTED PERSONAL DATA,SN2 ,22/02/2023,"7,980.00"
72405233,Early Years Block,DSG Skills and Attainment,Free Nursery Education Commissioning - three & four  year olds,3rd Party Payments,Contracts - Child Care,REDACTED PERSONAL DATA,SN2 ,27/02/2023,"7,980.00"
69713233,Streetsmart,Streetsmart,Waterside Fleet Hires,Transport Costs,Vehicle Hire / Contract,ARNOLD PLANT HIRE LIMITED,SK6 ,15/02/2023,"1,540.00"
69714233,Streetsmart,Streetsmart,Waterside Fleet Hires,Transport Costs,Vehicle Hire / Contract,ARNOLD PLANT HIRE LIMITED,SK6 ,15/02/2023,"1,166.00"
71435233,Streetsmart,Streetsmart,StreetSmart Contracts & Strategic Planning,Supplies and Services,Services,ARROW INDUSTRIAL GROUP LIMITED,RG21,22/02/2023,"1,200.00"
66787233,Streetsmart,Streetsmart,Waste - Processing,Supplies and Services,Services,ARROW INDUSTRIAL GROUP LIMITED,RG21,01/02/2023,"32,180.00"
71403233,Town Centre,"Economy, Growth and Place",Kimmerfields enabling works,Capital,Contractor Payments,ARTSITE LIMITED,SN1 ,22/02/2023,"12,114.00"
70515343,Mental Health,Adults,Mental Health 18-64,3rd Party Payments,Residential Care,ASH VIEW HOUSE,BS15,17/02/2023,"8,811.42"
70515343,Mental Health,Adults,Mental Health 18-64,Income,Client Contribution - Residential,ASH VIEW HOUSE,BS15,17/02/2023,-464.59
70515267,Physical Support,Adults,Physical Support 65 and over,3rd Party Payments,Residential Care,ASHBURY LODGE,SN3 ,17/02/2023,"3,017.28"
70515267,Mental Health,Adults,Mental Health 65 and over,3rd Party Payments,Residential Care,ASHBURY LODGE,SN3 ,17/02/2023,"3,017.28"
70515267,Physical Support,Adults,Physical Support 65 and over,Income,Client Contribution - Residential,ASHBURY LODGE,SN3 ,17/02/2023,"-1,031.49"
70515267,Physical Support,Adults,Physical Support 65 and over,Income,Client Contribution - Residential,ASHBURY LODGE,SN3 ,17/02/2023,-718.93
70515267,Physical Support,Adults,Physical Support 65 and over,Income,Client Contribution - Residential,ASHBURY LODGE,SN3 ,17/02/2023,-710.44
70515267,Physical Support,Adults,Physical Support 65 and over,Income,Client Contribution - Residential,ASHBURY LODGE,SN3 ,17/02/2023,-739.91
70515267,Physical Support,Adults,Physical Support 65 and over,Income,Client Contribution - Residential,ASHBURY LODGE,SN3 ,17/02/2023,-861.25
70515267,Physical Support,Adults,Physical Support 65 and over,Income,Client Contribution - Residential,ASHBURY LODGE,SN3 ,17/02/2023,"1,893.34"
70515267,Mental Health,Adults,Mental Health 65 and over,3rd Party Payments,Residential Care,ASHBURY LODGE,SN3 ,17/02/2023,"3,145.28"
70515267,Physical Support,Adults,Physical Support 65 and over,3rd Party Payments,Residential Care,ASHBURY LODGE,SN3 ,17/02/2023,-91.43
70515267,Physical Support,Adults,Physical Support 65 and over,Income,Client Contribution - Residential,ASHBURY LODGE,SN3 ,17/02/2023,"-1,044.92"
70515267,Physical Support,Adults,Physical Support 65 and over,Income,Client Contribution - Residential,ASHBURY LODGE,SN3 ,17/02/2023,-775.12
70515267,Physical Support,Adults,Physical Support 18 - 64,3rd Party Payments,Residential Care,ASHBURY LODGE,SN3 ,17/02/2023,"-7,053.05"
70515267,Physical Support,Adults,Physical Support 65 and over,3rd Party Payments,Residential Care,ASHBURY LODGE,SN3 ,17/02/2023,"4,242.86"
70515267,Physical Support,Adults,Physical Support 65 and over,3rd Party Payments,Residential Care,ASHBURY LODGE,SN3 ,17/02/2023,"2,305.03"
70515267,Physical Support,Adults,Physical Support 65 and over,3rd Party Payments,Residential Care,ASHBURY LODGE,SN3 ,17/02/2023,"-2,238.78"
70515267,Physical Support,Adults,Physical Support 65 and over,Income,Client Contribution - Residential,ASHBURY LODGE,SN3 ,17/02/2023,25.59
70515267,Physical Support,Adults,Physical Support 65 and over,3rd Party Payments,Residential Care,ASHBURY LODGE,SN3 ,17/02/2023,"4,003.47"
70515267,Physical Support,Adults,Physical Support 65 and over,3rd Party Payments,Residential Care,ASHBURY LODGE,SN3 ,17/02/2023,"3,145.28"
70515267,Physical Support,Adults,Physical Support 65 and over,Income,Client Contribution - Residential,ASHBURY LODGE,SN3 ,17/02/2023,-692.29
70515267,Physical Support,Adults,Physical Support 18 - 64,3rd Party Payments,Residential Care,ASHBURY LODGE,SN3 ,17/02/2023,-95.31
70515267,Mental Health,Adults,Mental Health 65 and over,Income,Client Contribution - Residential,ASHBURY LODGE,SN3 ,17/02/2023,-949.13
70515267,Physical Support,Adults,Physical Support 65 and over,Income,Client Contribution - Residential,ASHBURY LODGE,SN3 ,17/02/2023,31.89
70515265,Physical Support,Adults,Physical Support 65 and over,Income,Client Contribution - Nursing,ASHGROVE HOUSE NURSING HOME,SN5 ,17/02/2023,-384.87
70515265,Physical Support,Adults,Physical Support 65 and over,3rd Party Payments,Nursing Care,ASHGROVE HOUSE NURSING HOME,SN5 ,17/02/2023,"7,165.71"
70134233,Public Health,Public Health,Health Checks,3rd Party Payments,Contract Payments,ASHINGTON HOUSE SURGERY,SN5 ,22/02/2023,"2,691.00"
71768233,Public Health,Public Health,Sexual Health & Health Protection Budget,3rd Party Payments,Contract Payments,ASHINGTON HOUSE SURGERY,SN5 ,24/02/2023,646
66541233,Public Health,Public Health,Smoking & Tobacco,3rd Party Payments,Contract Payments,ASHINGTON WAY PHARMACY,SN5 ,01/02/2023,240
66541233,Public Health,Public Health,Smoking & Tobacco,3rd Party Payments,Contract Payments,ASHINGTON WAY PHARMACY,SN5 ,01/02/2023,"1,322.57"
65691494,Physical Support,Adults,Physical Support 18 - 64,Transfer Payments,Personal Budget - Direct Payments - Domiciliary Care,REDACTED PERSONAL DATA,SN25,01/02/2023,"1,510.97"
72057518,Physical Support,Adults,Physical Support 18 - 64,Transfer Payments,Personal Budget - Direct Payments - Domiciliary Care,REDACTED PERSONAL DATA,SN25,27/02/2023,"1,510.97"
70589233,Libraries,"Education, Inclusion and Skills",Library Delivery,Supplies and Services,Materials,ASKEWS AND HOLTS LIBRARY SERVICES LIMITED,PR1 ,20/02/2023,"4,070.00"
66265233,Libraries,"Education, Inclusion and Skills",Library Delivery,Supplies and Services,Materials,ASKEWS AND HOLTS LIBRARY SERVICES LIMITED,PR1 ,01/02/2023,970.45
70925233,Libraries,"Education, Inclusion and Skills",Library Delivery,Supplies and Services,Materials,ASKEWS AND HOLTS LIBRARY SERVICES LIMITED,PR1 ,22/02/2023,"1,196.20"
69706233,Libraries,"Education, Inclusion and Skills",Library Delivery,Supplies and Services,Materials,ASKEWS AND HOLTS LIBRARY SERVICES LIMITED,PR1 ,15/02/2023,"1,257.82"
67610233,Libraries,"Education, Inclusion and Skills",Library Delivery,Supplies and Services,Materials,ASKEWS AND HOLTS LIBRARY SERVICES LIMITED,PR1 ,06/02/2023,"1,060.98"
70515315,Learning Disabilities,Adults,Learning Disability 18 - 64,Income,Client Contribution - Residential,ASPECTS & MILESTONES TRUST,BS16,17/02/2023,-501.6
70515315,Learning Disabilities,Adults,Learning Disability 18 - 64,3rd Party Payments,Residential Care,ASPECTS & MILESTONES TRUST,BS16,17/02/2023,"7,573.92"
70515352,Mental Health,Adults,Mental Health 65 and over,3rd Party Payments,Supported Lodgings (Childrens)/Supported Living (Adults),ASPECTS 2 LTD,B70 ,17/02/2023,"2,332.00"
70515352,Mental Health,Adults,Mental Health 65 and over,3rd Party Payments,Supported Lodgings (Childrens)/Supported Living (Adults),ASPECTS 2 LTD,B70 ,17/02/2023,"-3,816.00"
70515352,Physical Support,Adults,Physical Support 18 - 64,3rd Party Payments,Supported Lodgings (Childrens)/Supported Living (Adults),ASPECTS 2 LTD,B70 ,17/02/2023,"4,633.20"
70515352,Learning Disabilities,Adults,Learning Disability 18 - 64,Income,Client Contribution - Residential,ASPECTS 2 LTD,B70 ,17/02/2023,-517.16
70515352,Learning Disabilities,Adults,Learning Disability 18 - 64,3rd Party Payments,Residential Care,ASPECTS 2 LTD,B70 ,17/02/2023,"9,763.90"
70515352,Mental Health,Adults,Mental Health 65 and over,3rd Party Payments,Supported Lodgings (Childrens)/Supported Living (Adults),ASPECTS 2 LTD,B70 ,17/02/2023,"2,198.74"
70515373,Learning Disabilities,Adults,Learning Disability 18 - 64,3rd Party Payments,Residential Care,ASTON CARE LIMITED,RG30,17/02/2023,"10,822.63"
70515372,Learning Disabilities,Adults,Learning Disability 65 and over,3rd Party Payments,Residential Care,ASTON CARE LIMITED,RG30,17/02/2023,"7,786.96"
70515372,Learning Disabilities,Adults,Learning Disability 18 - 64,Income,Client Contribution - Residential,ASTON CARE LIMITED,RG30,17/02/2023,"-1,217.70"
70515372,Learning Disabilities,Adults,Learning Disability 18 - 64,3rd Party Payments,Residential Care,ASTON CARE LIMITED,RG30,17/02/2023,"10,730.66"
70515372,Learning Disabilities,Adults,Learning Disability 18 - 64,Income,Client Contribution - Residential,ASTON CARE LIMITED,RG30,17/02/2023,-700.5
70515373,Learning Disabilities,Adults,Learning Disability 18 - 64,Income,Client Contribution - Residential,ASTON CARE LIMITED,RG30,17/02/2023,-309.26
70515372,Learning Disabilities,Adults,Learning Disability 18 - 64,3rd Party Payments,Residential Care,ASTON CARE LIMITED,RG30,17/02/2023,"8,143.22"
70515372,Learning Disabilities,Adults,Learning Disability 18 - 64,Income,Client Contribution - Residential,ASTON CARE LIMITED,RG30,17/02/2023,-484.16
70515372,Learning Disabilities,Adults,Learning Disability 18 - 64,3rd Party Payments,Residential Care,ASTON CARE LIMITED,RG30,17/02/2023,"7,484.21"
72408233,Disabled Children,"Children, Families and Community Health Services",ICES Paediatric,Supplies and Services,Equipment,ATELIER REHAB LIMITED,DY1 ,27/02/2023,"6,922.65"
69556233,Highways & Transport,Highways & Transport,Project Delivery,Supplies and Services,Services,ATKINS LTD,WR4 ,15/02/2023,"15,806.62"
69126233,Highways & Transport,Highways & Transport,Project Delivery,Supplies and Services,Services,ATKINS LTD,WR4 ,13/02/2023,"33,389.25"
69124233,Highways & Transport,Highways & Transport,Project Delivery,Supplies and Services,Services,ATKINS LTD,WR4 ,13/02/2023,"2,490.38"
69555233,Highways & Transport,Highways & Transport,Project Delivery,Supplies and Services,Services,ATKINS LTD,WR4 ,15/02/2023,"22,811.44"
69125233,Highways & Transport,Highways & Transport,Project Delivery,Supplies and Services,Services,ATKINS LTD,WR4 ,13/02/2023,"14,454.70"
69123233,Highways & Transport,Highways & Transport,Project Delivery,Supplies and Services,Services,ATKINS LTD,WR4 ,13/02/2023,"11,328.51"
71122233,Digital & Business Change,Digital & Business Change,IT Projects,Supplies and Services,Services,AUDITEL RENTAL & SERVICE LTD,HP12,22/02/2023,"5,365.00"
65691585,Physical Support,Adults,Physical Support 65 and over,Transfer Payments,Personal Budget - Direct Payments - Domiciliary Care,REDACTED PERSONAL DATA,SP11,01/02/2023,"-1,125.35"
72057602,Physical Support,Adults,Physical Support 65 and over,Transfer Payments,Personal Budget - Direct Payments - Domiciliary Care,REDACTED PERSONAL DATA,SP11,27/02/2023,"3,718.32"
65691584,Physical Support,Adults,Physical Support 65 and over,Transfer Payments,Personal Budget - Direct Payments - Domiciliary Care,REDACTED PERSONAL DATA,SP11,01/02/2023,"3,718.32"
72057603,Physical Support,Adults,Physical Support 65 and over,Transfer Payments,Personal Budget - Direct Payments - Domiciliary Care,REDACTED PERSONAL DATA,SP11,27/02/2023,"-1,125.35"
70515402,Mental Health,Adults,Mental Health 18-64,3rd Party Payments,Residential Care,AURA CARE LIVING CIRENCESTER LTD,GL7 ,17/02/2023,"5,421.43"
70515402,Physical Support,Adults,Physical Support 65 and over,3rd Party Payments,Residential Care,AURA CARE LIVING CIRENCESTER LTD,GL7 ,17/02/2023,"7,678.57"
70515402,Physical Support,Adults,Physical Support 65 and over,Income,Client Contribution - Nursing,AURA CARE LIVING CIRENCESTER LTD,GL7 ,17/02/2023,-467.19
70515402,Physical Support,Adults,Physical Support 18 - 64,3rd Party Payments,Nursing Care,AURA CARE LIVING CIRENCESTER LTD,GL7 ,17/02/2023,"-10,500.00"
70515402,Care Management & Safeguarding,Adults,Intermediate Care Team,3rd Party Payments,Residential Care,AURA CARE LIVING CIRENCESTER LTD,GL7 ,17/02/2023,"5,185.71"
70515402,Physical Support,Adults,Physical Support 65 and over,Income,Client Contribution - Nursing,AURA CARE LIVING CIRENCESTER LTD,GL7 ,17/02/2023,-874.44
70515402,Physical Support,Adults,Physical Support 65 and over,3rd Party Payments,Nursing Care,AURA CARE LIVING CIRENCESTER LTD,GL7 ,17/02/2023,"5,185.71"
70515402,Physical Support,Adults,Physical Support 65 and over,3rd Party Payments,Nursing Care,AURA CARE LIVING CIRENCESTER LTD,GL7 ,17/02/2023,-157.14
70515402,Physical Support,Adults,Physical Support 65 and over,Income,Client Contribution - Nursing,AURA CARE LIVING CIRENCESTER LTD,GL7 ,17/02/2023,22.42
70515402,Mental Health,Adults,Mental Health 65 and over,3rd Party Payments,Residential Care,AURA CARE LIVING CIRENCESTER LTD,GL7 ,17/02/2023,"6,600.00"
70515402,Physical Support,Adults,Physical Support 65 and over,3rd Party Payments,Nursing Care,AURA CARE LIVING CIRENCESTER LTD,GL7 ,17/02/2023,"6,128.57"
70515402,Physical Support,Adults,Physical Support 65 and over,3rd Party Payments,Nursing Care,AURA CARE LIVING CIRENCESTER LTD,GL7 ,17/02/2023,"6,364.29"
70515402,Care Management & Safeguarding,Adults,Intermediate Care Team,3rd Party Payments,Residential Care,AURA CARE LIVING CIRENCESTER LTD,GL7 ,17/02/2023,"-4,207.14"
70515402,Physical Support,Adults,Physical Support 65 and over,3rd Party Payments,Nursing Care,AURA CARE LIVING CIRENCESTER LTD,GL7 ,17/02/2023,"6,750.00"
70515402,Physical Support,Adults,Physical Support 65 and over,Income,Client Contribution - Nursing,AURA CARE LIVING CIRENCESTER LTD,GL7 ,17/02/2023,-739.91
70515402,Physical Support,Adults,Physical Support 65 and over,3rd Party Payments,Nursing Care,AURA CARE LIVING CIRENCESTER LTD,GL7 ,17/02/2023,"-6,128.57"
70515402,Mental Health,Adults,Mental Health 18-64,3rd Party Payments,Residential Care,AURA CARE LIVING CIRENCESTER LTD,GL7 ,17/02/2023,"7,920.00"
70515402,Care Management & Safeguarding,Adults,Intermediate Care Team,3rd Party Payments,Residential Care,AURA CARE LIVING CIRENCESTER LTD,GL7 ,17/02/2023,"4,478.57"
70515402,Care Management & Safeguarding,Adults,Intermediate Care Team,3rd Party Payments,Residential Care,AURA CARE LIVING CIRENCESTER LTD,GL7 ,17/02/2023,"5,892.86"
66169233,High Needs Block,DSG Skills and Attainment,Out of Borough School Fees,3rd Party Payments,OLA Special schools- Pre 16,AURORA FOXES ACADEMY,GL2 ,01/02/2023,"20,170.95"
70515384,Learning Disabilities,Adults,Learning Disability 65 and over,3rd Party Payments,Residential Care,AUTONOMY LIFE LIMITED,SN12,17/02/2023,"11,149.29"
70515384,Learning Disabilities,Adults,Learning Disability 65 and over,Income,Client Contribution - Residential,AUTONOMY LIFE LIMITED,SN12,17/02/2023,-623.23
68762233,Social Care,"Children, Families and Community Health Services",Unaccompanied Asylum Seeking Children (UASC),3rd Party Payments,Semi Independent,AVISANT CONSULTING LTD,EC1V,10/02/2023,"1,660.71"
71946233,Care Management & Safeguarding,Adults,Mental Health Non-Pool,3rd Party Payments,Contracts - Social Care,AVON & WILTSHIRE MENTAL HEALTH PARTNERSHIP NHS TRUST,BA1 ,24/02/2023,"24,088.83"
71952233,Care Management & Safeguarding,Adults,Mental Health Non-Pool,3rd Party Payments,Contracts - Social Care,AVON & WILTSHIRE MENTAL HEALTH PARTNERSHIP NHS TRUST,BA1 ,24/02/2023,"24,088.83"
71948233,Care Management & Safeguarding,Adults,Mental Health Non-Pool,3rd Party Payments,Contracts - Social Care,AVON & WILTSHIRE MENTAL HEALTH PARTNERSHIP NHS TRUST,BA1 ,24/02/2023,"24,088.83"
71950233,Care Management & Safeguarding,Adults,Mental Health Non-Pool,3rd Party Payments,Contracts - Social Care,AVON & WILTSHIRE MENTAL HEALTH PARTNERSHIP NHS TRUST,BA1 ,24/02/2023,"24,088.83"
71958233,Care Management & Safeguarding,Adults,Mental Health Non-Pool,3rd Party Payments,Contracts - Social Care,AVON & WILTSHIRE MENTAL HEALTH PARTNERSHIP NHS TRUST,BA1 ,24/02/2023,"24,088.83"
71959233,Care Management & Safeguarding,Adults,Mental Health Non-Pool,3rd Party Payments,Contracts - Social Care,AVON & WILTSHIRE MENTAL HEALTH PARTNERSHIP NHS TRUST,BA1 ,24/02/2023,"24,088.83"
71954233,Care Management & Safeguarding,Adults,Mental Health Non-Pool,3rd Party Payments,Contracts - Social Care,AVON & WILTSHIRE MENTAL HEALTH PARTNERSHIP NHS TRUST,BA1 ,24/02/2023,"24,088.83"
70515287,Learning Disabilities,Adults,Learning Disability 18 - 64,3rd Party Payments,Residential Care,AVON AUTISTIC FOUNDATION LTD,BS11,17/02/2023,"8,368.19"
70515286,Learning Disabilities,Adults,Learning Disability 18 - 64,Income,Client Contribution - Residential,AVON AUTISTIC FOUNDATION LTD,BS11,17/02/2023,-517.16
70515287,Learning Disabilities,Adults,Learning Disability 18 - 64,Income,Client Contribution - Residential,AVON AUTISTIC FOUNDATION LTD,BS11,17/02/2023,-488.16
70515286,Learning Disabilities,Adults,Learning Disability 18 - 64,3rd Party Payments,Residential Care,AVON AUTISTIC FOUNDATION LTD,BS11,17/02/2023,"5,982.38"
71325233,Homelessness and Travellers,Housing Services,Leased Private Managed Accommodation,Transfer Payments,Payment of Costs,AVONPARK PROPERTIES LTD,SN3 ,22/02/2023,550
71229233,Homelessness and Travellers,Housing Services,Leased Private Managed Accommodation,Transfer Payments,Payment of Costs,AVONPARK PROPERTIES LTD,SN3 ,22/02/2023,650
71228233,Homelessness and Travellers,Housing Services,Leased Private Managed Accommodation,Transfer Payments,Payment of Costs,AVONPARK PROPERTIES LTD,SN3 ,22/02/2023,615
68137233,Human Resources and Organisational Development,"People, Culture and Organisational Resilience",Organisational Development,Employees,Training,AWARENESS TRAINING LTD,GL54,08/02/2023,750
70246233,Town Centre,"Economy, Growth and Place","No 7, 9 & 11 Carriage works @ Railway Village",Capital,Consultants,BAILEY PARTNERSHIP (CONSULTANTS) LLP,PL1 ,17/02/2023,"3,000.00"
69557233,Town Centre,"Economy, Growth and Place","No 7, 9 & 11 Carriage works @ Railway Village",Capital,Consultants,BAILEY PARTNERSHIP (CONSULTANTS) LLP,PL1 ,15/02/2023,"3,000.00"
70241233,Town Centre,"Economy, Growth and Place","No 7, 9 & 11 Carriage works @ Railway Village",Capital,Consultants,BAILEY PARTNERSHIP (CONSULTANTS) LLP,PL1 ,17/02/2023,"3,000.00"
66575234,Public Health,Public Health,Contain Outbreak Management Fund (COMF),Supplies and Services,Hire / Rental,BAKER ROSS LTD,CM19,01/02/2023,4.95
66575234,Public Health,Public Health,Contain Outbreak Management Fund (COMF),Supplies and Services,Hire / Rental,BAKER ROSS LTD,CM19,01/02/2023,3.95
66575234,Public Health,Public Health,Contain Outbreak Management Fund (COMF),Supplies and Services,Hire / Rental,BAKER ROSS LTD,CM19,01/02/2023,32.4
66575234,Public Health,Public Health,Contain Outbreak Management Fund (COMF),Supplies and Services,Hire / Rental,BAKER ROSS LTD,CM19,01/02/2023,381.51
66575234,Public Health,Public Health,Contain Outbreak Management Fund (COMF),Supplies and Services,Hire / Rental,BAKER ROSS LTD,CM19,01/02/2023,5.95
68060233,Senior Management Team,"Children, Families and Community Health Services",Senior Management Team - Staffing,Employees,Temporary / Agency - by Accounts Payable,REDACTED PERSONAL DATA,BS1 ,08/02/2023,"3,125.00"
66956233,Senior Management Team,"Children, Families and Community Health Services",Senior Management Team - Staffing,Employees,Temporary / Agency - by Accounts Payable,REDACTED PERSONAL DATA,BS1 ,03/02/2023,"3,125.00"
67476233,Senior Management Team,"Children, Families and Community Health Services",Senior Management Team - Staffing,Employees,Temporary / Agency - by Accounts Payable,REDACTED PERSONAL DATA,BS1 ,03/02/2023,"3,125.00"
67475233,Senior Management Team,"Children, Families and Community Health Services",Senior Management Team - Staffing,Employees,Temporary / Agency - by Accounts Payable,REDACTED PERSONAL DATA,BS1 ,03/02/2023,"3,125.00"
66293233,Senior Management Team,"Children, Families and Community Health Services",Senior Management Team - Staffing,Employees,Temporary / Agency - by Accounts Payable,REDACTED PERSONAL DATA,BS1 ,01/02/2023,"2,500.00"
66954233,Senior Management Team,"Children, Families and Community Health Services",Senior Management Team - Staffing,Employees,Temporary / Agency - by Accounts Payable,REDACTED PERSONAL DATA,BS1 ,03/02/2023,"4,375.00"
71894234,Senior Management Team,"Children, Families and Community Health Services",Senior Management Team - Staffing,Employees,Temporary / Agency - by Accounts Payable,REDACTED PERSONAL DATA,BS1 ,24/02/2023,"3,125.00"
70609233,Senior Management Team,"Children, Families and Community Health Services",Senior Management Team - Staffing,Employees,Temporary / Agency - by Accounts Payable,REDACTED PERSONAL DATA,BS1 ,20/02/2023,"3,125.00"
72280233,Senior Management Team,"Children, Families and Community Health Services",Senior Management Team - Non Staffing,Supplies and Services,Consultants,REDACTED PERSONAL DATA,BS1 ,27/02/2023,"3,125.00"
67438233,Senior Management Team,"Children, Families and Community Health Services",Senior Management Team - Staffing,Employees,Temporary / Agency - by Accounts Payable,REDACTED PERSONAL DATA,BS1 ,03/02/2023,"3,125.00"
66625233,Licencing,Regulatory Services,Taxis & Private Hire,Supplies and Services,Testing / Inspection,BANSAL MOTORS,SN2 ,01/02/2023,"2,900.00"
72057595,Physical Support,Adults,Physical Support 65 and over,Transfer Payments,Personal Budget - Direct Payments - Domiciliary Care,REDACTED PERSONAL DATA,2969,27/02/2023,733.39
65691577,Physical Support,Adults,Physical Support 65 and over,Transfer Payments,Personal Budget - Direct Payments - Domiciliary Care,REDACTED PERSONAL DATA,2969,01/02/2023,950.41
65691576,Physical Support,Adults,Physical Support 65 and over,Transfer Payments,Personal Budget - Direct Payments - Domiciliary Care,REDACTED PERSONAL DATA,2969,01/02/2023,733.39
70515379,Memory & Cognition,Adults,Support for Memory and Cognition 65 and over,3rd Party Payments,Nursing Care,BARCHESTER HEALTHCARE HOMES,GL7 ,17/02/2023,"7,391.81"
71801233,School Transport,"Education, Inclusion and Skills",Mainstream School Transport,Employees,Temporary / Agency - by Accounts Payable,BARNES COACHES LTD,SN3 ,24/02/2023,"1,797.30"
71132233,School Transport,"Education, Inclusion and Skills",Mainstream School Transport,Transport Costs,Home to School Transport,BARNES COACHES LTD,SN3 ,22/02/2023,"6,972.00"
71801233,School Transport,"Education, Inclusion and Skills",Mainstream School Transport,Transport Costs,Home to School Transport,BARNES COACHES LTD,SN3 ,24/02/2023,"3,360.00"
71131233,School Transport,"Education, Inclusion and Skills",Mainstream School Transport,Transport Costs,Home to School Transport,BARNES COACHES LTD,SN3 ,22/02/2023,"10,956.00"
69498235,DSG Other Funding,DSG Skills and Attainment,DFE Additional Grants,3rd Party Payments,Payment of Pupil Premium to school,BEECHCROFT INFANT SCHOOL,SN2 ,17/02/2023,"8,129.00"
69030252,High Needs Block,DSG Skills and Attainment,SEN Resourcing Assessment Panel,3rd Party Payments,Top up funding - Maintained providers Pre 16,BEECHCROFT INFANT SCHOOL,SN2 ,13/02/2023,"5,013.75"
69493248,Schools - Primary,DSG Skills and Attainment,Primary School Budgets,3rd Party Payments,Mainstream Delegated Funding,BEECHCROFT INFANT SCHOOL,SN2 ,17/02/2023,"97,492.00"
67977239,DSG Other Funding,DSG Skills and Attainment,LAC pupil premium,Supplies and Services,Services,BEECHCROFT INFANT SCHOOL,SN2 ,15/02/2023,600
70515340,Learning Disabilities,Adults,Learning Disability 18 - 64,3rd Party Payments,Residential Care,BEECHWOOD COURT LTD,CF10,17/02/2023,"21,919.92"
70515340,Learning Disabilities,Adults,Learning Disability 18 - 64,Income,Client Contribution - Residential,BEECHWOOD COURT LTD,CF10,17/02/2023,-380.16
70515340,Learning Disabilities,Adults,Learning Disability 18 - 64,3rd Party Payments,Residential Care,BEECHWOOD COURT LTD,CF10,17/02/2023,"31,514.01"
68063234,Highways Inspections & Maintenance,Highway Operations and Car Parking,Streetlighting,Supplies and Services,Materials,BEI LIGHTING LTD,RG14,08/02/2023,995
67626234,Local Transport Plan Funded,Strategic Planning and Highways,Local Safety Schemes,Capital,Contractor Payments,BERNARD GEOMATICS LTD,SN2 ,06/02/2023,"9,176.00"
70722233,Social Care,"Children, Families and Community Health Services",CP & CIN Social Work - North,3rd Party Payments,Personal Needs,BESPOKE GUARDIANS LTD,SN6 ,20/02/2023,"2,625.00"
69448233,Public Health,Public Health,Supplementary SMTR Grant,3rd Party Payments,Contract Payments,BEST - BE A BETTER YOU,SN3 ,15/02/2023,"24,310.00"
70410233,Social Care,"Children, Families and Community Health Services",Assessment and Child Protection Team,3rd Party Payments,S17 Emergency Payments,BEST - BE A BETTER YOU,SN3 ,17/02/2023,720
72419233,Traded Services,"Education, Inclusion and Skills",Plas Pencelli Outdoor Education Centre,Supplies and Services,Equipment,BEST BUNK BEDS LTD,SE16,27/02/2023,"3,836.00"
70308233,Social Care,"Children, Families and Community Health Services",Legal Fees,Supplies and Services,Fees,BEVAN BRITTAN,BS2 ,17/02/2023,"1,503.00"
72178233,Care Management & Safeguarding,Adults,Swindon Safeguarding Partnershiph,Supplies and Services,Fees,BEVAN BRITTAN,BS2 ,24/02/2023,975
72115306,School Transport,"Education, Inclusion and Skills",Special Educational Needs Transport,Transport Costs,Home to School Transport,REDACTED PERSONAL DATA,SN2 ,24/02/2023,812.16
69493240,Schools - Primary,DSG Skills and Attainment,Primary School Budgets,3rd Party Payments,Mainstream Delegated Funding,BISHOPSTONE C E PRIMARY SCHOOL,SN6 ,17/02/2023,"26,319.00"
69496236,DSG Other Funding,DSG Skills and Attainment,DFE Additional Grants,3rd Party Payments,Payment of Pupil Premium to school,BISHOPSTONE C E PRIMARY SCHOOL,SN6 ,17/02/2023,915
67977241,DSG Other Funding,DSG Skills and Attainment,LAC pupil premium,Supplies and Services,Services,BISHOPSWOOD SCHOOL,RG4 ,15/02/2023,600
67977240,DSG Other Funding,DSG Skills and Attainment,LAC pupil premium,Supplies and Services,Services,BISHOPSWOOD SCHOOL,RG4 ,15/02/2023,600
70876233,Streetsmart,Streetsmart,Waterside Fleet Hires,Transport Costs,Vehicle Hire / Contract,BLAKEDALE LTD,PR7 ,22/02/2023,770
67042233,Streetsmart,Streetsmart,Waterside Fleet Hires,Transport Costs,Vehicle Hire / Contract,BLAKEDALE LTD,PR7 ,03/02/2023,770
68218233,Landscaping & Open Space,Culture & Heritage & Art,Moredon Recreation - Multi Sports Hub,Capital,Contractor Payments,BLB KILMINSTER BEER LLP,SN1 ,08/02/2023,"8,125.00"
68351233,Learning Disabilities,Adults,Learning Disability 18 - 64,3rd Party Payments,Personal Budget - Domiciliary care,BLUEBIRD CARE (SWINDON),SN25,08/02/2023,526.24
68349233,Physical Support,Adults,Physical Support 65 and over,3rd Party Payments,Personal Budget - Domiciliary care,BLUEBIRD CARE (SWINDON),SN25,08/02/2023,678.04
68355233,Learning Disabilities,Adults,Learning Disability 18 - 64,3rd Party Payments,Personal Budget - Domiciliary care,BLUEBIRD CARE (SWINDON),SN25,08/02/2023,"1,234.64"
68347233,Learning Disabilities,Adults,Learning Disability 18 - 64,3rd Party Payments,Personal Budget - Domiciliary care,BLUEBIRD CARE (SWINDON),SN25,08/02/2023,"1,092.96"
68353233,Learning Disabilities,Adults,Learning Disability 18 - 64,3rd Party Payments,Personal Budget - Domiciliary care,BLUEBIRD CARE (SWINDON),SN25,08/02/2023,647.68
68584233,Physical Support,Adults,Physical Support 65 and over,3rd Party Payments,Carers,BLUEBIRD CARE (SWINDON),SN25,10/02/2023,647.68
68585233,Physical Support,Adults,Physical Support 65 and over,3rd Party Payments,Carers,BLUEBIRD CARE (SWINDON),SN25,10/02/2023,809.6
68354233,Learning Disabilities,Adults,Learning Disability 18 - 64,3rd Party Payments,Personal Budget - Domiciliary care,BLUEBIRD CARE (SWINDON),SN25,08/02/2023,809.6
68357233,Learning Disabilities,Adults,Learning Disability 18 - 64,3rd Party Payments,Personal Budget - Domiciliary care,BLUEBIRD CARE (SWINDON),SN25,08/02/2023,"1,103.08"
66172233,Physical Support,Adults,Physical Support 65 and over,3rd Party Payments,Personal Budget - Domiciliary care,BLUEBIRD CARE (SWINDON),SN25,01/02/2023,"1,558.48"
68356233,Physical Support,Adults,Physical Support 65 and over,3rd Party Payments,Personal Budget - Domiciliary care,BLUEBIRD CARE (SWINDON),SN25,08/02/2023,"1,558.48"
71818233,Digital & Business Change,Digital & Business Change,IT Operations,Supplies and Services,MFD Charges,BNP PARIBAS LEASING SOLUTIONS,RG21,24/02/2023,882.12
70515365,Mental Health,Adults,Mental Health 65 and over,3rd Party Payments,Residential Care,BOLEALLER HOUSE LTD,EX15,17/02/2023,"5,562.06"
67856233,Physical Support,Adults,Fessey House,Supplies and Services,Food,BOOKER LIMITED,CH5 ,06/02/2023,47.79
67856233,Physical Support,Adults,Fessey House,Supplies and Services,Food,BOOKER LIMITED,CH5 ,06/02/2023,584.41
67859233,Physical Support,Adults,Fessey House,Supplies and Services,Food,BOOKER LIMITED,CH5 ,06/02/2023,509.45
67855233,Physical Support,Adults,Fessey House,Supplies and Services,Food,BOOKER LIMITED,CH5 ,06/02/2023,57.89
67855233,Physical Support,Adults,Fessey House,Supplies and Services,Food,BOOKER LIMITED,CH5 ,06/02/2023,510.82
67857233,Physical Support,Adults,Fessey House,Supplies and Services,Food,BOOKER LIMITED,CH5 ,06/02/2023,546.55
71737233,Physical Support,Adults,Fessey House,Supplies and Services,Food,BOOKER LIMITED,CH5 ,24/02/2023,724.73
67859233,Physical Support,Adults,Fessey House,Supplies and Services,Food,BOOKER LIMITED,CH5 ,06/02/2023,55.38
72439233,Physical Support,Adults,Fessey House,Supplies and Services,Food,BOOKER LIMITED,CH5 ,27/02/2023,473.66
72439233,Physical Support,Adults,Fessey House,Supplies and Services,Food,BOOKER LIMITED,CH5 ,27/02/2023,49.56
67857233,Physical Support,Adults,Fessey House,Supplies and Services,Food,BOOKER LIMITED,CH5 ,06/02/2023,75.54
71737233,Physical Support,Adults,Fessey House,Supplies and Services,Food,BOOKER LIMITED,CH5 ,24/02/2023,97.25
69353233,Physical Support,Adults,Fessey House,Supplies and Services,Food,BOOKER LIMITED,CH5 ,15/02/2023,79.4
69353233,Physical Support,Adults,Fessey House,Supplies and Services,Food,BOOKER LIMITED,CH5 ,15/02/2023,435.51
70515310,Physical Support,Adults,Physical Support 65 and over,3rd Party Payments,Nursing Care,BOTHWELLS LTD,HA6 ,17/02/2023,"-5,701.91"
70515310,Physical Support,Adults,Physical Support 65 and over,3rd Party Payments,Nursing Care,BOTHWELLS LTD,HA6 ,17/02/2023,"-5,788.88"
70515310,Physical Support,Adults,Physical Support 65 and over,3rd Party Payments,Nursing Care,BOTHWELLS LTD,HA6 ,17/02/2023,"2,907.00"
70515310,Physical Support,Adults,Physical Support 18 - 64,Income,Client Contribution - Nursing,BOTHWELLS LTD,HA6 ,17/02/2023,-501.6
70515310,Physical Support,Adults,Physical Support 65 and over,Income,Client Contribution - Nursing,BOTHWELLS LTD,HA6 ,17/02/2023,-920.94
70515310,Physical Support,Adults,Physical Support 65 and over,3rd Party Payments,Nursing Care,BOTHWELLS LTD,HA6 ,17/02/2023,"3,441.81"
70515310,Physical Support,Adults,Physical Support 18 - 64,Income,Client Contribution - Nursing,BOTHWELLS LTD,HA6 ,17/02/2023,-488.16
70515310,Physical Support,Adults,Physical Support 65 and over,3rd Party Payments,Nursing Care,BOTHWELLS LTD,HA6 ,17/02/2023,"3,795.94"
70515310,Physical Support,Adults,Physical Support 65 and over,3rd Party Payments,Nursing Care,BOTHWELLS LTD,HA6 ,17/02/2023,"3,017.28"
70515310,Physical Support,Adults,Physical Support 65 and over,Income,Client Contribution - Nursing,BOTHWELLS LTD,HA6 ,17/02/2023,-717.51
70515310,Physical Support,Adults,Physical Support 65 and over,Income,Client Contribution - Nursing,BOTHWELLS LTD,HA6 ,17/02/2023,-777.62
70515310,Physical Support,Adults,Physical Support 65 and over,3rd Party Payments,Nursing Care,BOTHWELLS LTD,HA6 ,17/02/2023,"8,559.22"
70515310,Physical Support,Adults,Physical Support 18 - 64,3rd Party Payments,Nursing Care,BOTHWELLS LTD,HA6 ,17/02/2023,"3,017.28"
70515310,Physical Support,Adults,Physical Support 65 and over,3rd Party Payments,Nursing Care,BOTHWELLS LTD,HA6 ,17/02/2023,"4,898.28"
70515310,Physical Support,Adults,Physical Support 65 and over,Income,Client Contribution - Nursing,BOTHWELLS LTD,HA6 ,17/02/2023,"-1,071.51"
70515310,Physical Support,Adults,Physical Support 65 and over,Income,Client Contribution - Nursing,BOTHWELLS LTD,HA6 ,17/02/2023,874.44
70515310,Physical Support,Adults,Physical Support 65 and over,3rd Party Payments,Nursing Care,BOTHWELLS LTD,HA6 ,17/02/2023,"5,788.88"
70515310,Learning Disabilities,Adults,Learning Disability 18 - 64,3rd Party Payments,Nursing Care,BOTHWELLS LTD,HA6 ,17/02/2023,"4,807.49"
70515310,Physical Support,Adults,Physical Support 65 and over,Income,Client Contribution - Nursing,BOTHWELLS LTD,HA6 ,17/02/2023,-764.04
70515310,Physical Support,Adults,Physical Support 65 and over,Income,Client Contribution - Nursing,BOTHWELLS LTD,HA6 ,17/02/2023,-874.44
70515310,Physical Support,Adults,Physical Support 65 and over,3rd Party Payments,Nursing Care,BOTHWELLS LTD,HA6 ,17/02/2023,"4,399.84"
70515310,Physical Support,Adults,Physical Support 65 and over,3rd Party Payments,Nursing Care,BOTHWELLS LTD,HA6 ,17/02/2023,"-3,565.88"
70515310,Physical Support,Adults,Physical Support 65 and over,3rd Party Payments,Nursing Care,BOTHWELLS LTD,HA6 ,17/02/2023,"2,415.60"
71731233,Property Management,Property,Property Assets,Supplies and Services,Fees,BPE SOLICITORS LLP,GL50,24/02/2023,"2,600.00"
68374233,Acquisitions,HRA Capital Financing,HRA Acquisitions Programme,Capital,Acquisitions,BPE SOLICITORS LLP,GL50,10/02/2023,6
68374233,Acquisitions,HRA Capital Financing,HRA Acquisitions Programme,Capital,Acquisitions,BPE SOLICITORS LLP,GL50,10/02/2023,598
70551233,Property Management,Property,Property Assets,Supplies and Services,Fees,BPE SOLICITORS LLP,GL50,20/02/2023,"1,900.00"
67977242,DSG Other Funding,DSG Skills and Attainment,LAC pupil premium,Supplies and Services,Services,BRADON FOREST SCHOOL,SN5 ,15/02/2023,600
70672233,Early Years Block,DSG Skills and Attainment,Free Nursery Education Commissioning - three & four  year olds,3rd Party Payments,Contracts - Child Care,BRAMBLE HOUSE DAY NURSERY LTD,SN2 ,22/02/2023,627
70831234,High Needs Block,DSG Skills and Attainment,SEN Resourcing Assessment Panel,3rd Party Payments,Top up funding - Maintained providers Pre 16,BRAMBLE HOUSE DAY NURSERY LTD,SN2 ,22/02/2023,660
68169233,Social Care,"Children, Families and Community Health Services",External Placements,3rd Party Payments,Residential Care,BRANAS ISAF LIMITED,EN6 ,08/02/2023,"22,200.08"
67745234,Disabled Children,"Children, Families and Community Health Services",DCT Daytime Short Breaks,Transfer Payments,Personal Budget - Direct Payments - Other,REDACTED PERSONAL DATA,SN4 ,06/02/2023,832
67977243,DSG Other Funding,DSG Skills and Attainment,LAC pupil premium,Supplies and Services,Services,BRIDGWATER & TAUNTON COLLEGE TRUST,TA6 ,15/02/2023,600
68820233,Early Years Block,DSG Skills and Attainment,Free Nursery Education Commissioning - three & four  year olds,3rd Party Payments,Contracts - Child Care,BRIDLEWOOD PRIMARY SCHOOL (INACTIVE SEE 6134295),SN25,15/02/2023,"7,715.78"
69700234,"Data, Performance and Insight",Digital & Business Change,"Performance, Intelligence and Insight",Supplies and Services,Services,BRIGHTER FUTURES FOR CHILDREN LTD,RG1 ,15/02/2023,720
71144233,Human Resources and Organisational Development,"People, Culture and Organisational Resilience",Organisational Development,Supplies and Services,Design & Printing Costs,BRISTOL CITY COUNCIL,BS1 ,22/02/2023,495
69837233,Education,"Education, Inclusion and Skills",Education Standards and Quality,Supplies and Services,Fees,BRISTOL DIOCESAN BOARD OF FINANCE LTD,BS34,15/02/2023,"5,485.78"
69838233,Education,"Education, Inclusion and Skills",Education Standards and Quality,Supplies and Services,Fees,BRISTOL DIOCESAN BOARD OF FINANCE LTD,BS34,15/02/2023,"2,062.50"
67198233,Property Management,Property,Corporate Repairs & Maintenance Programme,Premises Costs,Maintenance - Buildings,BRISTOL FIRE,BS37,03/02/2023,673
67199233,DMJ Tower,Housing Services,DMJ Apartments,Premises Costs,Maintenance - Buildings,BRISTOL FIRE,BS37,03/02/2023,"2,581.77"
68666233,Streetsmart,Streetsmart,Waterside Depot,Premises Costs,Maintenance - Buildings,BRISTOL FIRE,BS37,10/02/2023,543.4
67407233,Homelessness and Travellers,Housing Services,ASC Rental Properties,Premises Costs,Electricity,BRITISH GAS TRADING LTD,SL4 ,03/02/2023,"2,751.58"
68140233,Town Centre,"Economy, Growth and Place","No 7, 9 & 11 Carriage works @ Railway Village",Capital,"Equipment, Fixtures & Fittings",BRITISH GAS TRADING LTD,S98 ,08/02/2023,"1,875.38"
71874233,Revenues & Benefits,Revenues & Benefits,Swindon Emergency Assistance Fund,Supplies and Services,Materials,BRITISH HEART FOUNDATION,NW1 ,24/02/2023,565
71431234,Lydiard Park,Culture & Heritage,Lydiard : Hotel Operations,Supplies and Services,Services,BRITISH TELECOMMUNICATIONS PLC,S98 ,22/02/2023,"2,709.00"
65200234,Lydiard Park,Culture & Heritage,Lydiard : Hotel Operations,Supplies and Services,Services,BRITISH TELECOMMUNICATIONS PLC,DH98,15/02/2023,428.31
11514221,Schools Block - Central,DSG Skills and Attainment,Broadband Connectivity,Supplies and Services,Services,BRITISH TELECOMMUNICATIONS PLC,DH98,15/02/2023,"-1,124.51"
69866233,Town Centre,"Economy, Growth and Place",Fleming Way Improvement Scheme,Capital,Contractor Payments,BRITISH TELECOMMUNICATIONS PLC,DH98,15/02/2023,"470,956.08"
11509222,Schools Block - Central,DSG Skills and Attainment,Broadband Connectivity,Supplies and Services,Services,BRITISH TELECOMMUNICATIONS PLC,DH98,15/02/2023,"-1,085.00"
71543233,Corporate,Corporate Finance,Corporate Financial Management,Supplies and Services,Fees,BROADSTONE CONSULTANTS & ACTUARIES LTD,BS1 ,22/02/2023,"2,750.00"
71542233,Corporate,Corporate Finance,Corporate Financial Management,Supplies and Services,Fees,BROADSTONE CONSULTANTS & ACTUARIES LTD,BS1 ,22/02/2023,"6,623.75"
69030342,High Needs Block,DSG Skills and Attainment,Post 16 - New Responsibilties,3rd Party Payments,Independent Service Provider- Post 16,BRUNEL EDUCATION,SN25,13/02/2023,"119,529.08"
69030309,High Needs Block,DSG Skills and Attainment,SEN Resourcing Assessment Panel,3rd Party Payments,Top up funding - Academies and Free Schools Pre 16,REDACTED PERSONAL DATA,SN25,13/02/2023,"148,952.20"
67977366,DSG Other Funding,DSG Skills and Attainment,LAC pupil premium,Supplies and Services,Services,REDACTED PERSONAL DATA,SN25,15/02/2023,600
70662233,Early Years Block,DSG Skills and Attainment,Free Nursery Education Commissioning - three & four  year olds,3rd Party Payments,Contracts - Child Care,REDACTED PERSONAL DATA,SN25,22/02/2023,"2,280.00"
69030335,High Needs Block,DSG Skills and Attainment,SEN Resourcing Assessment Panel,3rd Party Payments,Top up funding - Academies and Free Schools Post 16,REDACTED PERSONAL DATA,SN25,13/02/2023,"57,068.66"
69030308,High Needs Block,DSG Skills and Attainment,SEN Resourcing Assessment Panel,3rd Party Payments,Top up funding - Academies and Free Schools Pre 16,REDACTED PERSONAL DATA,SN25,13/02/2023,"97,563.91"
71868233,SEND Funds,Skills & Attainment,Education High Needs Provision,Capital,Contractor Payments,REDACTED PERSONAL DATA,SN25,24/02/2023,"31,827.16"
71867233,SEND Funds,Skills & Attainment,Westlea School Improvements to Expand SEN Unit,Capital,Contractor Payments,REDACTED PERSONAL DATA,SN25,24/02/2023,"95,000.00"
70582233,High Needs Block,DSG Skills and Attainment,SEN Resourcing Assessment Panel,Supplies and Services,Services,REDACTED PERSONAL DATA,SN2 ,20/02/2023,"1,540.00"
69030327,High Needs Block,DSG Skills and Attainment,SEN Resourcing Assessment Panel,3rd Party Payments,Top up funding - Academies and Free Schools Pre 16,REDACTED PERSONAL DATA,SN25,13/02/2023,"9,249.73"
69030312,High Needs Block,DSG Skills and Attainment,SEN Resourcing Assessment Panel,3rd Party Payments,Top up funding - Academies and Free Schools Pre 16,REDACTED PERSONAL DATA,SN25,13/02/2023,"139,410.69"
69529233,High Needs Block,DSG Skills and Attainment,Advisory Teacher Services,Supplies and Services,Payments to Educational Bodies,REDACTED PERSONAL DATA,SN25,17/02/2023,"11,316.00"
69528233,High Needs Block,DSG Skills and Attainment,Advisory Teacher Services,Supplies and Services,Payments to Educational Bodies,REDACTED PERSONAL DATA,SN25,17/02/2023,"7,250.00"
69030332,High Needs Block,DSG Skills and Attainment,SEN Resourcing Assessment Panel,3rd Party Payments,Top up funding - Academies and Free Schools Pre 16,REDACTED PERSONAL DATA,SN25,13/02/2023,"24,428.28"
67765233,High Needs Block,DSG Skills and Attainment,SEN Resourcing Assessment Panel,Supplies and Services,Services,REDACTED PERSONAL DATA,SN2 ,06/02/2023,560
68966233,Early Years Block,DSG Skills and Attainment,Free Nursery Education Commissioning - three & four  year olds,3rd Party Payments,Contracts - Child Care,REDACTED PERSONAL DATA,SN25,15/02/2023,"7,188.91"
70581233,High Needs Block,DSG Skills and Attainment,SEN Resourcing Assessment Panel,Supplies and Services,Services,REDACTED PERSONAL DATA,SN2 ,20/02/2023,"15,120.00"
69030331,High Needs Block,DSG Skills and Attainment,SEN Resourcing Assessment Panel,3rd Party Payments,Top up funding - Academies and Free Schools Pre 16,REDACTED PERSONAL DATA,SN25,13/02/2023,"21,503.03"
69030320,High Needs Block,DSG Skills and Attainment,SEN Resourcing Assessment Panel,3rd Party Payments,Top up funding - Academies and Free Schools Pre 16,REDACTED PERSONAL DATA,SN25,13/02/2023,"41,917.41"
69030307,High Needs Block,DSG Skills and Attainment,SEN Resourcing Assessment Panel,3rd Party Payments,Top up funding - Academies and Free Schools Pre 16,REDACTED PERSONAL DATA,SN25,13/02/2023,"166,760.50"
69030292,High Needs Block,DSG Skills and Attainment,SEN Resourcing Assessment Panel,3rd Party Payments,Top up funding - Academies and Free Schools Pre 16,REDACTED PERSONAL DATA,SN25,13/02/2023,"3,392.92"
67977365,DSG Other Funding,DSG Skills and Attainment,LAC pupil premium,Supplies and Services,Services,REDACTED PERSONAL DATA,SN25,15/02/2023,600
71126233,DSG Other Funding,DSG Skills and Attainment,LAC pupil premium,Supplies and Services,Services,BRUNSWICK PRIMARY SCHOOL,BN3 ,24/02/2023,600
68208233,NEV,"Economy, Growth and Place",Southern Connector Road,Capital,Consultants,BRUTON KNOWLES,GL2 ,08/02/2023,"1,210.25"
69205233,NEV,"Economy, Growth and Place",Southern Connector Road,Capital,Consultants,BRUTON KNOWLES,GL2 ,13/02/2023,788.75
72074233,NEV,"Economy, Growth and Place",Southern Connector Road,Capital,Contractor Payments,BUCKINGHAM GROUP CONTRACTING LIMITED,MK18,24/02/2023,"1,166,924.41"
67432233,Neighbourhood Wardens,Special Services,Neighbourhood Wardens,Supplies and Services,Hire / Rental,BUNZL CLEANING & HYGIENE SUPPLIES,SL3 ,03/02/2023,"1,246.25"
69745233,Customer Strategy & Operations,"People, Culture and Organisational Resilience",Cemeteries & Crematoria,Supplies and Services,Goods for resale,BURLINGHAM MEMORIAL SOLUTIONS LTD,NR13,15/02/2023,"11,098.00"
70833233,High Needs Block,DSG Skills and Attainment,SEN Resourcing Assessment Panel,3rd Party Payments,Top up funding - Maintained providers Pre 16,"BUSY BEES, PEATMOOR",SN5 ,22/02/2023,660
66563233,Social Care,"Children, Families and Community Health Services",External Placements,3rd Party Payments,Independent Fostering Agency Placements,BY THE BRIDGE LIMITED,ME9 ,01/02/2023,"2,369.33"
68437233,Social Care,"Children, Families and Community Health Services",External Placements,3rd Party Payments,Independent Fostering Agency Placements,BY THE BRIDGE LIMITED,ME9 ,10/02/2023,"3,974.36"
66743233,Streetsmart,Streetsmart,Waterside Fleet Workshops,Transport Costs,Repairs & Maintenance - Vehicles,C P DAVIDSON & SONS LTD,PR7 ,01/02/2023,"6,089.04"
70515324,Learning Disabilities,Adults,Learning Disability 18 - 64,Income,Client Contribution - Residential,C.H.O.I.C.E LTD,RG12,17/02/2023,-489.11
70515324,Learning Disabilities,Adults,Learning Disability 18 - 64,3rd Party Payments,Residential Care,C.H.O.I.C.E LTD,RG12,17/02/2023,"12,894.04"
70515326,Learning Disabilities,Adults,Learning Disability 65 and over,3rd Party Payments,Residential Care,C.H.O.I.C.E LTD,RG12,17/02/2023,"9,830.13"
70515323,Learning Disabilities,Adults,Learning Disability 18 - 64,3rd Party Payments,Residential Care,C.H.O.I.C.E LTD,RG12,17/02/2023,"7,885.82"
70515326,Learning Disabilities,Adults,Learning Disability 65 and over,Income,Client Contribution - Residential,C.H.O.I.C.E LTD,RG12,17/02/2023,-749.95
70515325,Learning Disabilities,Adults,Learning Disability 65 and over,Income,Client Contribution - Residential,C.H.O.I.C.E LTD,RG12,17/02/2023,-911.27
70515327,Learning Disabilities,Adults,Learning Disability 18 - 64,3rd Party Payments,Residential Care,C.H.O.I.C.E LTD,RG12,17/02/2023,"12,886.55"
70515326,Learning Disabilities,Adults,Learning Disability 18 - 64,3rd Party Payments,Residential Care,C.H.O.I.C.E LTD,RG12,17/02/2023,"8,044.36"
70515325,Learning Disabilities,Adults,Learning Disability 65 and over,3rd Party Payments,Residential Care,C.H.O.I.C.E LTD,RG12,17/02/2023,"10,487.82"
70515326,Learning Disabilities,Adults,Learning Disability 18 - 64,Income,Client Contribution - Residential,C.H.O.I.C.E LTD,RG12,17/02/2023,-460.82
70515326,Learning Disabilities,Adults,Learning Disability 65 and over,3rd Party Payments,Residential Care,C.H.O.I.C.E LTD,RG12,17/02/2023,"11,166.02"
70515326,Learning Disabilities,Adults,Learning Disability 65 and over,Income,Client Contribution - Residential,C.H.O.I.C.E LTD,RG12,17/02/2023,-649.2
70515325,Learning Disabilities,Adults,Learning Disability 65 and over,Income,Client Contribution - Residential,C.H.O.I.C.E LTD,RG12,17/02/2023,-716.1
70515327,Physical Support,Adults,Physical Support 18 - 64,3rd Party Payments,Residential Care,C.H.O.I.C.E LTD,RG12,17/02/2023,"12,048.30"
70515322,Learning Disabilities,Adults,Learning Disability 18 - 64,3rd Party Payments,Residential Care,C.H.O.I.C.E LTD,RG12,17/02/2023,"10,780.86"
70515322,Learning Disabilities,Adults,Learning Disability 18 - 64,Income,Client Contribution - Residential,C.H.O.I.C.E LTD,RG12,17/02/2023,-351.45
70515327,Learning Disabilities,Adults,Learning Disability 18 - 64,Income,Client Contribution - Residential,C.H.O.I.C.E LTD,RG12,17/02/2023,-536.01
70515323,Learning Disabilities,Adults,Learning Disability 18 - 64,Income,Client Contribution - Residential,C.H.O.I.C.E LTD,RG12,17/02/2023,-498.54
70515325,Learning Disabilities,Adults,Learning Disability 65 and over,3rd Party Payments,Residential Care,C.H.O.I.C.E LTD,RG12,17/02/2023,"9,956.24"
70515327,Physical Support,Adults,Physical Support 18 - 64,Income,Client Contribution - Residential,C.H.O.I.C.E LTD,RG12,17/02/2023,-488.16
70515327,Learning Disabilities,Adults,Learning Disability 18 - 64,3rd Party Payments,Residential Care,C.H.O.I.C.E LTD,RG12,17/02/2023,"13,762.65"
70515327,Learning Disabilities,Adults,Learning Disability 18 - 64,Income,Client Contribution - Residential,C.H.O.I.C.E LTD,RG12,17/02/2023,-244.67
67977285,DSG Other Funding,DSG Skills and Attainment,LAC pupil premium,Supplies and Services,Services,REDACTED PERSONAL DATA,BS15,15/02/2023,600
70096233,Youth Offending,"Children, Families and Community Health Services",YJS - Effective Practise,Employees,Training,CACI LTD,W14 ,17/02/2023,"4,150.00"
67295233,Homeline,Special Services,Homeline,Supplies and Services,Equipment,CAIR (UK) LTD,HX1 ,03/02/2023,"4,500.00"
71806234,Homeline,Special Services,Homeline,Supplies and Services,Materials,CAIR (UK) LTD,HX1 ,24/02/2023,"3,950.00"
67296233,Homeline,Special Services,Homeline,Supplies and Services,Materials,CAIR (UK) LTD,HX1 ,03/02/2023,"5,000.00"
68167233,Social Care,"Children, Families and Community Health Services",External Placements,3rd Party Payments,Residential Care,CALCOT SERVICES FOR CHILDREN LTD,RG7 ,08/02/2023,"26,519.92"
68168233,Social Care,"Children, Families and Community Health Services",External Placements,3rd Party Payments,Residential Care,CALCOT SERVICES FOR CHILDREN LTD,RG7 ,08/02/2023,"26,999.84"
68187233,Social Care,"Children, Families and Community Health Services",External Placements,3rd Party Payments,Independent Fostering Agency Placements,CALDECOTT FOSTERING LTD,TN25,08/02/2023,"6,454.84"
72057443,Learning Disabilities,Adults,Learning Disability 18 - 64,Transfer Payments,Personal Budget - Direct Payments - Domiciliary Care,REDACTED PERSONAL DATA,SP11,27/02/2023,"1,844.32"
65691419,Learning Disabilities,Adults,Learning Disability 18 - 64,Transfer Payments,Personal Budget - Direct Payments - Domiciliary Care,REDACTED PERSONAL DATA,SP11,01/02/2023,"1,844.32"
65691510,Learning Disabilities,Adults,Learning Disability 18 - 64,Transfer Payments,Personal Budget - Direct Payments - Domiciliary Care,REDACTED PERSONAL DATA,SP11,01/02/2023,631.33
72057532,Learning Disabilities,Adults,Learning Disability 18 - 64,Transfer Payments,Personal Budget - Direct Payments - Domiciliary Care,REDACTED PERSONAL DATA,SP11,27/02/2023,631.33
68763233,Lydiard Park,Culture & Heritage,Lydiard : Hotel Operations,Premises Costs,Gas,CALOR GAS LTD,CV34,10/02/2023,"2,059.20"
66305233,Lydiard Park,Culture & Heritage,Lydiard : Hotel Operations,Premises Costs,Gas,CALOR GAS LTD,CV34,01/02/2023,"1,898.60"
66306233,Lydiard Park,Culture & Heritage,Lydiard House & Park,Premises Costs,Gas,CALOR GAS LTD,CV34,01/02/2023,"1,495.20"
71721233,Lydiard Park,Culture & Heritage,Lydiard : Hotel Operations,Premises Costs,Gas,CALOR GAS LTD,CV34,24/02/2023,"1,932.70"
65628233,Physical Support,Adults,Physical Support 18 - 64,Transfer Payments,Personal Budget - Direct Payments - Domiciliary Care,REDACTED PERSONAL DATA,SN25,01/02/2023,824.47
72005233,Physical Support,Adults,Physical Support 18 - 64,Transfer Payments,Personal Budget - Direct Payments - Domiciliary Care,REDACTED PERSONAL DATA,SN25,27/02/2023,824.47
Corporate Card Transaction,Homelessness and Travellers,Housing Services,Bed and Breakfast Accommodation,Transfer Payments,Payment of Costs,Campanile Hotels,,22/02/2023,770
Corporate Card Transaction,Homelessness and Travellers,Housing Services,Bed and Breakfast Accommodation,Transfer Payments,Payment of Costs,Campanile Hotels,,15/02/2023,588
71436237,Void Repairs,Supervision & Management,Void Property Repairs,3rd Party Payments,Contract Payments,CANTILLON GROUP LTD,SN25,22/02/2023,"2,920.00"
71436237,Planned Maintenance Programme,HRA Capital Financing,Bathrooms,Capital,Contractor Payments,CANTILLON GROUP LTD,SN25,22/02/2023,"2,506.56"
71436237,Void Repairs,Supervision & Management,Void Property Repairs,3rd Party Payments,Contract Payments,CANTILLON GROUP LTD,SN25,22/02/2023,"3,246.27"
71436237,Planned Maintenance Programme,HRA Capital Financing,Bathrooms,Capital,Contractor Payments,CANTILLON GROUP LTD,SN25,22/02/2023,"1,356.67"
71436237,Void Repairs,Supervision & Management,Void Property Repairs,3rd Party Payments,Contract Payments,CANTILLON GROUP LTD,SN25,22/02/2023,"-40,000.00"
71436237,Void Repairs,Supervision & Management,Void Property Repairs,3rd Party Payments,Contract Payments,CANTILLON GROUP LTD,SN25,22/02/2023,"5,810.67"
71436237,Void Repairs,Supervision & Management,Void Property Repairs,3rd Party Payments,Contract Payments,CANTILLON GROUP LTD,SN25,22/02/2023,"6,284.80"
71436237,Void Repairs,Supervision & Management,Void Property Repairs,3rd Party Payments,Contract Payments,CANTILLON GROUP LTD,SN25,22/02/2023,"6,115.63"
67531233,Responsive Repairs,Repairs,Responsive Repairs,3rd Party Payments,Contract Payments,CANTILLON GROUP LTD,SN25,03/02/2023,778
71436237,Void Repairs,Supervision & Management,Void Property Repairs,3rd Party Payments,Contract Payments,CANTILLON GROUP LTD,SN25,22/02/2023,"6,316.15"
71436237,Void Repairs,Supervision & Management,Void Property Repairs,3rd Party Payments,Contract Payments,CANTILLON GROUP LTD,SN25,22/02/2023,"5,738.16"
71436237,Acquisitions,HRA Capital Financing,HRA Acquisitions Programme,Capital,Contractor Payments,CANTILLON GROUP LTD,SN25,22/02/2023,"2,054.84"
71436237,Void Repairs,Supervision & Management,Void Property Repairs,3rd Party Payments,Contract Payments,CANTILLON GROUP LTD,SN25,22/02/2023,861.6
71436237,Void Repairs,Supervision & Management,Void Property Repairs,3rd Party Payments,Contract Payments,CANTILLON GROUP LTD,SN25,22/02/2023,"3,575.97"
71436237,Void Repairs,Supervision & Management,Void Property Repairs,3rd Party Payments,Contract Payments,CANTILLON GROUP LTD,SN25,22/02/2023,"6,247.98"
71436237,Void Repairs,Supervision & Management,Void Property Repairs,3rd Party Payments,Contract Payments,CANTILLON GROUP LTD,SN25,22/02/2023,"2,635.21"
71436237,Acquisitions,HRA Capital Financing,HRA Acquisitions Programme,Capital,Contractor Payments,CANTILLON GROUP LTD,SN25,22/02/2023,"2,299.17"
71436237,Void Repairs,Supervision & Management,Void Property Repairs,3rd Party Payments,Contract Payments,CANTILLON GROUP LTD,SN25,22/02/2023,"40,000.00"
71436237,Planned Maintenance Programme,HRA Capital Financing,Kitchens,Capital,Contractor Payments,CANTILLON GROUP LTD,SN25,22/02/2023,"4,827.94"
71436237,Planned Maintenance Programme,HRA Capital Financing,Kitchens,Capital,Contractor Payments,CANTILLON GROUP LTD,SN25,22/02/2023,"3,776.82"
71436237,Acquisitions,HRA Capital Financing,HRA Acquisitions Programme,Capital,Contractor Payments,CANTILLON GROUP LTD,SN25,22/02/2023,"3,308.57"
71436237,Void Repairs,Supervision & Management,Void Property Repairs,3rd Party Payments,Contract Payments,CANTILLON GROUP LTD,SN25,22/02/2023,"4,046.57"
71436237,Void Repairs,Supervision & Management,Void Property Repairs,3rd Party Payments,Contract Payments,CANTILLON GROUP LTD,SN25,22/02/2023,"4,906.27"
67338233,Digital & Business Change,Digital & Business Change,IT Operations,3rd Party Payments,Strategic Partnership Service Charges,CAPITA BUSINESS SERVICES LTD,DL1 ,03/02/2023,"12,974.81"
67336233,Digital & Business Change,Digital & Business Change,IT Operations,3rd Party Payments,Strategic Partnership Service Charges,CAPITA BUSINESS SERVICES LTD,DL1 ,03/02/2023,"12,974.81"
72186233,Revenues & Benefits,Revenues & Benefits,Benefits,3rd Party Payments,Strategic Partnership Service Charges,CAPITA BUSINESS SERVICES LTD,DL1 ,24/02/2023,"2,613.00"
66230233,Revenues & Benefits,Revenues & Benefits,Revenues,3rd Party Payments,Strategic Partnership Service Charges,CAPITA BUSINESS SERVICES LTD,DL1 ,01/02/2023,"120,096.84"
72186233,Revenues & Benefits,Revenues & Benefits,Revenues,3rd Party Payments,Strategic Partnership Service Charges,CAPITA BUSINESS SERVICES LTD,DL1 ,24/02/2023,"13,892.34"
72186233,Revenues & Benefits,Revenues & Benefits,Benefits,3rd Party Payments,Strategic Partnership Service Charges,CAPITA BUSINESS SERVICES LTD,DL1 ,24/02/2023,925
72186233,Revenues & Benefits,Revenues & Benefits,Revenues,3rd Party Payments,Strategic Partnership Service Charges,CAPITA BUSINESS SERVICES LTD,DL1 ,24/02/2023,"120,096.84"
66230233,Revenues & Benefits,Revenues & Benefits,Revenues,3rd Party Payments,Strategic Partnership Service Charges,CAPITA BUSINESS SERVICES LTD,DL1 ,01/02/2023,"13,892.34"
66230233,Revenues & Benefits,Revenues & Benefits,Benefits,3rd Party Payments,Strategic Partnership Service Charges,CAPITA BUSINESS SERVICES LTD,DL1 ,01/02/2023,"2,613.00"
72186233,Revenues & Benefits,Revenues & Benefits,Benefits,3rd Party Payments,Strategic Partnership Service Charges,CAPITA BUSINESS SERVICES LTD,DL1 ,24/02/2023,"2,614.06"
66230233,Revenues & Benefits,Revenues & Benefits,Benefits,3rd Party Payments,Strategic Partnership Service Charges,CAPITA BUSINESS SERVICES LTD,DL1 ,01/02/2023,"212,484.03"
72186233,Revenues & Benefits,Revenues & Benefits,Benefits,3rd Party Payments,Strategic Partnership Service Charges,CAPITA BUSINESS SERVICES LTD,DL1 ,24/02/2023,"212,484.03"
68004233,Human Resources and Organisational Development,"People, Culture and Organisational Resilience",HR Systems & Strategy,Supplies and Services,Fees,CAPITA RESOURCING LTD,RG22,08/02/2023,978.84
68004233,Human Resources and Organisational Development,"People, Culture and Organisational Resilience",HR Systems & Strategy,Supplies and Services,Fees,CAPITA RESOURCING LTD,RG22,08/02/2023,"2,960.00"
67194233,Social Care,"Children, Families and Community Health Services",External Placements,3rd Party Payments,Independent Fostering Agency Placements,CAPSTONE FOSTER CARE (SW) LTD,TQ12,03/02/2023,"3,239.88"
67195233,Social Care,"Children, Families and Community Health Services",External Placements,3rd Party Payments,Independent Fostering Agency Placements,CAPSTONE FOSTER CARE (SW) LTD,TQ12,03/02/2023,"2,532.10"
67194234,Social Care,"Children, Families and Community Health Services",External Placements,3rd Party Payments,Independent Fostering Agency Placements,CAPSTONE FOSTER CARE (SW) LTD,TQ12,03/02/2023,"6,779.92"
69994233,Streetsmart,Streetsmart,Waterside Fleet Workshops,Supplies and Services,Materials,CAR AND TRUCK SERVICES (SWINDON) LTD,SN1 ,20/02/2023,246.41
69994233,Streetsmart,Streetsmart,Waterside Fleet Workshops,Supplies and Services,Materials,CAR AND TRUCK SERVICES (SWINDON) LTD,SN1 ,20/02/2023,250.9
69994233,Streetsmart,Streetsmart,Waterside Fleet Workshops,Supplies and Services,Materials,CAR AND TRUCK SERVICES (SWINDON) LTD,SN1 ,20/02/2023,14.76
70515401,Learning Disabilities,Adults,Learning Disability 18 - 64,3rd Party Payments,Supported Lodgings (Childrens)/Supported Living (Adults),CAREFORYOU LTD,N13 ,17/02/2023,"5,753.79"
69014234,Physical Support,Adults,Physical Support 65 and over,3rd Party Payments,Personal Budget - Domiciliary care,CAREWATCH (SWINDON),BA14,15/02/2023,"1,315.84"
69012240,Physical Support,Adults,Physical Support 65 and over,3rd Party Payments,Personal Budget - Domiciliary care,CAREWATCH (SWINDON),BA14,15/02/2023,842.96
69014237,Physical Support,Adults,Physical Support 18 - 64,3rd Party Payments,Personal Budget - Domiciliary care,CAREWATCH (SWINDON),BA14,15/02/2023,"2,888.68"
69012237,Mental Health,Adults,Mental Health 65 and over,3rd Party Payments,Personal Budget - Domiciliary care,CAREWATCH (SWINDON),BA14,15/02/2023,89.58
69012237,Mental Health,Adults,Mental Health 65 and over,3rd Party Payments,Personal Budget - Domiciliary care,CAREWATCH (SWINDON),BA14,15/02/2023,"1,164.58"
69014240,Physical Support,Adults,Physical Support 65 and over,3rd Party Payments,Personal Budget - Domiciliary care,CAREWATCH (SWINDON),BA14,15/02/2023,"1,423.78"
69012245,Physical Support,Adults,Physical Support 65 and over,3rd Party Payments,Personal Budget - Domiciliary care,CAREWATCH (SWINDON),BA14,15/02/2023,791.56
69012241,Physical Support,Adults,Physical Support 65 and over,3rd Party Payments,Personal Budget - Domiciliary care,CAREWATCH (SWINDON),BA14,15/02/2023,945.76
69014236,Physical Support,Adults,Physical Support 65 and over,3rd Party Payments,Personal Budget - Domiciliary care,CAREWATCH (SWINDON),BA14,15/02/2023,"1,295.28"
69013233,Physical Support,Adults,Physical Support 65 and over,3rd Party Payments,Personal Budget - Domiciliary care,CAREWATCH (SWINDON),BA14,15/02/2023,"3,084.00"
70142233,Public Health,Public Health,Health Checks,3rd Party Payments,Contract Payments,CARFAX HEALTH ENTERPRISE CIC,SN5 ,22/02/2023,828
67188233,Social Care,"Children, Families and Community Health Services",Unaccompanied Asylum Seeking Children (UASC),3rd Party Payments,Semi Independent,CARING FOR COMMUNITIES AND PEOPLE (CCP),GL50,03/02/2023,"2,630.00"
67186233,Social Care,"Children, Families and Community Health Services",External Placements,3rd Party Payments,Residential Care,CARING FOR COMMUNITIES AND PEOPLE (CCP),GL50,03/02/2023,"3,542.84"
67186236,Social Care,"Children, Families and Community Health Services",Unaccompanied Asylum Seeking Children (UASC),3rd Party Payments,Semi Independent,CARING FOR COMMUNITIES AND PEOPLE (CCP),GL50,03/02/2023,"3,770.00"
67186234,Social Care,"Children, Families and Community Health Services",Placement - Care Leaver Team,3rd Party Payments,Semi Independent,CARING FOR COMMUNITIES AND PEOPLE (CCP),GL50,03/02/2023,"2,630.00"
68523233,Disabled Children,"Children, Families and Community Health Services",DCT Daytime Short Breaks,3rd Party Payments,Respite Care,CARING FOR COMMUNITIES AND PEOPLE (CCP),GL50,10/02/2023,844
67187233,Social Care,"Children, Families and Community Health Services",Placement - Care Leaver Team,3rd Party Payments,Semi Independent,CARING FOR COMMUNITIES AND PEOPLE (CCP),GL50,03/02/2023,"2,630.00"
67187234,Social Care,"Children, Families and Community Health Services",Placement - Care Leaver Team,3rd Party Payments,Semi Independent,CARING FOR COMMUNITIES AND PEOPLE (CCP),GL50,03/02/2023,"2,630.00"
71371233,Social Care,"Children, Families and Community Health Services",Placement - Care Leaver Team,3rd Party Payments,Semi Independent,CARING FOR COMMUNITIES AND PEOPLE (CCP),GL50,22/02/2023,"1,940.00"
67186235,Social Care,"Children, Families and Community Health Services",Placement - Care Leaver Team,3rd Party Payments,Semi Independent,CARING FOR COMMUNITIES AND PEOPLE (CCP),GL50,03/02/2023,"3,770.00"
70058233,Disabled Children,"Children, Families and Community Health Services",DCT Daytime Short Breaks,3rd Party Payments,Respite Care,CARING FOR COMMUNITIES AND PEOPLE (CCP),GL50,17/02/2023,"1,231.60"
70982241,Physical Support,Adults,Physical Support 65 and over,3rd Party Payments,Personal Budget - Domiciliary care,CARING HEART CARERS LIMITED,SN25,22/02/2023,"1,197.62"
68392233,Physical Support,Adults,Physical Support 18 - 64,3rd Party Payments,Personal Budget - Domiciliary care,CARING HEART CARERS LIMITED,SN25,10/02/2023,977.4
68394233,Physical Support,Adults,Physical Support 18 - 64,3rd Party Payments,Personal Budget - Domiciliary care,CARING HEART CARERS LIMITED,SN25,10/02/2023,"1,114.20"
68393233,Physical Support,Adults,Physical Support 65 and over,3rd Party Payments,Personal Budget - Domiciliary care,CARING HEART CARERS LIMITED,SN25,10/02/2023,"1,047.42"
65681233,Learning Disabilities,Adults,Learning Disability 18 - 64,Transfer Payments,Personal Budget - Direct Payments - Domiciliary Care,REDACTED PERSONAL DATA,SN2 ,01/02/2023,"2,357.21"
72057248,Learning Disabilities,Adults,Learning Disability 18 - 64,Transfer Payments,Personal Budget - Direct Payments - Domiciliary Care,REDACTED PERSONAL DATA,SN2 ,27/02/2023,"2,357.21"
72057485,Physical Support,Adults,Physical Support 65 and over,3rd Party Payments,Carers,REDACTED PERSONAL DATA,SP11,27/02/2023,527.66
65691460,Physical Support,Adults,Physical Support 65 and over,3rd Party Payments,Carers,REDACTED PERSONAL DATA,SP11,01/02/2023,527.66
72057487,Learning Disabilities,Adults,Learning Disability 18 - 64,Transfer Payments,Personal Budget - Direct Payments - Domiciliary Care,REDACTED PERSONAL DATA,SN2 ,27/02/2023,"1,407.87"
72057488,Learning Disabilities,Adults,Learning Disability 18 - 64,Transfer Payments,Personal Budget - Direct Payments - Other,REDACTED PERSONAL DATA,SN2 ,27/02/2023,"2,598.70"
65691463,Learning Disabilities,Adults,Learning Disability 18 - 64,Transfer Payments,Personal Budget - Direct Payments - Other,REDACTED PERSONAL DATA,SN2 ,01/02/2023,"2,598.70"
65691462,Learning Disabilities,Adults,Learning Disability 18 - 64,Transfer Payments,Personal Budget - Direct Payments - Domiciliary Care,REDACTED PERSONAL DATA,SN2 ,01/02/2023,"1,407.87"
68823233,Early Years Block,DSG Skills and Attainment,Free Nursery Education Commissioning - three & four  year olds,3rd Party Payments,Contracts - Child Care,REDACTED PERSONAL DATA,SN3 ,15/02/2023,872.44
68025234,Responsive Repairs,Repairs,Responsive Repairs,3rd Party Payments,Contract Payments,CARPET WAREHOUSE SWINDON LTD,SN2 ,08/02/2023,950.5
68025235,Responsive Repairs,Repairs,Responsive Repairs,3rd Party Payments,Contract Payments,CARPET WAREHOUSE SWINDON LTD,SN2 ,08/02/2023,694.44
70188233,Responsive Repairs,Repairs,Responsive Repairs,3rd Party Payments,Contract Payments,CARPET WAREHOUSE SWINDON LTD,SN2 ,17/02/2023,740.69
70195233,Responsive Repairs,Repairs,Responsive Repairs,3rd Party Payments,Contract Payments,CARPET WAREHOUSE SWINDON LTD,SN2 ,17/02/2023,"1,185.83"
68025240,Responsive Repairs,Repairs,Responsive Repairs,3rd Party Payments,Contract Payments,CARPET WAREHOUSE SWINDON LTD,SN2 ,08/02/2023,"1,047.92"
68025243,Responsive Repairs,Repairs,Responsive Repairs,3rd Party Payments,Contract Payments,CARPET WAREHOUSE SWINDON LTD,SN2 ,08/02/2023,473.82
68025241,Responsive Repairs,Repairs,Responsive Repairs,3rd Party Payments,Contract Payments,CARPET WAREHOUSE SWINDON LTD,SN2 ,08/02/2023,909.68
71000233,Responsive Repairs,Repairs,Responsive Repairs,3rd Party Payments,Contract Payments,CARPET WAREHOUSE SWINDON LTD,SN2 ,22/02/2023,"1,076.00"
70998233,Responsive Repairs,Repairs,Responsive Repairs,3rd Party Payments,Contract Payments,CARPET WAREHOUSE SWINDON LTD,SN2 ,22/02/2023,700
70996233,Responsive Repairs,Repairs,Responsive Repairs,3rd Party Payments,Contract Payments,CARPET WAREHOUSE SWINDON LTD,SN2 ,22/02/2023,631.97
72082233,Responsive Repairs,Repairs,Responsive Repairs,3rd Party Payments,Contract Payments,CARPET WAREHOUSE SWINDON LTD,SN2 ,24/02/2023,980.38
68025238,Responsive Repairs,Repairs,Responsive Repairs,3rd Party Payments,Contract Payments,CARPET WAREHOUSE SWINDON LTD,SN2 ,08/02/2023,880.4
70190233,Responsive Repairs,Repairs,Responsive Repairs,3rd Party Payments,Contract Payments,CARPET WAREHOUSE SWINDON LTD,SN2 ,17/02/2023,"1,099.83"
72082236,Responsive Repairs,Repairs,Responsive Repairs,3rd Party Payments,Contract Payments,CARPET WAREHOUSE SWINDON LTD,SN2 ,24/02/2023,"1,078.96"
68024233,Responsive Repairs,Repairs,Responsive Repairs,3rd Party Payments,Contract Payments,CARPET WAREHOUSE SWINDON LTD,SN2 ,08/02/2023,"1,175.25"
70191233,Responsive Repairs,Repairs,Responsive Repairs,3rd Party Payments,Contract Payments,CARPET WAREHOUSE SWINDON LTD,SN2 ,17/02/2023,709.48
70192233,Responsive Repairs,Repairs,Responsive Repairs,3rd Party Payments,Contract Payments,CARPET WAREHOUSE SWINDON LTD,SN2 ,17/02/2023,704.37
70186233,Responsive Repairs,Repairs,Responsive Repairs,Supplies and Services,Materials,CARPET WAREHOUSE SWINDON LTD,SN2 ,17/02/2023,612.31
71597233,Responsive Repairs,Repairs,Responsive Repairs,3rd Party Payments,Contract Payments,CARPET WAREHOUSE SWINDON LTD,SN2 ,22/02/2023,801.8
70187233,Responsive Repairs,Repairs,Responsive Repairs,3rd Party Payments,Contract Payments,CARPET WAREHOUSE SWINDON LTD,SN2 ,17/02/2023,"1,100.00"
70189233,Responsive Repairs,Repairs,Responsive Repairs,3rd Party Payments,Contract Payments,CARPET WAREHOUSE SWINDON LTD,SN2 ,17/02/2023,960
68023234,Responsive Repairs,Repairs,Responsive Repairs,3rd Party Payments,Contract Payments,CARPET WAREHOUSE SWINDON LTD,SN2 ,08/02/2023,"1,152.49"
70194233,Responsive Repairs,Repairs,Responsive Repairs,3rd Party Payments,Contract Payments,CARPET WAREHOUSE SWINDON LTD,SN2 ,17/02/2023,"1,124.16"
70994233,Responsive Repairs,Repairs,Responsive Repairs,3rd Party Payments,Contract Payments,CARPET WAREHOUSE SWINDON LTD,SN2 ,22/02/2023,723.79
70193233,Responsive Repairs,Repairs,Responsive Repairs,3rd Party Payments,Contract Payments,CARPET WAREHOUSE SWINDON LTD,SN2 ,17/02/2023,"1,159.74"
72082235,Responsive Repairs,Repairs,Responsive Repairs,3rd Party Payments,Contract Payments,CARPET WAREHOUSE SWINDON LTD,SN2 ,24/02/2023,810
71137233,Social Care,"Children, Families and Community Health Services",Legal Fees,Supplies and Services,Fees,CARTER BROWN LTD,B15 ,22/02/2023,"1,184.60"
71138233,Social Care,"Children, Families and Community Health Services",Legal Fees,Supplies and Services,Fees,CARTER BROWN LTD,B15 ,22/02/2023,"2,340.00"
71931233,Social Care,"Children, Families and Community Health Services",Legal Fees,Supplies and Services,Fees,CARTER BROWN LTD,NG18,24/02/2023,631.25
68969233,Other Repairs,Repairs,Unallocated job costs from OPEN system,3rd Party Payments,Contract Payments,CARTER PUMPS LTD,SN10,13/02/2023,440
72130233,Highways Schemes,Strategic Planning and Highways,Key Routes East,Capital,Contractor Payments,CARYN KOH ART,SN25,24/02/2023,"1,842.00"
72057264,Learning Disabilities,Adults,Learning Disability 18 - 64,Transfer Payments,Personal Budget - Direct Payments - Domiciliary Care,REDACTED PERSONAL DATA,SN6 ,27/02/2023,"2,453.36"
65691240,Learning Disabilities,Adults,Learning Disability 18 - 64,Transfer Payments,Personal Budget - Direct Payments - Domiciliary Care,REDACTED PERSONAL DATA,SN6 ,01/02/2023,"2,453.36"
72421233,Traded Services,"Education, Inclusion and Skills",Plas Pencelli Outdoor Education Centre,Supplies and Services,Materials,CASTELL HOWELL FOODS LIMITED,SA14,27/02/2023,"1,999.38"
72421233,Traded Services,"Education, Inclusion and Skills",Plas Pencelli Outdoor Education Centre,Supplies and Services,Materials,CASTELL HOWELL FOODS LIMITED,SA14,27/02/2023,680.33
69206233,Treasury,Corporate Finance,Private Finance Initiatives (PFI),Supplies and Services,Services,CASTLE GATE LEGAL & COMMERCIAL LTD,NG12,13/02/2023,"2,000.00"
71136233,Treasury,Corporate Finance,Private Finance Initiatives (PFI),Supplies and Services,Services,CASTLE GATE LEGAL & COMMERCIAL LTD,NG12,22/02/2023,"2,018.88"
70515297,Learning Disabilities,Adults,Learning Disability 18 - 64,3rd Party Payments,Supported Lodgings (Childrens)/Supported Living (Adults),CATHEDRAL HOMES,GL1 ,17/02/2023,"3,557.64"
70515297,Learning Disabilities,Adults,Learning Disability 18 - 64,Income,Client Contribution - Personal Budget - Fairer Charging,CATHEDRAL HOMES,GL1 ,17/02/2023,-194.23
70515297,Learning Disabilities,Adults,Learning Disability 18 - 64,3rd Party Payments,Supported Lodgings (Childrens)/Supported Living (Adults),CATHEDRAL HOMES,GL1 ,17/02/2023,"4,922.80"
70515297,Learning Disabilities,Adults,Learning Disability 18 - 64,3rd Party Payments,Supported Lodgings (Childrens)/Supported Living (Adults),CATHEDRAL HOMES,GL1 ,17/02/2023,"2,564.81"
70515297,Learning Disabilities,Adults,Learning Disability 18 - 64,3rd Party Payments,Supported Lodgings (Childrens)/Supported Living (Adults),CATHEDRAL HOMES,GL1 ,17/02/2023,744.62
70515297,Learning Disabilities,Adults,Learning Disability 18 - 64,Income,Client Contribution - Supported Living,CATHEDRAL HOMES,GL1 ,17/02/2023,-488.16
70515297,Learning Disabilities,Adults,Learning Disability 18 - 64,3rd Party Payments,Supported Lodgings (Childrens)/Supported Living (Adults),CATHEDRAL HOMES,GL1 ,17/02/2023,"1,882.23"
67150233,Museums & Heritage,Culture & Heritage,Steam:Operations,Supplies and Services,Contracts,CATHEDRAL LEASING LIMITED,B77 ,03/02/2023,"1,089.48"
68828233,Early Years Block,DSG Skills and Attainment,Free Nursery Education Commissioning - two year olds,3rd Party Payments,Contracts - Child Care,REDACTED PERSONAL DATA,SN5 ,15/02/2023,683.1
70937233,Learning Disabilities,Adults,Learning Disability 18 - 64,3rd Party Payments,Supported Accommodation Scheme,REDACTED PERSONAL DATA,SN6 ,22/02/2023,"1,671.04"
70937233,Learning Disabilities,Adults,Learning Disability 18 - 64,3rd Party Payments,Supported Accommodation Scheme,REDACTED PERSONAL DATA,SN6 ,22/02/2023,"2,444.96"
70937233,Learning Disabilities,Adults,Learning Disability 18 - 64,3rd Party Payments,Supported Accommodation Scheme,REDACTED PERSONAL DATA,SN6 ,22/02/2023,"2,058.96"
70680233,Early Years Block,DSG Skills and Attainment,Free Nursery Education Commissioning - three & four  year olds,3rd Party Payments,Contracts - Child Care,CENTRAL PRE-SCHOOL,SN1 ,22/02/2023,800
70681233,Early Years Block,DSG Skills and Attainment,Free Nursery Education Commissioning - three & four  year olds,3rd Party Payments,Contracts - Child Care,CENTRAL PRE-SCHOOL,SN1 ,22/02/2023,800
66547233,Public Health,Public Health,Affordable Warmth,Supplies and Services,Service Charges,CENTRE FOR SUSTAINABLE ENERGY,BS1 ,01/02/2023,"5,000.00"
69832233,Public Health,Public Health,Affordable Warmth,Supplies and Services,Service Charges,CENTRE FOR SUSTAINABLE ENERGY,BS1 ,15/02/2023,"9,075.00"
66742233,Streetsmart,Streetsmart,Waterside Fleet Hires,Transport Costs,Vehicle Fuel,CERTAS ENERGY UK LTD,WA3 ,01/02/2023,"9,509.62"
71509233,Public Health,Public Health,Supplementary SMTR Grant,3rd Party Payments,Contract Payments,CHANGE GROW LIVE SERVICES LTD,BN1 ,22/02/2023,"15,000.00"
71510233,Public Health,Public Health,Supplementary SMTR Grant,3rd Party Payments,Contract Payments,CHANGE GROW LIVE SERVICES LTD,BN1 ,22/02/2023,"1,000.00"
71508233,Public Health,Public Health,Supplementary SMTR Grant,3rd Party Payments,Contract Payments,CHANGE GROW LIVE SERVICES LTD,BN1 ,22/02/2023,"7,500.00"
71511233,Public Health,Public Health,DAAT,3rd Party Payments,Contract Payments,CHANGE GROW LIVE SERVICES LTD,BN1 ,22/02/2023,"10,000.00"
71560233,Streetsmart,Streetsmart,Waterside Canteen,Supplies and Services,Confectionary,CHAPPLE & JENKINS LTD,BS15,22/02/2023,958.76
72120234,Lydiard Park,Culture & Heritage,Lydiard : Forest Caf�,Supplies and Services,Confectionary,CHAPPLE & JENKINS LTD,BS15,24/02/2023,464.97
72120234,Lydiard Park,Culture & Heritage,Lydiard : Forest Caf�,Supplies and Services,Food,CHAPPLE & JENKINS LTD,BS15,24/02/2023,10.43
72120234,Lydiard Park,Culture & Heritage,Lydiard : Forest Caf�,Supplies and Services,Confectionary,CHAPPLE & JENKINS LTD,BS15,24/02/2023,11.17
66247233,Streetsmart,Streetsmart,Waterside Canteen,Supplies and Services,Confectionary,CHAPPLE & JENKINS LTD,BS15,01/02/2023,874.52
72171245,Other Repairs,Repairs,Unallocated job costs from OPEN system,Premises Costs,Maintenance - Buildings,CHARLES HARDING ESTATE AGENTS LIMITED,SN1 ,24/02/2023,30
70522233,Lydiard Park,Culture & Heritage,Lydiard : Forest Caf�,Supplies and Services,Materials,CHARLES SAUNDERS LTD,BS37,17/02/2023,43.65
72128233,Lydiard Park,Culture & Heritage,Lydiard : Forest Caf�,Supplies and Services,Materials,CHARLES SAUNDERS LTD,BS37,24/02/2023,6.47
71453233,Streetsmart,Streetsmart,Waterside Canteen,Supplies and Services,Food,CHARLES SAUNDERS LTD,BS37,22/02/2023,752.51
70522233,Lydiard Park,Culture & Heritage,Lydiard : Forest Caf�,Supplies and Services,Confectionary,CHARLES SAUNDERS LTD,BS37,17/02/2023,42.32
66213233,Streetsmart,Streetsmart,Waterside Canteen,Supplies and Services,Confectionary,CHARLES SAUNDERS LTD,BS37,01/02/2023,47.86
66213233,Streetsmart,Streetsmart,Waterside Canteen,Supplies and Services,Confectionary,CHARLES SAUNDERS LTD,BS37,01/02/2023,89.24
70522233,Lydiard Park,Culture & Heritage,Lydiard : Forest Caf�,Supplies and Services,Confectionary,CHARLES SAUNDERS LTD,BS37,17/02/2023,445.14
66213233,Streetsmart,Streetsmart,Waterside Canteen,Supplies and Services,Food,CHARLES SAUNDERS LTD,BS37,01/02/2023,431.42
70522233,Lydiard Park,Culture & Heritage,Lydiard : Forest Caf�,Supplies and Services,Food,CHARLES SAUNDERS LTD,BS37,17/02/2023,444.28
66213233,Streetsmart,Streetsmart,Waterside Canteen,Supplies and Services,Materials,CHARLES SAUNDERS LTD,BS37,01/02/2023,36.04
72128233,Lydiard Park,Culture & Heritage,Lydiard : Coach House Caf�,Supplies and Services,Food,CHARLES SAUNDERS LTD,BS37,24/02/2023,18.99
72128233,Lydiard Park,Culture & Heritage,Lydiard : Forest Caf�,Supplies and Services,Confectionary,CHARLES SAUNDERS LTD,BS37,24/02/2023,67.96
72128233,Lydiard Park,Culture & Heritage,Lydiard : Forest Caf�,Supplies and Services,Food,CHARLES SAUNDERS LTD,BS37,24/02/2023,522.57
70515260,Physical Support,Adults,Physical Support 65 and over,3rd Party Payments,Nursing Care,CHERITON (SW CARE) LTD,GL52,17/02/2023,"2,809.76"
70515260,Physical Support,Adults,Physical Support 65 and over,Income,Client Contribution - Residential,CHERITON (SW CARE) LTD,GL52,17/02/2023,-713.51
70515260,Physical Support,Adults,Physical Support 65 and over,3rd Party Payments,Nursing Care,CHERITON (SW CARE) LTD,GL52,17/02/2023,"3,017.28"
70515260,Physical Support,Adults,Physical Support 65 and over,3rd Party Payments,Nursing Care,CHERITON (SW CARE) LTD,GL52,17/02/2023,"-3,108.72"
70515260,Physical Support,Adults,Physical Support 65 and over,3rd Party Payments,Residential Care,CHERITON (SW CARE) LTD,GL52,17/02/2023,"3,145.28"
70515260,Physical Support,Adults,Physical Support 18 - 64,3rd Party Payments,Residential Care,CHERITON (SW CARE) LTD,GL52,17/02/2023,"2,809.76"
70515260,Physical Support,Adults,Physical Support 65 and over,Income,Client Contribution - Nursing,CHERITON (SW CARE) LTD,GL52,17/02/2023,-799.64
70515260,Physical Support,Adults,Physical Support 65 and over,Income,Client Contribution - Nursing,CHERITON (SW CARE) LTD,GL52,17/02/2023,"-1,743.72"
70515260,Physical Support,Adults,Physical Support 65 and over,3rd Party Payments,Residential Care,CHERITON (SW CARE) LTD,GL52,17/02/2023,"3,017.28"
70515260,Physical Support,Adults,Physical Support 65 and over,Income,Client Contribution - Residential,CHERITON (SW CARE) LTD,GL52,17/02/2023,-739.91
70515260,Physical Support,Adults,Physical Support 65 and over,Income,Client Contribution - Residential,CHERITON (SW CARE) LTD,GL52,17/02/2023,-718.93
70515260,Physical Support,Adults,Physical Support 65 and over,Income,Client Contribution - Residential,CHERITON (SW CARE) LTD,GL52,17/02/2023,-717.51
70515260,Physical Support,Adults,Physical Support 65 and over,Income,Client Contribution - Nursing,CHERITON (SW CARE) LTD,GL52,17/02/2023,762.33
70515260,Physical Support,Adults,Physical Support 65 and over,3rd Party Payments,Nursing Care,CHERITON (SW CARE) LTD,GL52,17/02/2023,"-3,396.88"
70515260,Physical Support,Adults,Physical Support 65 and over,3rd Party Payments,Nursing Care,CHERITON (SW CARE) LTD,GL52,17/02/2023,"-4,367.42"
70515260,Physical Support,Adults,Physical Support 65 and over,3rd Party Payments,Residential Care,CHERITON (SW CARE) LTD,GL52,17/02/2023,"2,809.76"
70515260,Physical Support,Adults,Physical Support 65 and over,3rd Party Payments,Residential Care,CHERITON (SW CARE) LTD,GL52,17/02/2023,"-3,931.05"
70515260,Physical Support,Adults,Physical Support 65 and over,Income,Client Contribution - Nursing,CHERITON (SW CARE) LTD,GL52,17/02/2023,"-1,090.93"
70515260,Physical Support,Adults,Physical Support 65 and over,3rd Party Payments,Nursing Care,CHERITON (SW CARE) LTD,GL52,17/02/2023,"4,610.05"
70515260,Physical Support,Adults,Physical Support 65 and over,Income,Client Contribution - Nursing,CHERITON (SW CARE) LTD,GL52,17/02/2023,44.84
70161233,Responsive Repairs,Repairs,Responsive Repairs,3rd Party Payments,Contract Payments,CHILD SCAFFOLDING LTD,SN1 ,17/02/2023,65
67493234,Responsive Repairs,Repairs,Responsive Repairs,3rd Party Payments,Contract Payments,CHILD SCAFFOLDING LTD,SN1 ,03/02/2023,420
72477233,Parking & Bus lanes,Highway Operations and Car Parking,Car Parking,Premises Costs,Maintenance - Buildings,CHILD SCAFFOLDING LTD,SN1 ,27/02/2023,"2,516.00"
70161233,Responsive Repairs,Repairs,Responsive Repairs,3rd Party Payments,Contract Payments,CHILD SCAFFOLDING LTD,SN1 ,17/02/2023,130
70162233,Responsive Repairs,Repairs,Responsive Repairs,3rd Party Payments,Contract Payments,CHILD SCAFFOLDING LTD,SN1 ,17/02/2023,57.6
70162233,Responsive Repairs,Repairs,Responsive Repairs,3rd Party Payments,Contract Payments,CHILD SCAFFOLDING LTD,SN1 ,17/02/2023,49.92
70166233,Responsive Repairs,Repairs,Responsive Repairs,3rd Party Payments,Contract Payments,CHILD SCAFFOLDING LTD,SN1 ,17/02/2023,880
70162233,Responsive Repairs,Repairs,Responsive Repairs,3rd Party Payments,Contract Payments,CHILD SCAFFOLDING LTD,SN1 ,17/02/2023,56
70164233,Responsive Repairs,Repairs,Responsive Repairs,3rd Party Payments,Contract Payments,CHILD SCAFFOLDING LTD,SN1 ,17/02/2023,420
67494233,Responsive Repairs,Repairs,Responsive Repairs,3rd Party Payments,Contract Payments,CHILD SCAFFOLDING LTD,SN1 ,03/02/2023,"2,900.00"
70165233,Responsive Repairs,Repairs,Responsive Repairs,3rd Party Payments,Contract Payments,CHILD SCAFFOLDING LTD,SN1 ,17/02/2023,880
70160233,Responsive Repairs,Repairs,Responsive Repairs,3rd Party Payments,Contract Payments,CHILD SCAFFOLDING LTD,SN1 ,17/02/2023,980
68025244,Responsive Repairs,Repairs,Responsive Repairs,3rd Party Payments,Contract Payments,CHILD SCAFFOLDING LTD,SN1 ,08/02/2023,480
68025248,Responsive Repairs,Repairs,Responsive Repairs,3rd Party Payments,Contract Payments,CHILD SCAFFOLDING LTD,SN1 ,08/02/2023,680
70167233,Responsive Repairs,Repairs,Responsive Repairs,3rd Party Payments,Contract Payments,CHILD SCAFFOLDING LTD,SN1 ,17/02/2023,880
70161233,Responsive Repairs,Repairs,Responsive Repairs,3rd Party Payments,Contract Payments,CHILD SCAFFOLDING LTD,SN1 ,17/02/2023,195
68025246,Responsive Repairs,Repairs,Responsive Repairs,3rd Party Payments,Contract Payments,CHILD SCAFFOLDING LTD,SN1 ,08/02/2023,880
71928233,Responsive Repairs,Repairs,Responsive Repairs,3rd Party Payments,Contract Payments,CHILD SCAFFOLDING LTD,SN1 ,24/02/2023,780
70163233,Responsive Repairs,Repairs,Responsive Repairs,3rd Party Payments,Contract Payments,CHILD SCAFFOLDING LTD,SN1 ,17/02/2023,980
68025251,Responsive Repairs,Repairs,Responsive Repairs,3rd Party Payments,Contract Payments,CHILD SCAFFOLDING LTD,SN1 ,08/02/2023,880
70162233,Responsive Repairs,Repairs,Responsive Repairs,3rd Party Payments,Contract Payments,CHILD SCAFFOLDING LTD,SN1 ,17/02/2023,184
70162233,Responsive Repairs,Repairs,Responsive Repairs,3rd Party Payments,Contract Payments,CHILD SCAFFOLDING LTD,SN1 ,17/02/2023,89.6
71407233,Social Care,"Children, Families and Community Health Services",Looked After Children Service,3rd Party Payments,Personal Needs,CHILDREN'S CONTACT SERVICES LTD,BS9 ,22/02/2023,"1,422.00"
68460233,Social Care,"Children, Families and Community Health Services",Unaccompanied Asylum Seeking Children (UASC),3rd Party Payments,Independent Fostering Agency Placements,REDACTED PERSONAL DATA,B60 ,10/02/2023,"3,166.80"
71807233,Parking & Bus lanes,Highway Operations and Car Parking,Bus Lane Enforcement,Supplies and Services,Materials,CHIPSIDE LTD,SN15,24/02/2023,"3,157.80"
71807233,Parking & Bus lanes,Highway Operations and Car Parking,Street Parking,Supplies and Services,Materials,CHIPSIDE LTD,SN15,24/02/2023,828.78
71807233,Parking & Bus lanes,Highway Operations and Car Parking,Street Parking,Supplies and Services,Materials,CHIPSIDE LTD,SN15,24/02/2023,292.95
69560233,Parking & Bus lanes,Highway Operations and Car Parking,Street Parking,Supplies and Services,Fees,CHIPSIDE LTD,SN15,15/02/2023,943.74
71807233,Parking & Bus lanes,Highway Operations and Car Parking,Bus Lane Enforcement,Supplies and Services,Materials,CHIPSIDE LTD,SN15,24/02/2023,439.95
69493241,Schools - Primary,DSG Skills and Attainment,Primary School Budgets,3rd Party Payments,Mainstream Delegated Funding,CHISELDON PRIMARY SCHOOL,SN4 ,17/02/2023,"62,190.00"
69496237,DSG Other Funding,DSG Skills and Attainment,DFE Additional Grants,3rd Party Payments,Payment of Pupil Premium to school,CHISELDON PRIMARY SCHOOL,SN4 ,17/02/2023,"3,680.00"
70515311,Learning Disabilities,Adults,Learning Disability 65 and over,3rd Party Payments,Residential Care,CHOSEN CARE LTD,GL3 ,17/02/2023,"8,600.27"
70515311,Learning Disabilities,Adults,Learning Disability 18 - 64,3rd Party Payments,Residential Care,CHOSEN CARE LTD,GL3 ,17/02/2023,"8,412.36"
70515311,Learning Disabilities,Adults,Learning Disability 18 - 64,Income,Client Contribution - Residential,CHOSEN CARE LTD,GL3 ,17/02/2023,-375.96
70515311,Learning Disabilities,Adults,Learning Disability 18 - 64,3rd Party Payments,Residential Care,CHOSEN CARE LTD,GL3 ,17/02/2023,"8,420.99"
70515311,Learning Disabilities,Adults,Learning Disability 18 - 64,3rd Party Payments,Residential Care,CHOSEN CARE LTD,GL3 ,17/02/2023,"13,210.80"
70515311,Learning Disabilities,Adults,Learning Disability 18 - 64,Income,Client Contribution - Residential,CHOSEN CARE LTD,GL3 ,17/02/2023,-423.11
70515311,Learning Disabilities,Adults,Learning Disability 65 and over,Income,Client Contribution - Residential,CHOSEN CARE LTD,GL3 ,17/02/2023,-713.98
66639233,Care Management & Safeguarding,Adults,Mental Capacity & DOL,3rd Party Payments,Contracts - Social Care,CHRIS HORNE BIA/AMHP LIMITED,OX18,01/02/2023,519.8
65691321,Physical Support,Adults,Physical Support 18 - 64,Transfer Payments,Personal Budget - Direct Payments - Domiciliary Care,REDACTED PERSONAL DATA,SN25,01/02/2023,763.29
72057352,Physical Support,Adults,Physical Support 18 - 64,Transfer Payments,Personal Budget - Direct Payments - Domiciliary Care,REDACTED PERSONAL DATA,SN25,27/02/2023,763.29
72328352,Social Care,"Children, Families and Community Health Services",Placement Adoption Service,3rd Party Payments,Adoption Allowances,REDACTED PERSONAL DATA,SN6 ,27/02/2023,699.84
69203293,Social Care,"Children, Families and Community Health Services",Placement Adoption Service,3rd Party Payments,Adoption Allowances,REDACTED PERSONAL DATA,SN6 ,13/02/2023,"1,055.64"
69203292,Social Care,"Children, Families and Community Health Services",Placement Adoption Service,3rd Party Payments,Adoption Allowances,REDACTED PERSONAL DATA,SN6 ,13/02/2023,699.84
72328353,Social Care,"Children, Families and Community Health Services",Placement Adoption Service,3rd Party Payments,Adoption Allowances,REDACTED PERSONAL DATA,SN6 ,27/02/2023,"1,055.64"
68474233,Social Care,"Children, Families and Community Health Services",External Placements,3rd Party Payments,Independent Fostering Agency Placements,CHRYSALISCARE LTD,DA7 ,10/02/2023,"6,589.67"
68475233,Social Care,"Children, Families and Community Health Services",External Placements,3rd Party Payments,Independent Fostering Agency Placements,CHRYSALISCARE LTD,DA7 ,10/02/2023,"5,881.01"
70515345,Physical Support,Adults,Physical Support 65 and over,Income,Client Contribution - Nursing,CHURCH VIEW,SN3 ,17/02/2023,-731.04
70515345,Physical Support,Adults,Physical Support 18 - 64,3rd Party Payments,Nursing Care,CHURCH VIEW,SN3 ,17/02/2023,"3,145.28"
70515345,Physical Support,Adults,Physical Support 65 and over,Income,Client Contribution - Nursing,CHURCH VIEW,SN3 ,17/02/2023,-982.36
70515345,Physical Support,Adults,Physical Support 65 and over,Income,Client Contribution - Nursing,CHURCH VIEW,SN3 ,17/02/2023,-899.53
70515345,Physical Support,Adults,Physical Support 65 and over,3rd Party Payments,Nursing Care,CHURCH VIEW,SN3 ,17/02/2023,"-5,701.91"
70515345,Physical Support,Adults,Physical Support 65 and over,3rd Party Payments,Nursing Care,CHURCH VIEW,SN3 ,17/02/2023,"2,911.61"
70515345,Physical Support,Adults,Physical Support 65 and over,Income,Client Contribution - Nursing,CHURCH VIEW,SN3 ,17/02/2023,-787.8
70515345,Physical Support,Adults,Physical Support 65 and over,Income,Client Contribution - Nursing,CHURCH VIEW,SN3 ,17/02/2023,-874.36
70515345,Physical Support,Adults,Physical Support 65 and over,Income,Client Contribution - Nursing,CHURCH VIEW,SN3 ,17/02/2023,-562.6
70515345,Physical Support,Adults,Physical Support 18 - 64,Income,Client Contribution - Nursing,CHURCH VIEW,SN3 ,17/02/2023,-651.18
70515345,Physical Support,Adults,Physical Support 65 and over,Income,Client Contribution - Nursing,CHURCH VIEW,SN3 ,17/02/2023,"-1,160.80"
70515345,Physical Support,Adults,Physical Support 65 and over,3rd Party Payments,Nursing Care,CHURCH VIEW,SN3 ,17/02/2023,"-4,124.78"
70515345,Physical Support,Adults,Physical Support 65 and over,3rd Party Payments,Nursing Care,CHURCH VIEW,SN3 ,17/02/2023,"3,145.28"
70515345,Physical Support,Adults,Physical Support 65 and over,3rd Party Payments,Nursing Care,CHURCH VIEW,SN3 ,17/02/2023,"4,950.00"
70515345,Physical Support,Adults,Physical Support 65 and over,3rd Party Payments,Nursing Care,CHURCH VIEW,SN3 ,17/02/2023,"6,170.62"
70515345,Physical Support,Adults,Physical Support 65 and over,Income,Client Contribution - Nursing,CHURCH VIEW,SN3 ,17/02/2023,"-1,519.13"
70515345,Physical Support,Adults,Physical Support 65 and over,Income,Client Contribution - Nursing,CHURCH VIEW,SN3 ,17/02/2023,"-1,154.86"
70515345,Physical Support,Adults,Physical Support 65 and over,Income,Client Contribution - Nursing,CHURCH VIEW,SN3 ,17/02/2023,-714.83
70515345,Physical Support,Adults,Physical Support 65 and over,Income,Client Contribution - Nursing,CHURCH VIEW,SN3 ,17/02/2023,-739.91
70515345,Physical Support,Adults,Physical Support 65 and over,3rd Party Payments,Nursing Care,CHURCH VIEW,SN3 ,17/02/2023,"4,003.47"
70515345,Physical Support,Adults,Physical Support 65 and over,3rd Party Payments,Nursing Care,CHURCH VIEW,SN3 ,17/02/2023,"3,017.28"
70515345,Physical Support,Adults,Physical Support 65 and over,Income,Client Contribution - Nursing,CHURCH VIEW,SN3 ,17/02/2023,-718.93
70515345,Physical Support,Adults,Physical Support 65 and over,Income,Client Contribution - Nursing,CHURCH VIEW,SN3 ,17/02/2023,"-1,178.15"
70515345,Physical Support,Adults,Physical Support 65 and over,Income,Client Contribution - Nursing,CHURCH VIEW,SN3 ,17/02/2023,"-1,096.59"
70515345,Physical Support,Adults,Physical Support 65 and over,Income,Client Contribution - Nursing,CHURCH VIEW,SN3 ,17/02/2023,-631.57
70294233,Other Repairs,Repairs,Unallocated job costs from OPEN system,Premises Costs,Repairs - Buildings,CHURCHES FIRE SECURITY LTD,SO53,17/02/2023,881.84
70515370,Learning Disabilities,Adults,Learning Disability 18 - 64,3rd Party Payments,Residential Care,CIDERSTONE HOUSE,SN25,17/02/2023,"13,022.51"
70515370,Learning Disabilities,Adults,Learning Disability 18 - 64,Income,Client Contribution - Residential,CIDERSTONE HOUSE,SN25,17/02/2023,-517.16
70515370,Learning Disabilities,Adults,Learning Disability 18 - 64,3rd Party Payments,Residential Care,CIDERSTONE HOUSE,SN25,17/02/2023,"11,807.49"
70515370,Learning Disabilities,Adults,Learning Disability 18 - 64,3rd Party Payments,Residential Care,CIDERSTONE HOUSE,SN25,17/02/2023,"12,370.00"
70515370,Learning Disabilities,Adults,Learning Disability 18 - 64,Income,Client Contribution - Residential,CIDERSTONE HOUSE,SN25,17/02/2023,-498.54
70515370,Learning Disabilities,Adults,Learning Disability 18 - 64,3rd Party Payments,Residential Care,CIDERSTONE HOUSE,SN25,17/02/2023,"11,663.00"
70515370,Learning Disabilities,Adults,Learning Disability 18 - 64,Income,Client Contribution - Residential,CIDERSTONE HOUSE,SN25,17/02/2023,-501.6
70515370,Learning Disabilities,Adults,Learning Disability 18 - 64,Income,Client Contribution - Residential,CIDERSTONE HOUSE,SN25,17/02/2023,-798.6
70515370,Learning Disabilities,Adults,Learning Disability 18 - 64,3rd Party Payments,Residential Care,CIDERSTONE HOUSE,SN25,17/02/2023,"11,436.81"
70515370,Learning Disabilities,Adults,Learning Disability 18 - 64,Income,Client Contribution - Residential,CIDERSTONE HOUSE,SN25,17/02/2023,-488.16
69030345,High Needs Block,DSG Skills and Attainment,Post 16 - New Responsibilties,3rd Party Payments,FE Colleges,CIRENCESTER COLLEGE,GL7 ,13/02/2023,"3,255.08"
69030340,High Needs Block,DSG Skills and Attainment,Out of Borough School Fees,3rd Party Payments,Other Local Authority Mainstream Schools- Pre 16,CIRENCESTER KINGSHILL SCHOOL,GL7 ,13/02/2023,609.58
69030341,High Needs Block,DSG Skills and Attainment,Out of Borough School Fees,3rd Party Payments,Other Local Authority Mainstream Schools- Pre 16,CIRENCESTER KINGSHILL SCHOOL,GL7 ,13/02/2023,609.58
71205240,Homelessness and Travellers,Housing Services,Leased Private Managed Accommodation,Transfer Payments,Payment of Costs,REDACTED PERSONAL DATA,SN5 ,22/02/2023,575
68597233,Elections & Democracy,Elections and Democracy,Register of Electors,Supplies and Services,Post,CIVICA ELECTION SERVICES LIMITED,N8 0,10/02/2023,"1,495.75"
70587234,Elections & Democracy,Elections and Democracy,Register of Electors,Supplies and Services,Materials,CIVICA ELECTION SERVICES LIMITED,N8 0,20/02/2023,753.04
67075233,Elections & Democracy,Elections and Democracy,Register of Electors,Supplies and Services,Materials,CIVICA ELECTION SERVICES LIMITED,N8 0,03/02/2023,"11,712.22"
68597233,Elections & Democracy,Elections and Democracy,Register of Electors,Supplies and Services,Materials,CIVICA ELECTION SERVICES LIMITED,N8 0,10/02/2023,676.56
70587234,Elections & Democracy,Elections and Democracy,Register of Electors,Supplies and Services,Post,CIVICA ELECTION SERVICES LIMITED,N8 0,20/02/2023,"3,616.36"
66735233,Elections & Democracy,Elections and Democracy,Committees,Supplies and Services,Services,CIVICA UK LTD,DY1 ,01/02/2023,"3,554.68"
69118233,Planning & Regulatory,Strategic Planning,Economy & Development Management,Employees,Temporary / Agency - by Accounts Payable,REDACTED PERSONAL DATA,BS37,13/02/2023,"9,657.60"
68995233,"Volutary Sector, Equipment and Carers",Adults,Carers Short Term Breaks - Adults,3rd Party Payments,Carers,REDACTED PERSONAL DATA,SN3 ,13/02/2023,500
67745240,Disabled Children,"Children, Families and Community Health Services",DCT Daytime Short Breaks,Transfer Payments,Personal Budget - Direct Payments - Other,REDACTED PERSONAL DATA,SN3 ,06/02/2023,"2,944.00"
68830233,Early Years Block,DSG Skills and Attainment,Free Nursery Education Commissioning - three & four  year olds,3rd Party Payments,Contracts - Child Care,REDACTED PERSONAL DATA,SN6 ,15/02/2023,659.18
68831233,Early Years Block,DSG Skills and Attainment,Free Nursery Education Commissioning - three & four  year olds,3rd Party Payments,Contracts - Child Care,REDACTED PERSONAL DATA,SN2 ,15/02/2023,804.59
69807233,Care Management & Safeguarding,Adults,Swindon Safeguarding Partnershiph,Supplies and Services,Fees,CLARK WARD ASSOCIATES LTD,SN1 ,15/02/2023,580
68418233,Education,"Education, Inclusion and Skills",Education Standards and Quality,Supplies and Services,Fees,CLARKE WILLMOTT LLP,BS1 ,10/02/2023,"3,380.00"
70515336,Physical Support,Adults,Physical Support 65 and over,3rd Party Payments,Residential Care,COATE WATER CARE CO LTD,SN3 ,17/02/2023,"4,205.91"
70515336,Physical Support,Adults,Physical Support 65 and over,Income,Client Contribution - Residential,COATE WATER CARE CO LTD,SN3 ,17/02/2023,-743.16
70515336,Physical Support,Adults,Physical Support 65 and over,Income,Client Contribution - Residential,COATE WATER CARE CO LTD,SN3 ,17/02/2023,"-2,120.14"
70515336,Care Management & Safeguarding,Adults,Intermediate Care Team,3rd Party Payments,Residential Care,COATE WATER CARE CO LTD,SN3 ,17/02/2023,"3,565.88"
70515336,Physical Support,Adults,Physical Support 65 and over,Income,Client Contribution - Residential,COATE WATER CARE CO LTD,SN3 ,17/02/2023,"-1,057.74"
70515336,Physical Support,Adults,Physical Support 65 and over,Income,Client Contribution - Residential,COATE WATER CARE CO LTD,SN3 ,17/02/2023,201.79
70260233,Physical Support,Adults,Physical Support 65 and over,3rd Party Payments,Personal Budget - Respite Care,COATE WATER CARE CO LTD,SN3 ,17/02/2023,"2,004.52"
70515336,Mental Health,Adults,Mental Health 65 and over,3rd Party Payments,Residential Care,COATE WATER CARE CO LTD,SN3 ,17/02/2023,405.43
70515336,Care Management & Safeguarding,Adults,Intermediate Care Team,3rd Party Payments,Residential Care,COATE WATER CARE CO LTD,SN3 ,17/02/2023,"-6,034.57"
70515336,Physical Support,Adults,Physical Support 18 - 64,Income,Client Contribution - Residential,COATE WATER CARE CO LTD,SN3 ,17/02/2023,-423.11
70515336,Physical Support,Adults,Physical Support 65 and over,3rd Party Payments,Residential Care,COATE WATER CARE CO LTD,SN3 ,17/02/2023,"3,145.28"
70515336,Physical Support,Adults,Physical Support 65 and over,3rd Party Payments,Residential Care,COATE WATER CARE CO LTD,SN3 ,17/02/2023,-822.9
70515336,Physical Support,Adults,Physical Support 65 and over,3rd Party Payments,Residential Care,COATE WATER CARE CO LTD,SN3 ,17/02/2023,"-6,034.57"
70515336,Mental Health,Adults,Mental Health 65 and over,3rd Party Payments,Residential Care,COATE WATER CARE CO LTD,SN3 ,17/02/2023,"3,300.00"
70515336,Care Management & Safeguarding,Adults,Intermediate Care Team,3rd Party Payments,Residential Care,COATE WATER CARE CO LTD,SN3 ,17/02/2023,"1,645.79"
70515336,Physical Support,Adults,Physical Support 65 and over,Income,Client Contribution - Residential,COATE WATER CARE CO LTD,SN3 ,17/02/2023,-857.06
70515336,Physical Support,Adults,Physical Support 65 and over,Income,Client Contribution - Residential,COATE WATER CARE CO LTD,SN3 ,17/02/2023,"-1,124.36"
70515336,Physical Support,Adults,Physical Support 65 and over,Income,Client Contribution - Residential,COATE WATER CARE CO LTD,SN3 ,17/02/2023,"-1,690.97"
70515336,Physical Support,Adults,Physical Support 65 and over,Income,Client Contribution - Residential,COATE WATER CARE CO LTD,SN3 ,17/02/2023,"1,905.82"
70515336,Physical Support,Adults,Physical Support 65 and over,Income,Client Contribution - Residential,COATE WATER CARE CO LTD,SN3 ,17/02/2023,"-2,339.86"
70515336,Physical Support,Adults,Physical Support 18 - 64,3rd Party Payments,Residential Care,COATE WATER CARE CO LTD,SN3 ,17/02/2023,"3,017.28"
70515336,Care Management & Safeguarding,Adults,Intermediate Care Team,3rd Party Payments,Residential Care,COATE WATER CARE CO LTD,SN3 ,17/02/2023,"3,017.28"
70515336,Physical Support,Adults,Physical Support 65 and over,Income,Client Contribution - Residential,COATE WATER CARE CO LTD,SN3 ,17/02/2023,-840.6
70515336,Physical Support,Adults,Physical Support 65 and over,Income,Client Contribution - Residential,COATE WATER CARE CO LTD,SN3 ,17/02/2023,-596.59
70515336,Physical Support,Adults,Physical Support 65 and over,Income,Client Contribution - Residential,COATE WATER CARE CO LTD,SN3 ,17/02/2023,"-1,636.77"
70515336,Physical Support,Adults,Physical Support 65 and over,3rd Party Payments,Residential Care,COATE WATER CARE CO LTD,SN3 ,17/02/2023,"3,017.28"
70515336,Physical Support,Adults,Physical Support 65 and over,3rd Party Payments,Residential Care,COATE WATER CARE CO LTD,SN3 ,17/02/2023,"-1,280.06"
70515336,Physical Support,Adults,Physical Support 65 and over,3rd Party Payments,Residential Care,COATE WATER CARE CO LTD,SN3 ,17/02/2023,"3,922.29"
70515336,Physical Support,Adults,Physical Support 65 and over,3rd Party Payments,Residential Care,COATE WATER CARE CO LTD,SN3 ,17/02/2023,"6,034.57"
70515336,Physical Support,Adults,Physical Support 65 and over,Income,Client Contribution - Residential,COATE WATER CARE CO LTD,SN3 ,17/02/2023,-862.71
70515336,Physical Support,Adults,Physical Support 65 and over,Income,Client Contribution - Residential,COATE WATER CARE CO LTD,SN3 ,17/02/2023,-602.16
70515336,Care Management & Safeguarding,Adults,Intermediate Care Team,3rd Party Payments,Residential Care,COATE WATER CARE CO LTD,SN3 ,17/02/2023,"-6,126.00"
70417233,Physical Support,Adults,Physical Support 65 and over,3rd Party Payments,Personal Budget - Respite Care,COATE WATER CARE CO LTD,SN3 ,17/02/2023,"1,217.03"
70515336,Physical Support,Adults,Physical Support 65 and over,Income,Client Contribution - Residential,COATE WATER CARE CO LTD,SN3 ,17/02/2023,"1,636.76"
70515336,Physical Support,Adults,Physical Support 65 and over,Income,Client Contribution - Residential,COATE WATER CARE CO LTD,SN3 ,17/02/2023,-635.72
70515336,Physical Support,Adults,Physical Support 65 and over,Income,Client Contribution - Residential,COATE WATER CARE CO LTD,SN3 ,17/02/2023,"-1,479.81"
70515336,Physical Support,Adults,Physical Support 65 and over,Income,Client Contribution - Residential,COATE WATER CARE CO LTD,SN3 ,17/02/2023,"1,479.81"
70515336,Physical Support,Adults,Physical Support 65 and over,Income,Client Contribution - Residential,COATE WATER CARE CO LTD,SN3 ,17/02/2023,-704.08
70515336,Physical Support,Adults,Physical Support 65 and over,Income,Client Contribution - Residential,COATE WATER CARE CO LTD,SN3 ,17/02/2023,"-1,126.10"
70515336,Physical Support,Adults,Physical Support 65 and over,3rd Party Payments,Residential Care,COATE WATER CARE CO LTD,SN3 ,17/02/2023,"6,674.60"
70515295,Learning Disabilities,Adults,Learning Disability 18 - 64,3rd Party Payments,Residential Care,COCKLEBURY FARMHOUSE,SN15,17/02/2023,"9,768.00"
70515295,Learning Disabilities,Adults,Learning Disability 18 - 64,Income,Client Contribution - Residential,COCKLEBURY FARMHOUSE,SN15,17/02/2023,-501.6
70613233,Town Centre,"Economy, Growth and Place",Fleming Way Improvement Scheme,Capital,Contractor Payments,COLAS LTD,B37 ,20/02/2023,"210,979.21"
68970234,Highways Inspections & Maintenance,Highway Operations and Car Parking,Highway Maintenance,Supplies and Services,Materials,COLAS LTD,B37 ,13/02/2023,780
67077233,Town Centre,"Economy, Growth and Place",Fleming Way Improvement Scheme,Capital,Contractor Payments,COLAS LTD,B37 ,03/02/2023,"405,930.85"
68511233,Disabled Children,"Children, Families and Community Health Services",DCT Daytime Short Breaks,3rd Party Payments,Respite Care,COLLABORATIVE CARE SERVICES LTD,SN2 ,10/02/2023,"29,304.00"
71730233,Legal Services,Legal Services,Legal Services,Employees,Training,COLLEGE OF LAW SERVICES LTD (THE UNIVERSITY OF LAW),GU3 ,24/02/2023,"1,495.00"
70515282,Learning Disabilities,Adults,Learning Disability 65 and over,3rd Party Payments,Supported Lodgings (Childrens)/Supported Living (Adults),COMMUNITY ACCESS NETWORK LTD,SN25,17/02/2023,954.17
70515283,Learning Disabilities,Adults,Learning Disability 18 - 64,3rd Party Payments,Supported Lodgings (Childrens)/Supported Living (Adults),COMMUNITY ACCESS NETWORK LTD,SN25,17/02/2023,"4,338.60"
70515283,Learning Disabilities,Adults,Learning Disability 18 - 64,3rd Party Payments,Supported Lodgings (Childrens)/Supported Living (Adults),COMMUNITY ACCESS NETWORK LTD,SN25,17/02/2023,"1,582.54"
70515283,Learning Disabilities,Adults,Learning Disability 18 - 64,Income,Client Contribution - Supported Living,COMMUNITY ACCESS NETWORK LTD,SN25,17/02/2023,-168.3
70515283,Learning Disabilities,Adults,Learning Disability 18 - 64,3rd Party Payments,Supported Lodgings (Childrens)/Supported Living (Adults),COMMUNITY ACCESS NETWORK LTD,SN25,17/02/2023,28.29
70515282,Learning Disabilities,Adults,Learning Disability 18 - 64,3rd Party Payments,Residential Care,COMMUNITY ACCESS NETWORK LTD,SN25,17/02/2023,"7,404.49"
70515283,Learning Disabilities,Adults,Learning Disability 18 - 64,3rd Party Payments,Supported Lodgings (Childrens)/Supported Living (Adults),COMMUNITY ACCESS NETWORK LTD,SN25,17/02/2023,29.09
70515283,Learning Disabilities,Adults,Learning Disability 18 - 64,3rd Party Payments,Supported Lodgings (Childrens)/Supported Living (Adults),COMMUNITY ACCESS NETWORK LTD,SN25,17/02/2023,589.71
70515283,Learning Disabilities,Adults,Learning Disability 18 - 64,3rd Party Payments,Supported Lodgings (Childrens)/Supported Living (Adults),COMMUNITY ACCESS NETWORK LTD,SN25,17/02/2023,"1,432.15"
70515282,Learning Disabilities,Adults,Learning Disability 18 - 64,Income,Client Contribution - Residential,COMMUNITY ACCESS NETWORK LTD,SN25,17/02/2023,-346.03
67192233,Social Care,"Children, Families and Community Health Services",External Placements,3rd Party Payments,Independent Fostering Agency Placements,COMMUNITY FOSTER CARE,GL1 ,03/02/2023,"5,139.80"
67191233,Social Care,"Children, Families and Community Health Services",External Placements,3rd Party Payments,Independent Fostering Agency Placements,COMMUNITY FOSTER CARE,GL1 ,03/02/2023,"4,058.21"
70515337,Learning Disabilities,Adults,Learning Disability 18 - 64,3rd Party Payments,Residential Care,COMMUNITY THERAPEUTIC SERVICES LTD,BS22,17/02/2023,"13,433.45"
68446233,Social Care,"Children, Families and Community Health Services",Placement - Care Leaver Team,3rd Party Payments,Staying Put,COMPASS FOSTERING WEST LTD,LE11,10/02/2023,"1,900.08"
68453233,Social Care,"Children, Families and Community Health Services",External Placements,3rd Party Payments,Independent Fostering Agency Placements,COMPASS FOSTERING WEST LTD,LE11,10/02/2023,"2,949.52"
68454233,Social Care,"Children, Families and Community Health Services",External Placements,3rd Party Payments,Independent Fostering Agency Placements,COMPASS FOSTERING WEST LTD,LE11,10/02/2023,"3,112.20"
68459233,Social Care,"Children, Families and Community Health Services",External Placements,3rd Party Payments,Independent Fostering Agency Placements,COMPASS FOSTERING WEST LTD,LE11,10/02/2023,-848.26
68455233,Social Care,"Children, Families and Community Health Services",External Placements,3rd Party Payments,Independent Fostering Agency Placements,COMPASS FOSTERING WEST LTD,LE11,10/02/2023,"2,926.00"
68448233,Social Care,"Children, Families and Community Health Services",External Placements,3rd Party Payments,Independent Fostering Agency Placements,COMPASS FOSTERING WEST LTD,LE11,10/02/2023,"3,112.20"
68451233,Social Care,"Children, Families and Community Health Services",External Placements,3rd Party Payments,Independent Fostering Agency Placements,COMPASS FOSTERING WEST LTD,LE11,10/02/2023,"2,969.96"
68449233,Social Care,"Children, Families and Community Health Services",External Placements,3rd Party Payments,Independent Fostering Agency Placements,COMPASS FOSTERING WEST LTD,LE11,10/02/2023,"2,717.96"
68457233,Social Care,"Children, Families and Community Health Services",External Placements,3rd Party Payments,Parent & Child Placements,COMPASS FOSTERING WEST LTD,LE11,10/02/2023,"5,799.92"
68458233,Social Care,"Children, Families and Community Health Services",External Placements,3rd Party Payments,Independent Fostering Agency Placements,COMPASS FOSTERING WEST LTD,LE11,10/02/2023,-870.03
68456233,Social Care,"Children, Families and Community Health Services",External Placements,3rd Party Payments,Independent Fostering Agency Placements,COMPASS FOSTERING WEST LTD,LE11,10/02/2023,"5,008.92"
68447233,Social Care,"Children, Families and Community Health Services",External Placements,3rd Party Payments,Independent Fostering Agency Placements,COMPASS FOSTERING WEST LTD,LE11,10/02/2023,"2,926.00"
68450233,Social Care,"Children, Families and Community Health Services",External Placements,3rd Party Payments,Independent Fostering Agency Placements,COMPASS FOSTERING WEST LTD,LE11,10/02/2023,"2,772.00"
68452233,Social Care,"Children, Families and Community Health Services",External Placements,3rd Party Payments,Independent Fostering Agency Placements,COMPASS FOSTERING WEST LTD,LE11,10/02/2023,"3,096.24"
68476233,Social Care,"Children, Families and Community Health Services",External Placements,3rd Party Payments,Independent Fostering Agency Placements,COMPASS FOSTERING WEST LTD,LE11,10/02/2023,"-3,397.62"
71653233,Human Resources and Organisational Development,"People, Culture and Organisational Resilience",Pay & Reward,Employees,Temporary / Agency - by Accounts Payable,COMPAWISE LIMITED,WA14,24/02/2023,"3,000.00"
71651233,Human Resources and Organisational Development,"People, Culture and Organisational Resilience",Pay & Reward,Employees,Temporary / Agency - by Accounts Payable,COMPAWISE LIMITED,WA14,24/02/2023,"3,000.00"
67909234,Human Resources and Organisational Development,"People, Culture and Organisational Resilience",Pay & Reward,Employees,Temporary / Agency - by Accounts Payable,COMPAWISE LIMITED,WA14,06/02/2023,"3,000.00"
65675234,Learning Disabilities,Adults,Learning Disability 18 - 64,Transfer Payments,Personal Budget - Direct Payments - Domiciliary Care,REDACTED PERSONAL DATA,GL2 ,01/02/2023,"4,378.85"
72057244,Learning Disabilities,Adults,Learning Disability 18 - 64,Transfer Payments,Personal Budget - Direct Payments - Domiciliary Care,REDACTED PERSONAL DATA,GL2 ,27/02/2023,"4,378.85"
71897233,Streetsmart,Streetsmart,Refuse Collection,Supplies and Services,Equipment,CORAL PRODUCTS (MOULDINGS) LTD,WA11,24/02/2023,734.4
69531233,Safeguarding and Quality Assurance,"Children, Families and Community Health Services",Participation,3rd Party Payments,Contracts - Child Care,CORAM VOICE,WC1N,15/02/2023,"12,396.95"
69177233,Social Care,"Children, Families and Community Health Services",Placement Adoption Service,3rd Party Payments,Adoption Allowances,REDACTED PERSONAL DATA,BA15,13/02/2023,860
72328267,Social Care,"Children, Families and Community Health Services",Placement Adoption Service,3rd Party Payments,Adoption Allowances,REDACTED PERSONAL DATA,BA15,27/02/2023,860
70515314,Learning Disabilities,Adults,Learning Disability 18 - 64,Income,Client Contribution - Residential,CORNERSTONES UK LTD,SN9 ,17/02/2023,-498.54
70515314,Learning Disabilities,Adults,Learning Disability 18 - 64,3rd Party Payments,Residential Care,CORNERSTONES UK LTD,SN9 ,17/02/2023,"4,925.06"
70515314,Learning Disabilities,Adults,Learning Disability 18 - 64,3rd Party Payments,Residential Care,CORNERSTONES UK LTD,SN9 ,17/02/2023,"9,412.21"
70515314,Learning Disabilities,Adults,Learning Disability 18 - 64,3rd Party Payments,Residential Care,CORNERSTONES UK LTD,SN9 ,17/02/2023,"7,367.44"
70515314,Learning Disabilities,Adults,Learning Disability 18 - 64,Income,Client Contribution - Residential,CORNERSTONES UK LTD,SN9 ,17/02/2023,-517.16
70515314,Learning Disabilities,Adults,Learning Disability 18 - 64,3rd Party Payments,Residential Care,CORNERSTONES UK LTD,SN9 ,17/02/2023,"6,273.02"
70515314,Learning Disabilities,Adults,Learning Disability 18 - 64,3rd Party Payments,Residential Care,CORNERSTONES UK LTD,SN9 ,17/02/2023,"9,618.04"
70515314,Learning Disabilities,Adults,Learning Disability 18 - 64,3rd Party Payments,Residential Care,CORNERSTONES UK LTD,SN9 ,17/02/2023,"8,158.31"
70515314,Learning Disabilities,Adults,Learning Disability 18 - 64,Income,Client Contribution - Residential,CORNERSTONES UK LTD,SN9 ,17/02/2023,-488.16
70515314,Learning Disabilities,Adults,Learning Disability 18 - 64,Income,Client Contribution - Residential,CORNERSTONES UK LTD,SN9 ,17/02/2023,-449.04
70515314,Learning Disabilities,Adults,Learning Disability 18 - 64,Income,Client Contribution - Residential,CORNERSTONES UK LTD,SN9 ,17/02/2023,-574.91
67977252,DSG Other Funding,DSG Skills and Attainment,LAC pupil premium,Supplies and Services,Services,COTSWOLD CHINE SCHOOL,GL5 ,15/02/2023,600
66712233,Streetsmart,Streetsmart,Waterside Fleet Workshops,Transport Costs,Repairs & Maintenance - Vehicles,COTSWOLD RECYCLING COMPANY LTD,GL12,01/02/2023,500
69715234,Streetsmart,Streetsmart,Waterside Fleet Hires,Transport Costs,Vehicle Hire / Contract,COTSWOLD RECYCLING COMPANY LTD,GL12,15/02/2023,"1,900.00"
69715233,Streetsmart,Streetsmart,Waterside Fleet Hires,Transport Costs,Vehicle Hire / Contract,COTSWOLD RECYCLING COMPANY LTD,GL12,15/02/2023,"1,905.00"
69234233,Learning Disabilities,Adults,Firethorn Close,Premises Costs,Maintenance - Grounds,COUNTRYWIDE GROUNDS MAINTENANCE LTD,NN13,13/02/2023,981
65691482,Learning Disabilities,Adults,Learning Disability 18 - 64,Transfer Payments,Personal Budget - Direct Payments - Domiciliary Care,REDACTED PERSONAL DATA,SP11,01/02/2023,"1,604.83"
72057507,Learning Disabilities,Adults,Learning Disability 18 - 64,Transfer Payments,Personal Budget - Direct Payments - Domiciliary Care,REDACTED PERSONAL DATA,SP11,27/02/2023,"1,604.83"
71635233,Streetsmart,Streetsmart,Waste - Processing,Supplies and Services,Repairs & Maintenance,COVEYA LTD,BS30,24/02/2023,"1,201.20"
71634233,Streetsmart,Streetsmart,Waste - Processing,Supplies and Services,Repairs & Maintenance,COVEYA LTD,BS30,24/02/2023,"1,201.20"
69030241,High Needs Block,DSG Skills and Attainment,SEN Resourcing Assessment Panel,3rd Party Payments,Top up funding - Maintained providers Pre 16,COVINGHAM PARK PRIMARY SCHOOL,SN3 ,13/02/2023,"2,732.09"
69496238,DSG Other Funding,DSG Skills and Attainment,DFE Additional Grants,3rd Party Payments,Payment of Pupil Premium to school,COVINGHAM PARK PRIMARY SCHOOL,SN3 ,17/02/2023,"7,354.00"
69493242,Schools - Primary,DSG Skills and Attainment,Primary School Budgets,3rd Party Payments,Mainstream Delegated Funding,COVINGHAM PARK PRIMARY SCHOOL,SN3 ,17/02/2023,"130,174.00"
70515387,Mental Health,Adults,Mental Health 65 and over,3rd Party Payments,Nursing Care,COXWELL HALL AND MEWS NURSING HOME,TW20,17/02/2023,"6,977.14"
70515387,Memory & Cognition,Adults,Support for Memory and Cognition 65 and over,3rd Party Payments,Residential Care,COXWELL HALL AND MEWS NURSING HOME,TW20,17/02/2023,"7,034.00"
71597234,Responsive Repairs,Repairs,Responsive Repairs,3rd Party Payments,Contract Payments,CPS CONSTRUCTION LTD,BS15,22/02/2023,"3,210.00"
69111233,Other Repairs,Repairs,Operations Procurement,Premises Costs,Repairs - Buildings,CPS CONSTRUCTION LTD,BS15,13/02/2023,878
67495234,Responsive Repairs,Repairs,Responsive Repairs,3rd Party Payments,Contract Payments,CPS CONSTRUCTION LTD,BS15,03/02/2023,"1,180.00"
69452234,Responsive Repairs,Repairs,Responsive Repairs,3rd Party Payments,Contract Payments,CPS CONSTRUCTION LTD,BS15,15/02/2023,"1,220.00"
69113233,Other Repairs,Repairs,Operations Procurement,Premises Costs,Repairs - Buildings,CPS CONSTRUCTION LTD,BS15,13/02/2023,650
71596233,Responsive Repairs,Repairs,Responsive Repairs,3rd Party Payments,Contract Payments,CPS CONSTRUCTION LTD,BS15,22/02/2023,750.68
69112233,Other Repairs,Repairs,Operations Procurement,Premises Costs,Repairs - Buildings,CPS CONSTRUCTION LTD,BS15,13/02/2023,"2,480.00"
70515289,Learning Disabilities,Adults,Learning Disability 18 - 64,3rd Party Payments,Residential Care,CRAEGMOOR HEALTHCARE,BA14,17/02/2023,"10,182.72"
70515289,Learning Disabilities,Adults,Learning Disability 18 - 64,Income,Client Contribution - Residential,CRAEGMOOR HEALTHCARE,BA14,17/02/2023,-488.16
70391233,Streetsmart,Streetsmart,Waste - Disposal,3rd Party Payments,Contract Payments,CRAPPER & SONS LANDFILL LTD,SN4 ,17/02/2023,"1,104.39"
70390233,Streetsmart,Streetsmart,Waste - Disposal,3rd Party Payments,Contract Payments,CRAPPER & SONS LANDFILL LTD,SN4 ,17/02/2023,486.25
70394233,Streetsmart,Streetsmart,Waste - Disposal,3rd Party Payments,Contract Payments,CRAPPER & SONS LANDFILL LTD,SN4 ,17/02/2023,"1,703.40"
70386233,Streetsmart,Streetsmart,Waste - Disposal,3rd Party Payments,Contract Payments,CRAPPER & SONS LANDFILL LTD,SN4 ,17/02/2023,680.94
70387233,Streetsmart,Streetsmart,Waste - Disposal,3rd Party Payments,Contract Payments,CRAPPER & SONS LANDFILL LTD,SN4 ,17/02/2023,513.09
70388233,Streetsmart,Streetsmart,Waste - Disposal,3rd Party Payments,Contract Payments,CRAPPER & SONS LANDFILL LTD,SN4 ,17/02/2023,752.16
70384233,Streetsmart,Streetsmart,Waste - Disposal,3rd Party Payments,Contract Payments,CRAPPER & SONS LANDFILL LTD,SN4 ,17/02/2023,452.08
70458234,Streetsmart,Streetsmart,Waste - Disposal,3rd Party Payments,Contract Payments,CRAPPER & SONS LANDFILL LTD,SN4 ,17/02/2023,495.95
70330233,Streetsmart,Streetsmart,Waste - Disposal,3rd Party Payments,Contract Payments,CRAPPER & SONS LANDFILL LTD,SN4 ,17/02/2023,871.77
70333233,Streetsmart,Streetsmart,Waste - Disposal,3rd Party Payments,Contract Payments,CRAPPER & SONS LANDFILL LTD,SN4 ,17/02/2023,"1,081.68"
70331233,Streetsmart,Streetsmart,Waste - Disposal,3rd Party Payments,Contract Payments,CRAPPER & SONS LANDFILL LTD,SN4 ,17/02/2023,"2,228.55"
70389233,Streetsmart,Streetsmart,Waste - Disposal,3rd Party Payments,Contract Payments,CRAPPER & SONS LANDFILL LTD,SN4 ,17/02/2023,"1,548.45"
70334233,Streetsmart,Streetsmart,Waste - Disposal,3rd Party Payments,Contract Payments,CRAPPER & SONS LANDFILL LTD,SN4 ,17/02/2023,"2,073.41"
70955233,Housing & Supported Living,Adults,ASC & Health Community Equipment Store IT,Capital,Contractor Payments,CREATIVE SOFTWARE SOLUTIONS (EUROPE) LIMITED,WS13,22/02/2023,"4,017.27"
70505233,Housing & Supported Living,Adults,ASC & Health Community Equipment Store IT,Capital,Contractor Payments,CREATIVE SOFTWARE SOLUTIONS (EUROPE) LIMITED,WS13,17/02/2023,"8,529.92"
71705233,Physical Support,Adults,Fessey House,Supplies and Services,Food,CREED CATERING SUPPLIES LTD,GL51,24/02/2023,28.98
70433233,Physical Support,Adults,Fessey House,Supplies and Services,Food,CREED CATERING SUPPLIES LTD,GL51,17/02/2023,624.28
70433233,Physical Support,Adults,Fessey House,Supplies and Services,Food,CREED CATERING SUPPLIES LTD,GL51,17/02/2023,24.65
71724234,Physical Support,Adults,Fessey House,Supplies and Services,Food,CREED CATERING SUPPLIES LTD,GL51,24/02/2023,98.32
68515233,Physical Support,Adults,Fessey House,Supplies and Services,Food,CREED CATERING SUPPLIES LTD,GL51,10/02/2023,565.12
71724234,Physical Support,Adults,Fessey House,Supplies and Services,Food,CREED CATERING SUPPLIES LTD,GL51,24/02/2023,421.65
72351233,Physical Support,Adults,Fessey House,Supplies and Services,Food,CREED CATERING SUPPLIES LTD,GL51,27/02/2023,536.13
72351233,Physical Support,Adults,Fessey House,Supplies and Services,Food,CREED CATERING SUPPLIES LTD,GL51,27/02/2023,16.86
71705233,Physical Support,Adults,Fessey House,Supplies and Services,Food,CREED CATERING SUPPLIES LTD,GL51,24/02/2023,519.38
68515233,Physical Support,Adults,Fessey House,Supplies and Services,Food,CREED CATERING SUPPLIES LTD,GL51,10/02/2023,71.91
68429233,Physical Support,Adults,Fessey House,Supplies and Services,Food,CREED CATERING SUPPLIES LTD,GL51,10/02/2023,554.18
67985233,Sheltered Accomodation,Special Services,George Hall Court,Premises Costs,Maintenance - Grounds,CROCSEC LIMITED,SN25,08/02/2023,"2,856.00"
70454234,Sheltered Accomodation,Special Services,George Hall Court,Supplies and Services,Security Recharge,CROCSEC LIMITED,SN25,17/02/2023,"2,252.50"
70671233,Early Years Block,DSG Skills and Attainment,Free Nursery Education Commissioning - three & four  year olds,3rd Party Payments,Contracts - Child Care,CROFT PLAYGROUP,SN3 ,22/02/2023,"2,850.00"
71798233,Licencing,Regulatory Services,Taxis & Private Hire,Supplies and Services,Testing / Inspection,CROSS STREET GARAGE (SWINDON) LTD,SN1 ,24/02/2023,605
67082234,School Transport,"Education, Inclusion and Skills",Special Educational Needs Transport,Transport Costs,Home to School Transport,CROSS STREET RADIO CARS,SN1 ,03/02/2023,580
68162233,School Transport,"Education, Inclusion and Skills",Special Educational Needs Transport,Transport Costs,Home to School Transport,CROSS STREET RADIO CARS,SN1 ,08/02/2023,"3,610.00"
67048233,School Transport,"Education, Inclusion and Skills",Special Educational Needs Transport,Transport Costs,Home to School Transport,CROSS STREET RADIO CARS,SN1 ,03/02/2023,"2,400.00"
67080233,School Transport,"Education, Inclusion and Skills",Special Educational Needs Transport,Transport Costs,Home to School Transport,CROSS STREET RADIO CARS,SN1 ,03/02/2023,"3,990.00"
68667233,School Transport,"Education, Inclusion and Skills",Special Educational Needs Transport,Transport Costs,Home to School Transport,CROSS STREET RADIO CARS,SN1 ,10/02/2023,"1,710.00"
67155233,School Transport,"Education, Inclusion and Skills",Special Educational Needs Transport,Transport Costs,Home to School Transport,CROSS STREET RADIO CARS,SN1 ,03/02/2023,"1,350.00"
67977253,DSG Other Funding,DSG Skills and Attainment,LAC pupil premium,Supplies and Services,Services,CROSSGATES CP SCHOOL,LD1 ,15/02/2023,600
69030259,High Needs Block,DSG Skills and Attainment,SEN Resourcing Assessment Panel,3rd Party Payments,Top up funding - Maintained providers Pre 16,CROWDYS HILL SCHOOL,SN2 ,13/02/2023,"170,476.31"
69499233,DSG Other Funding,DSG Skills and Attainment,DFE Additional Grants,3rd Party Payments,Payment of Pupil Premium to school,CROWDYS HILL SCHOOL,SN2 ,17/02/2023,"8,421.00"
69030258,High Needs Block,DSG Skills and Attainment,SEN Resourcing Assessment Panel,3rd Party Payments,Top up funding - Maintained providers Pre 16,CROWDYS HILL SCHOOL,SN2 ,13/02/2023,"66,892.93"
69493252,High Needs Block,DSG Skills and Attainment,Special School Place,3rd Party Payments,HNB- Place Funding pre 16,CROWDYS HILL SCHOOL,SN2 ,17/02/2023,"170,000.00"
69030263,High Needs Block,DSG Skills and Attainment,SEN Resourcing Assessment Panel,3rd Party Payments,Top up funding - Maintained providers Post 16,CROWDYS HILL SCHOOL,SN2 ,13/02/2023,"56,613.87"
69493251,High Needs Block,DSG Skills and Attainment,Special School Place,3rd Party Payments,HNB- Place Funding post 16,CROWDYS HILL SCHOOL,SN2 ,17/02/2023,"38,333.00"
66941233,Care Management & Safeguarding,Adults,Adults Community Team - Initial Contact Team,3rd Party Payments,Personal Budget - Domiciliary care,CRYSTAL CARING LIMITED,SN2 ,03/02/2023,894.36
66941233,Physical Support,Adults,Physical Support 65 and over,3rd Party Payments,Personal Budget - Domiciliary care,CRYSTAL CARING LIMITED,SN2 ,03/02/2023,"1,346.68"
66939233,Physical Support,Adults,Physical Support 65 and over,3rd Party Payments,Personal Budget - Domiciliary care,CRYSTAL CARING LIMITED,SN2 ,03/02/2023,"1,470.64"
66940233,Physical Support,Adults,Physical Support 65 and over,3rd Party Payments,Personal Budget - Domiciliary care,CRYSTAL CARING LIMITED,SN2 ,03/02/2023,"2,900.16"
66942233,Physical Support,Adults,Physical Support 18 - 64,3rd Party Payments,Personal Budget - Domiciliary care,CRYSTAL CARING LIMITED,SN2 ,03/02/2023,"4,511.36"
70695233,Planned Maintenance Programme,HRA Capital Financing,Contingent Major Repairs,Capital,Contractor Payments,CRYSTAL ELECTRONICS LTD,NN6 ,20/02/2023,"5,535.51"
70292233,Planned Maintenance Programme,HRA Capital Financing,Contingent Major Repairs,Capital,Contractor Payments,CRYSTAL ELECTRONICS LTD,NN6 ,17/02/2023,"4,114.93"
Corporate Card Transaction,Community Health & Wellbeing,Public Health,Swindon Circles,Supplies and Services,Food,Cs* Tesco Stores Gc,,20/02/2023,"1,000.00"
67748233,Property Management,Property,Property Assets,Supplies and Services,License Costs,CSQUARED REAL ESTATE LLP,BA1 ,06/02/2023,30.87
67748233,Property Management,Property,Property Assets,Supplies and Services,Fees,CSQUARED REAL ESTATE LLP,BA1 ,06/02/2023,"2,495.00"
Corporate Card Transaction,ASC Finance Services Teams,ASC Finance Services,ASC Money Management Team,Supplies and Services,Services,Currys Online,,23/02/2023,599
Corporate Card Transaction,ASC Finance Services Teams,ASC Finance Services,ASC Money Management Team,Supplies and Services,Services,Currys Online,,17/02/2023,674
67977254,DSG Other Funding,DSG Skills and Attainment,LAC pupil premium,Supplies and Services,Services,CUTTESLOWE PRIMARY SCHOOL,OX2 ,15/02/2023,600
69749233,Highways Schemes,Strategic Planning and Highways,School safe environment zones,Capital,Contractor Payments,CYCLEPODS LTD,TN16,15/02/2023,"7,970.00"
72057280,Physical Support,Adults,Physical Support 18 - 64,Transfer Payments,Personal Budget - Direct Payments - Domiciliary Care,REDACTED PERSONAL DATA,SN25,27/02/2023,"3,076.26"
65691254,Physical Support,Adults,Physical Support 18 - 64,Transfer Payments,Personal Budget - Direct Payments - Domiciliary Care,REDACTED PERSONAL DATA,SN25,01/02/2023,"3,076.26"
72057583,Physical Support,Adults,Physical Support 18 - 64,Transfer Payments,Personal Budget - Direct Payments - Domiciliary Care,REDACTED PERSONAL DATA,SP11,27/02/2023,"4,690.60"
65691564,Physical Support,Adults,Physical Support 18 - 64,Transfer Payments,Personal Budget - Direct Payments - Domiciliary Care,REDACTED PERSONAL DATA,SP11,01/02/2023,"4,690.60"
68483233,Disabled Children,"Children, Families and Community Health Services",DCT Daytime Short Breaks,3rd Party Payments,Cash Support,REDACTED PERSONAL DATA,SN3 ,10/02/2023,689.2
72057236,Physical Support,Adults,Physical Support 18 - 64,Transfer Payments,Personal Budget - Direct Payments - Domiciliary Care,REDACTED PERSONAL DATA,SN3 ,27/02/2023,"2,686.43"
65674234,Physical Support,Adults,Physical Support 18 - 64,Transfer Payments,Personal Budget - Direct Payments - Domiciliary Care,REDACTED PERSONAL DATA,SN3 ,01/02/2023,"2,686.43"
72057412,Learning Disabilities,Adults,Learning Disability 18 - 64,Transfer Payments,Personal Budget - Direct Payments - Domiciliary Care,REDACTED PERSONAL DATA,SN2 ,27/02/2023,"1,445.84"
65691386,Learning Disabilities,Adults,Learning Disability 18 - 64,Transfer Payments,Personal Budget - Direct Payments - Domiciliary Care,REDACTED PERSONAL DATA,SN2 ,01/02/2023,"1,445.84"
65691424,Learning Disabilities,Adults,Learning Disability 18 - 64,Transfer Payments,Personal Budget - Direct Payments - Domiciliary Care,REDACTED PERSONAL DATA,SN2 ,01/02/2023,"9,937.71"
72057448,Learning Disabilities,Adults,Learning Disability 18 - 64,Transfer Payments,Personal Budget - Direct Payments - Domiciliary Care,REDACTED PERSONAL DATA,SN2 ,27/02/2023,"9,937.71"
72057329,Physical Support,Adults,Physical Support 18 - 64,Transfer Payments,Personal Budget - Direct Payments - Domiciliary Care,REDACTED PERSONAL DATA,SN2 ,27/02/2023,599.56
65691299,Physical Support,Adults,Physical Support 18 - 64,Transfer Payments,Personal Budget - Direct Payments - Domiciliary Care,REDACTED PERSONAL DATA,SN2 ,01/02/2023,599.56
65691371,Learning Disabilities,Adults,Learning Disability 18 - 64,Transfer Payments,Personal Budget - Direct Payments - Domiciliary Care,REDACTED PERSONAL DATA,SP11,01/02/2023,648.32
72057397,Learning Disabilities,Adults,Learning Disability 18 - 64,Transfer Payments,Personal Budget - Direct Payments - Domiciliary Care,REDACTED PERSONAL DATA,SP11,27/02/2023,648.32
71429233,Highways Inspections & Maintenance,Highway Operations and Car Parking,Highway Maintenance,3rd Party Payments,Contract Payments,DAVID NEWMAN CONTRACTORS LTD,SN6 ,22/02/2023,"4,995.00"
71428233,Highways Inspections & Maintenance,Highway Operations and Car Parking,Highway Maintenance,3rd Party Payments,Contract Payments,DAVID NEWMAN CONTRACTORS LTD,SN6 ,22/02/2023,"4,995.00"
71430233,Highways Inspections & Maintenance,Highway Operations and Car Parking,Highway Maintenance,3rd Party Payments,Contract Payments,DAVID NEWMAN CONTRACTORS LTD,SN6 ,22/02/2023,"4,995.00"
72328442,Social Care,"Children, Families and Community Health Services",Placement Adoption Service,3rd Party Payments,Special Guardianship Orders,REDACTED PERSONAL DATA,B35 ,27/02/2023,676.96
69203382,Social Care,"Children, Families and Community Health Services",Placement Adoption Service,3rd Party Payments,Special Guardianship Orders,REDACTED PERSONAL DATA,B35 ,13/02/2023,676.96
69716233,Streetsmart,Streetsmart,Waterside Fleet Hires,Transport Costs,Vehicle Hire / Contract,DAWSONRENTLES SWEEPERS,HD6 ,15/02/2023,"3,256.00"
69716237,Streetsmart,Streetsmart,Waterside Fleet Hires,Transport Costs,Insurance - Transport Related,DAWSONRENTLES SWEEPERS,HD6 ,15/02/2023,"2,954.77"
69716239,Streetsmart,Streetsmart,Waterside Fleet Hires,Transport Costs,Vehicle Hire / Contract,DAWSONRENTLES SWEEPERS,HD6 ,15/02/2023,"2,954.77"
69716235,Streetsmart,Streetsmart,Waterside Fleet Hires,Transport Costs,Vehicle Hire / Contract,DAWSONRENTLES SWEEPERS,HD6 ,15/02/2023,"3,215.48"
69716234,Streetsmart,Streetsmart,Waterside Fleet Hires,Transport Costs,Vehicle Hire / Contract,DAWSONRENTLES SWEEPERS,HD6 ,15/02/2023,"2,867.86"
70878233,Streetsmart,Streetsmart,Waterside Fleet Hires,Transport Costs,Vehicle Hire / Contract,DAWSONRENTLES SWEEPERS,HD6 ,22/02/2023,"1,534.00"
69716236,Streetsmart,Streetsmart,Waterside Fleet Hires,Transport Costs,Vehicle Hire / Contract,DAWSONRENTLES SWEEPERS,HD6 ,15/02/2023,"2,150.90"
72216233,Social Care,"Children, Families and Community Health Services",Placement Fostering Service,3rd Party Payments,Foster Care Basic Payments,REDACTED PERSONAL DATA,SN5 ,27/02/2023,536
69058233,Social Care,"Children, Families and Community Health Services",Placement Fostering Service,3rd Party Payments,Foster Care Basic Payments,REDACTED PERSONAL DATA,SN5 ,13/02/2023,536
72216233,Social Care,"Children, Families and Community Health Services",Placement Fostering Service,3rd Party Payments,Carers Skills Payments - Advanced,REDACTED PERSONAL DATA,SN5 ,27/02/2023,370
72216233,Social Care,"Children, Families and Community Health Services",Placement Fostering Service,3rd Party Payments,Foster Care Additional Allowance,REDACTED PERSONAL DATA,SN5 ,27/02/2023,100
69058233,Social Care,"Children, Families and Community Health Services",Placement Fostering Service,3rd Party Payments,Foster Care Additional Allowance,REDACTED PERSONAL DATA,SN5 ,13/02/2023,100
69058233,Social Care,"Children, Families and Community Health Services",Placement Fostering Service,3rd Party Payments,Carers Skills Payments - Advanced,REDACTED PERSONAL DATA,SN5 ,13/02/2023,370
69712233,Landscaping & Open Space,Culture & Heritage & Art,GWCF - Trees for Climate,Capital,Contractor Payments,DEEPER GREEN SERVICES LTD,BS26,15/02/2023,"5,211.00"
69710233,Landscaping & Open Space,Culture & Heritage & Art,GWCF - Trees for Climate,Capital,Contractor Payments,DEEPER GREEN SERVICES LTD,BS26,15/02/2023,"1,703.00"
67977255,DSG Other Funding,DSG Skills and Attainment,LAC pupil premium,Supplies and Services,Services,DELVES JUNIOR SCHOOL,WS5 ,15/02/2023,600
70942233,Learning Disabilities,Adults,Learning Disability 18 - 64,3rd Party Payments,Supported Accommodation Scheme,REDACTED PERSONAL DATA,SN2 ,22/02/2023,"1,321.36"
70942233,Learning Disabilities,Adults,Learning Disability 18 - 64,3rd Party Payments,Supported Accommodation Scheme,REDACTED PERSONAL DATA,SN2 ,22/02/2023,"2,004.72"
70942233,Learning Disabilities,Adults,Learning Disability 18 - 64,3rd Party Payments,Supported Accommodation Scheme,REDACTED PERSONAL DATA,SN2 ,22/02/2023,"1,675.36"
69119233,Highways & Transport,Highways & Transport,Highways Management,Employees,Temporary / Agency - by Accounts Payable,DESIGNS FOR LIGHTING LTD,SO23,13/02/2023,432
67387233,Human Resources and Organisational Development,"People, Culture and Organisational Resilience",Organisational Development,Employees,Training,DEVELOP TRAINING LTD,DE24,03/02/2023,"2,235.00"
70196233,Supported Employment,Housing Services,EW - Timber,Supplies and Services,Materials,DEXTEROUS DESIGNS LTD,TA1 ,17/02/2023,"2,500.00"
72325233,Social Care,"Children, Families and Community Health Services",Placement Adoption Service,3rd Party Payments,Adoption Allowances,REDACTED PERSONAL DATA,CF44,27/02/2023,500.34
69142233,Social Care,"Children, Families and Community Health Services",Placement Adoption Service,3rd Party Payments,Adoption Allowances,REDACTED PERSONAL DATA,CF44,13/02/2023,500.34
70790233,Licencing,Regulatory Services,Taxis & Private Hire,Supplies and Services,Equipment,DIGITAL ID LTD,SK1 ,20/02/2023,"1,807.85"
70515374,Physical Support,Adults,Physical Support 65 and over,Income,Client Contribution - Nursing,DIVA CARE LIMITED,GL7 ,17/02/2023,-316.71
70515374,Physical Support,Adults,Physical Support 65 and over,3rd Party Payments,Nursing Care,DIVA CARE LIMITED,GL7 ,17/02/2023,"3,826.16"
67071234,Social Care,"Children, Families and Community Health Services",Assessment and Child Protection Team,3rd Party Payments,S17 Emergency Payments,DNA WORLDWIDE GROUP,BA11,03/02/2023,665
70785233,Social Care,"Children, Families and Community Health Services",Legal Fees,Supplies and Services,Fees,DNA WORLDWIDE GROUP,BA11,20/02/2023,436.5
70729233,Social Care,"Children, Families and Community Health Services",Legal Fees,Supplies and Services,Fees,DNA WORLDWIDE GROUP,BA11,20/02/2023,"1,099.00"
70728233,Social Care,"Children, Families and Community Health Services",Legal Fees,Supplies and Services,Fees,DNA WORLDWIDE GROUP,BA11,20/02/2023,500
69792233,Town Centre,"Economy, Growth and Place","No 7, 9 & 11 Carriage works @ Railway Village",Capital,Consultants,DONALD INSALL ASSOCIATES LIMITED,W1G ,15/02/2023,"3,000.00"
72057249,Physical Support,Adults,Physical Support 18 - 64,Transfer Payments,Personal Budget - Direct Payments - Domiciliary Care,REDACTED PERSONAL DATA,SP11,27/02/2023,"4,756.08"
65682233,Physical Support,Adults,Physical Support 18 - 64,Transfer Payments,Personal Budget - Direct Payments - Domiciliary Care,REDACTED PERSONAL DATA,SP11,01/02/2023,"4,756.08"
72222233,Social Care,"Children, Families and Community Health Services",Placement Fostering Service,3rd Party Payments,Carers Skills Payments - Core,REDACTED PERSONAL DATA,SN2 ,27/02/2023,216
72222233,Social Care,"Children, Families and Community Health Services",Placement Fostering Service,3rd Party Payments,Foster Care Additional Allowance,REDACTED PERSONAL DATA,SN2 ,27/02/2023,18
72222233,Social Care,"Children, Families and Community Health Services",Placement Fostering Service,3rd Party Payments,Foster Care Additional Allowance,REDACTED PERSONAL DATA,SN2 ,27/02/2023,9
69062233,Social Care,"Children, Families and Community Health Services",Placement Fostering Service,3rd Party Payments,Foster Care Additional Allowance,REDACTED PERSONAL DATA,SN2 ,13/02/2023,9
72222233,Social Care,"Children, Families and Community Health Services",Placement Fostering Service,3rd Party Payments,Foster Care Basic Payments,REDACTED PERSONAL DATA,SN2 ,27/02/2023,352
69062233,Social Care,"Children, Families and Community Health Services",Placement Fostering Service,3rd Party Payments,Carers Skills Payments - Core,REDACTED PERSONAL DATA,SN2 ,13/02/2023,216
69062233,Social Care,"Children, Families and Community Health Services",Placement Fostering Service,3rd Party Payments,Foster Care Basic Payments,REDACTED PERSONAL DATA,SN2 ,13/02/2023,352
67977358,DSG Other Funding,DSG Skills and Attainment,LAC pupil premium,Supplies and Services,Services,DORCAN ACADEMY,SN3 ,15/02/2023,600
67977356,DSG Other Funding,DSG Skills and Attainment,LAC pupil premium,Supplies and Services,Services,DORCAN ACADEMY,SN3 ,15/02/2023,600
72333233,Disabled Children,"Children, Families and Community Health Services",ICES Paediatric,Supplies and Services,Equipment,DORCAN ACADEMY,SN3 ,27/02/2023,511.75
67977357,DSG Other Funding,DSG Skills and Attainment,LAC pupil premium,Supplies and Services,Services,DORCAN ACADEMY,SN3 ,15/02/2023,600
69030301,High Needs Block,DSG Skills and Attainment,SEN Resourcing Assessment Panel,3rd Party Payments,Top up funding - Academies and Free Schools Pre 16,DORCAN ACADEMY,SN3 ,13/02/2023,"5,165.03"
65594246,Physical Support,Adults,Physical Support 18 - 64,Transfer Payments,Personal Budget - Direct Payments - Domiciliary Care,REDACTED PERSONAL DATA,SP11,01/02/2023,"1,503.11"
71974233,Physical Support,Adults,Physical Support 18 - 64,Transfer Payments,Personal Budget - Direct Payments - Domiciliary Care,REDACTED PERSONAL DATA,SP11,27/02/2023,"1,503.11"
67825233,High Needs Block,DSG Skills and Attainment,Out of Borough School Fees,3rd Party Payments,OLA Special schools- Pre 16,DOWNLAND SCHOOL WCC FUND A/C,SN10,06/02/2023,"18,081.99"
67236233,Streetsmart,Streetsmart,Waterside Fleet Workshops,Supplies and Services,Equipment,DP AUTOLINES,SN3 ,03/02/2023,435.05
71316233,Homelessness and Travellers,Housing Services,Leased Private Managed Accommodation,Transfer Payments,Payment of Costs,REDACTED PERSONAL DATA,SN6 ,22/02/2023,725
71342233,Homelessness and Travellers,Housing Services,Leased Private Managed Accommodation,Transfer Payments,Payment of Costs,REDACTED PERSONAL DATA,SN6 ,22/02/2023,725
72436233,Property Management,Property,Property Assets,Supplies and Services,Fees,DR CHRISTINA LIENEN,WC1R,27/02/2023,650
70515371,Physical Support,Adults,Physical Support 18 - 64,3rd Party Payments,Nursing Care,DRUMMOND GRANGE NURSING HOME,EH18,17/02/2023,"7,782.11"
70921237,Learning Disabilities,Adults,Learning Disability 18 - 64,3rd Party Payments,Supported Accommodation Scheme,REDACTED PERSONAL DATA,SN25,22/02/2023,"2,058.96"
70515368,Learning Disabilities,Adults,Learning Disability 18 - 64,Income,Client Contribution - Supported Living,DYNAMIC SUPPORT LTD,SN25,17/02/2023,-519.28
70515368,Learning Disabilities,Adults,Learning Disability 18 - 64,3rd Party Payments,Supported Lodgings (Childrens)/Supported Living (Adults),DYNAMIC SUPPORT LTD,SN25,17/02/2023,"1,263.43"
70515368,Learning Disabilities,Adults,Learning Disability 18 - 64,3rd Party Payments,Supported Lodgings (Childrens)/Supported Living (Adults),DYNAMIC SUPPORT LTD,SN25,17/02/2023,-178.02
70515368,Learning Disabilities,Adults,Learning Disability 18 - 64,3rd Party Payments,Supported Lodgings (Childrens)/Supported Living (Adults),DYNAMIC SUPPORT LTD,SN25,17/02/2023,756.17
70515368,Learning Disabilities,Adults,Learning Disability 18 - 64,3rd Party Payments,Supported Lodgings (Childrens)/Supported Living (Adults),DYNAMIC SUPPORT LTD,SN25,17/02/2023,"4,464.95"
70515368,Learning Disabilities,Adults,Learning Disability 18 - 64,3rd Party Payments,Supported Lodgings (Childrens)/Supported Living (Adults),DYNAMIC SUPPORT LTD,SN25,17/02/2023,"8,072.84"
70515368,Learning Disabilities,Adults,Learning Disability 18 - 64,3rd Party Payments,Supported Lodgings (Childrens)/Supported Living (Adults),DYNAMIC SUPPORT LTD,SN25,17/02/2023,"7,581.99"
70515368,Learning Disabilities,Adults,Learning Disability 18 - 64,3rd Party Payments,Supported Lodgings (Childrens)/Supported Living (Adults),DYNAMIC SUPPORT LTD,SN25,17/02/2023,"3,165.03"
70515368,Learning Disabilities,Adults,Learning Disability 18 - 64,3rd Party Payments,Supported Lodgings (Childrens)/Supported Living (Adults),DYNAMIC SUPPORT LTD,SN25,17/02/2023,"6,655.30"
69483233,Learning Disabilities,Adults,Learning Disability 18 - 64,3rd Party Payments,Personal Budget - Respite Care,DYNAMIC SUPPORT LTD,SN25,15/02/2023,479.52
70515368,Mental Health,Adults,Mental Health 18-64,3rd Party Payments,Supported Lodgings (Childrens)/Supported Living (Adults),DYNAMIC SUPPORT LTD,SN25,17/02/2023,-781.44
70515368,Mental Health,Adults,Mental Health 18-64,3rd Party Payments,Supported Lodgings (Childrens)/Supported Living (Adults),DYNAMIC SUPPORT LTD,SN25,17/02/2023,"-5,470.08"
70515368,Mental Health,Adults,Mental Health 18-64,3rd Party Payments,Supported Lodgings (Childrens)/Supported Living (Adults),DYNAMIC SUPPORT LTD,SN25,17/02/2023,"-1,340.25"
70515368,Physical Support,Adults,Physical Support 18 - 64,3rd Party Payments,Supported Lodgings (Childrens)/Supported Living (Adults),DYNAMIC SUPPORT LTD,SN25,17/02/2023,"5,092.95"
70515368,Learning Disabilities,Adults,Learning Disability 18 - 64,3rd Party Payments,Supported Lodgings (Childrens)/Supported Living (Adults),DYNAMIC SUPPORT LTD,SN25,17/02/2023,"5,525.90"
70515368,Mental Health,Adults,Mental Health 18-64,3rd Party Payments,Supported Lodgings (Childrens)/Supported Living (Adults),DYNAMIC SUPPORT LTD,SN25,17/02/2023,"8,845.65"
70515368,Learning Disabilities,Adults,Learning Disability 18 - 64,Income,Client Contribution - Supported Living,DYNAMIC SUPPORT LTD,SN25,17/02/2023,-21.51
70515368,Learning Disabilities,Adults,Learning Disability 18 - 64,3rd Party Payments,Supported Lodgings (Childrens)/Supported Living (Adults),DYNAMIC SUPPORT LTD,SN25,17/02/2023,"1,582.54"
70515368,Learning Disabilities,Adults,Learning Disability 18 - 64,3rd Party Payments,Supported Lodgings (Childrens)/Supported Living (Adults),DYNAMIC SUPPORT LTD,SN25,17/02/2023,"2,780.06"
70515368,Learning Disabilities,Adults,Learning Disability 18 - 64,3rd Party Payments,Supported Lodgings (Childrens)/Supported Living (Adults),DYNAMIC SUPPORT LTD,SN25,17/02/2023,"1,638.69"
70515368,Learning Disabilities,Adults,Learning Disability 18 - 64,3rd Party Payments,Supported Lodgings (Childrens)/Supported Living (Adults),DYNAMIC SUPPORT LTD,SN25,17/02/2023,"5,274.72"
70515368,Learning Disabilities,Adults,Learning Disability 18 - 64,3rd Party Payments,Supported Lodgings (Childrens)/Supported Living (Adults),DYNAMIC SUPPORT LTD,SN25,17/02/2023,"3,692.18"
70515368,Physical Support,Adults,Physical Support 18 - 64,3rd Party Payments,Supported Lodgings (Childrens)/Supported Living (Adults),DYNAMIC SUPPORT LTD,SN25,17/02/2023,"8,845.65"
66177233,Physical Support,Adults,Physical Support 65 and over,3rd Party Payments,Personal Budget - Domiciliary care,DYNAMIC SUPPORT LTD,SN25,01/02/2023,"7,614.72"
70515368,Learning Disabilities,Adults,Learning Disability 18 - 64,Income,Client Contribution - Supported Living,DYNAMIC SUPPORT LTD,SN25,17/02/2023,-9.22
70515368,Learning Disabilities,Adults,Learning Disability 18 - 64,Income,Client Contribution - Supported Living,DYNAMIC SUPPORT LTD,SN25,17/02/2023,-21.36
70515368,Learning Disabilities,Adults,Learning Disability 18 - 64,3rd Party Payments,Supported Lodgings (Childrens)/Supported Living (Adults),DYNAMIC SUPPORT LTD,SN25,17/02/2023,"-2,076.90"
70515368,Learning Disabilities,Adults,Learning Disability 18 - 64,3rd Party Payments,Supported Lodgings (Childrens)/Supported Living (Adults),DYNAMIC SUPPORT LTD,SN25,17/02/2023,"1,853.37"
70515368,Learning Disabilities,Adults,Learning Disability 18 - 64,3rd Party Payments,Supported Lodgings (Childrens)/Supported Living (Adults),DYNAMIC SUPPORT LTD,SN25,17/02/2023,"1,811.28"
70515368,Learning Disabilities,Adults,Learning Disability 18 - 64,3rd Party Payments,Supported Lodgings (Childrens)/Supported Living (Adults),DYNAMIC SUPPORT LTD,SN25,17/02/2023,"8,845.65"
70515368,Learning Disabilities,Adults,Learning Disability 18 - 64,3rd Party Payments,Supported Lodgings (Childrens)/Supported Living (Adults),DYNAMIC SUPPORT LTD,SN25,17/02/2023,168.49
69483233,Learning Disabilities,Adults,Learning Disability 18 - 64,3rd Party Payments,Personal Budget - Respite Care,DYNAMIC SUPPORT LTD,SN25,15/02/2023,"1,420.80"
69486233,Learning Disabilities,Adults,Learning Disability 18 - 64,3rd Party Payments,Personal Budget - Domiciliary care,DYNAMIC SUPPORT LTD,SN25,15/02/2023,632.96
70515368,Physical Support,Adults,Physical Support 18 - 64,3rd Party Payments,Supported Lodgings (Childrens)/Supported Living (Adults),DYNAMIC SUPPORT LTD,SN25,17/02/2023,"3,036.96"
70515368,Physical Support,Adults,Physical Support 18 - 64,3rd Party Payments,Supported Lodgings (Childrens)/Supported Living (Adults),DYNAMIC SUPPORT LTD,SN25,17/02/2023,"5,274.72"
66173233,Physical Support,Adults,Physical Support 65 and over,3rd Party Payments,Personal Budget - Domiciliary care,DYNAMIC SUPPORT LTD,SN25,01/02/2023,"15,229.44"
70515368,Learning Disabilities,Adults,Learning Disability 18 - 64,3rd Party Payments,Supported Lodgings (Childrens)/Supported Living (Adults),DYNAMIC SUPPORT LTD,SN25,17/02/2023,"-6,986.52"
70515368,Learning Disabilities,Adults,Learning Disability 18 - 64,3rd Party Payments,Supported Lodgings (Childrens)/Supported Living (Adults),DYNAMIC SUPPORT LTD,SN25,17/02/2023,145.44
70515368,Learning Disabilities,Adults,Learning Disability 18 - 64,3rd Party Payments,Supported Lodgings (Childrens)/Supported Living (Adults),DYNAMIC SUPPORT LTD,SN25,17/02/2023,"3,706.75"
70515368,Learning Disabilities,Adults,Learning Disability 18 - 64,3rd Party Payments,Supported Lodgings (Childrens)/Supported Living (Adults),DYNAMIC SUPPORT LTD,SN25,17/02/2023,"7,666.23"
70515368,Learning Disabilities,Adults,Learning Disability 18 - 64,3rd Party Payments,Supported Lodgings (Childrens)/Supported Living (Adults),DYNAMIC SUPPORT LTD,SN25,17/02/2023,"8,508.67"
70515368,Learning Disabilities,Adults,Learning Disability 18 - 64,3rd Party Payments,Supported Lodgings (Childrens)/Supported Living (Adults),DYNAMIC SUPPORT LTD,SN25,17/02/2023,"7,402.18"
66178233,Learning Disabilities,Adults,Learning Disability 18 - 64,3rd Party Payments,Personal Budget - Domiciliary care,DYNAMIC SUPPORT LTD,SN25,01/02/2023,632.96
70515368,Learning Disabilities,Adults,Learning Disability 65 and over,3rd Party Payments,Supported Lodgings (Childrens)/Supported Living (Adults),DYNAMIC SUPPORT LTD,SN25,17/02/2023,"4,127.97"
70515368,Learning Disabilities,Adults,Learning Disability 18 - 64,3rd Party Payments,Supported Lodgings (Childrens)/Supported Living (Adults),DYNAMIC SUPPORT LTD,SN25,17/02/2023,-168.8
70515368,Learning Disabilities,Adults,Learning Disability 18 - 64,3rd Party Payments,Supported Lodgings (Childrens)/Supported Living (Adults),DYNAMIC SUPPORT LTD,SN25,17/02/2023,315.06
70515368,Learning Disabilities,Adults,Learning Disability 18 - 64,3rd Party Payments,Supported Lodgings (Childrens)/Supported Living (Adults),DYNAMIC SUPPORT LTD,SN25,17/02/2023,"2,190.35"
70515368,Learning Disabilities,Adults,Learning Disability 18 - 64,3rd Party Payments,Supported Lodgings (Childrens)/Supported Living (Adults),DYNAMIC SUPPORT LTD,SN25,17/02/2023,"1,020.41"
70515368,Learning Disabilities,Adults,Learning Disability 18 - 64,3rd Party Payments,Supported Lodgings (Childrens)/Supported Living (Adults),DYNAMIC SUPPORT LTD,SN25,17/02/2023,505.47
70515368,Physical Support,Adults,Physical Support 65 and over,3rd Party Payments,Supported Lodgings (Childrens)/Supported Living (Adults),DYNAMIC SUPPORT LTD,SN25,17/02/2023,"5,274.72"
70515368,Physical Support,Adults,Physical Support 65 and over,3rd Party Payments,Supported Lodgings (Childrens)/Supported Living (Adults),DYNAMIC SUPPORT LTD,SN25,17/02/2023,"8,845.65"
70515368,Learning Disabilities,Adults,Learning Disability 18 - 64,Income,Client Contribution - Supported Living,DYNAMIC SUPPORT LTD,SN25,17/02/2023,-132
70515368,Learning Disabilities,Adults,Learning Disability 18 - 64,3rd Party Payments,Supported Lodgings (Childrens)/Supported Living (Adults),DYNAMIC SUPPORT LTD,SN25,17/02/2023,"-7,104.75"
70515368,Learning Disabilities,Adults,Learning Disability 18 - 64,3rd Party Payments,Supported Lodgings (Childrens)/Supported Living (Adults),DYNAMIC SUPPORT LTD,SN25,17/02/2023,"1,853.28"
70515368,Learning Disabilities,Adults,Learning Disability 18 - 64,3rd Party Payments,Supported Lodgings (Childrens)/Supported Living (Adults),DYNAMIC SUPPORT LTD,SN25,17/02/2023,"3,285.53"
70515368,Learning Disabilities,Adults,Learning Disability 18 - 64,3rd Party Payments,Supported Lodgings (Childrens)/Supported Living (Adults),DYNAMIC SUPPORT LTD,SN25,17/02/2023,631.86
69483233,Learning Disabilities,Adults,Learning Disability 18 - 64,3rd Party Payments,Personal Budget - Respite Care,DYNAMIC SUPPORT LTD,SN25,15/02/2023,287.73
70515368,Learning Disabilities,Adults,Learning Disability 65 and over,3rd Party Payments,Supported Lodgings (Childrens)/Supported Living (Adults),DYNAMIC SUPPORT LTD,SN25,17/02/2023,"3,165.03"
70515368,Mental Health,Adults,Mental Health 18-64,3rd Party Payments,Supported Lodgings (Childrens)/Supported Living (Adults),DYNAMIC SUPPORT LTD,SN25,17/02/2023,"1,582.54"
70515368,Learning Disabilities,Adults,Learning Disability 18 - 64,Income,Client Contribution - Supported Living,DYNAMIC SUPPORT LTD,SN25,17/02/2023,-396.57
70515368,Learning Disabilities,Adults,Learning Disability 18 - 64,3rd Party Payments,Supported Lodgings (Childrens)/Supported Living (Adults),DYNAMIC SUPPORT LTD,SN25,17/02/2023,-95.91
70515368,Learning Disabilities,Adults,Learning Disability 18 - 64,3rd Party Payments,Supported Lodgings (Childrens)/Supported Living (Adults),DYNAMIC SUPPORT LTD,SN25,17/02/2023,791.25
70515368,Learning Disabilities,Adults,Learning Disability 18 - 64,3rd Party Payments,Supported Lodgings (Childrens)/Supported Living (Adults),DYNAMIC SUPPORT LTD,SN25,17/02/2023,"2,948.55"
70515368,Learning Disabilities,Adults,Learning Disability 18 - 64,3rd Party Payments,Supported Lodgings (Childrens)/Supported Living (Adults),DYNAMIC SUPPORT LTD,SN25,17/02/2023,"-10,936.44"
69343233,Town Centre,"Economy, Growth and Place","No 7, 9 & 11 Carriage works @ Railway Village",Capital,Contractor Payments,E W BEARD LTD,SN3 ,15/02/2023,"182,555.05"
69343233,Town Centre,"Economy, Growth and Place",Carriage Works Phase 3,Capital,Contractor Payments,E W BEARD LTD,SN3 ,15/02/2023,"116,969.72"
71443233,Environmental & Regulatory,Highways & Transport,Shaw Farm Landfill Site,Supplies and Services,Testing / Inspection,EARTH DIRECT LTD,WV10,22/02/2023,"2,316.25"
69496239,DSG Other Funding,DSG Skills and Attainment,DFE Additional Grants,3rd Party Payments,Payment of Pupil Premium to school,EAST WICHEL COMMUNITY PRIMARY SCHOOL,SN1 ,17/02/2023,"7,112.00"
69030242,High Needs Block,DSG Skills and Attainment,SEN Resourcing Assessment Panel,3rd Party Payments,Top up funding - Maintained providers Pre 16,EAST WICHEL COMMUNITY PRIMARY SCHOOL,SN1 ,13/02/2023,"3,632.92"
69493243,Schools - Primary,DSG Skills and Attainment,Primary School Budgets,3rd Party Payments,Mainstream Delegated Funding,EAST WICHEL COMMUNITY PRIMARY SCHOOL,SN1 ,17/02/2023,"133,267.00"
70515333,Learning Disabilities,Adults,Learning Disability 18 - 64,Income,Client Contribution - Residential,EASTERBROOK FARM LTD,EX20,17/02/2023,-408.96
70515333,Learning Disabilities,Adults,Learning Disability 18 - 64,3rd Party Payments,Residential Care,EASTERBROOK FARM LTD,EX20,17/02/2023,"5,297.11"
68384233,DSG Other Funding,DSG Skills and Attainment,LAC pupil premium,3rd Party Payments,Education / Training,EB EDUCATION SERVICES LTD,SK4 ,10/02/2023,"17,957.50"
72443233,Planning & Regulatory,Strategic Planning,Local Development Frameworks,Supplies and Services,Consultation / Evaluation,ECOLOGICAL PLANNING AND RESEARCH LIMITED,SO21,27/02/2023,"5,917.00"
69717234,Streetsmart,Streetsmart,Waterside Fleet Hires,Transport Costs,Vehicle Hire / Contract,ECON ENGINEERING LTD,HG4 ,24/02/2023,"3,099.88"
67044233,Streetsmart,Streetsmart,Waterside Fleet Hires,Transport Costs,Vehicle Hire / Contract,ECON ENGINEERING LTD,HG4 ,03/02/2023,"3,432.01"
69717233,Streetsmart,Streetsmart,Waterside Fleet Hires,Transport Costs,Vehicle Hire / Contract,ECON ENGINEERING LTD,HG4 ,15/02/2023,"3,321.30"
70515349,Physical Support,Adults,Physical Support 65 and over,Income,Client Contribution - Residential,EDGE HILL,DT5 ,17/02/2023,-422.8
70515349,Mental Health,Adults,Mental Health 65 and over,3rd Party Payments,Residential Care,EDGE HILL,DT5 ,17/02/2023,"3,017.28"
70515349,Physical Support,Adults,Physical Support 65 and over,3rd Party Payments,Residential Care,EDGE HILL,DT5 ,17/02/2023,"3,017.28"
70515349,Physical Support,Adults,Physical Support 65 and over,Income,Client Contribution - Residential,EDGE HILL,DT5 ,17/02/2023,"-1,026.77"
70515349,Physical Support,Adults,Physical Support 65 and over,Income,Client Contribution - Residential,EDGE HILL,DT5 ,17/02/2023,-964.73
70515349,Physical Support,Adults,Physical Support 65 and over,Income,Client Contribution - Residential,EDGE HILL,DT5 ,17/02/2023,-810.62
66736233,Physical Support,Adults,Physical Support 65 and over,3rd Party Payments,Personal Budget - Respite Care,EDGE HILL,DT5 ,01/02/2023,"2,147.70"
70515349,Physical Support,Adults,Physical Support 65 and over,Income,Client Contribution - Residential,EDGE HILL,DT5 ,17/02/2023,"-1,016.87"
70515349,Physical Support,Adults,Physical Support 65 and over,3rd Party Payments,Residential Care,EDGE HILL,DT5 ,17/02/2023,"4,000.00"
70515349,Physical Support,Adults,Physical Support 18 - 64,3rd Party Payments,Residential Care,EDGE HILL,DT5 ,17/02/2023,"5,181.00"
70515349,Physical Support,Adults,Physical Support 65 and over,Income,Client Contribution - Residential,EDGE HILL,DT5 ,17/02/2023,-668.58
70515349,Physical Support,Adults,Physical Support 65 and over,Income,Client Contribution - Residential,EDGE HILL,DT5 ,17/02/2023,"-5,496.40"
70515349,Physical Support,Adults,Physical Support 65 and over,Income,Client Contribution - Residential,EDGE HILL,DT5 ,17/02/2023,"1,411.71"
70515349,Physical Support,Adults,Physical Support 65 and over,Income,Client Contribution - Residential,EDGE HILL,DT5 ,17/02/2023,"-1,329.24"
70515349,Physical Support,Adults,Physical Support 65 and over,Income,Client Contribution - Residential,EDGE HILL,DT5 ,17/02/2023,"-1,323.30"
70515349,Physical Support,Adults,Physical Support 65 and over,3rd Party Payments,Residential Care,EDGE HILL,DT5 ,17/02/2023,"4,007.14"
70515349,Physical Support,Adults,Physical Support 65 and over,Income,Client Contribution - Residential,EDGE HILL,DT5 ,17/02/2023,"-1,612.85"
70515349,Physical Support,Adults,Physical Support 65 and over,3rd Party Payments,Residential Care,EDGE HILL,DT5 ,17/02/2023,"2,000.00"
70515349,Physical Support,Adults,Physical Support 65 and over,3rd Party Payments,Residential Care,EDGE HILL,DT5 ,17/02/2023,"3,352.14"
70515349,Physical Support,Adults,Physical Support 65 and over,Income,Client Contribution - Residential,EDGE HILL,DT5 ,17/02/2023,-671.08
70515349,Physical Support,Adults,Physical Support 65 and over,Income,Client Contribution - Residential,EDGE HILL,DT5 ,17/02/2023,"-1,215.20"
70515349,Physical Support,Adults,Physical Support 65 and over,Income,Client Contribution - Residential,EDGE HILL,DT5 ,17/02/2023,"-2,247.25"
70515349,Physical Support,Adults,Physical Support 65 and over,Income,Client Contribution - Residential,EDGE HILL,DT5 ,17/02/2023,"-1,624.26"
70515349,Physical Support,Adults,Physical Support 65 and over,3rd Party Payments,Residential Care,EDGE HILL,DT5 ,17/02/2023,"3,922.29"
70515349,Physical Support,Adults,Physical Support 65 and over,3rd Party Payments,Residential Care,EDGE HILL,DT5 ,17/02/2023,"4,690.71"
70515349,Physical Support,Adults,Physical Support 65 and over,Income,Client Contribution - Residential,EDGE HILL,DT5 ,17/02/2023,-717.51
70515349,Physical Support,Adults,Physical Support 65 and over,Income,Client Contribution - Residential,EDGE HILL,DT5 ,17/02/2023,"-2,512.75"
70515349,Physical Support,Adults,Physical Support 65 and over,Income,Client Contribution - Residential,EDGE HILL,DT5 ,17/02/2023,"-1,534.55"
70515349,Physical Support,Adults,Physical Support 65 and over,Income,Client Contribution - Residential,EDGE HILL,DT5 ,17/02/2023,"-1,036.58"
70515349,Physical Support,Adults,Physical Support 65 and over,Income,Client Contribution - Residential,EDGE HILL,DT5 ,17/02/2023,-859.7
70515349,Physical Support,Adults,Physical Support 65 and over,3rd Party Payments,Residential Care,EDGE HILL,DT5 ,17/02/2023,"2,809.76"
70515349,Physical Support,Adults,Physical Support 65 and over,3rd Party Payments,Residential Care,EDGE HILL,DT5 ,17/02/2023,"4,620.00"
70515349,Mental Health,Adults,Mental Health 65 and over,Income,Client Contribution - Residential,EDGE HILL,DT5 ,17/02/2023,-520.32
70515349,Physical Support,Adults,Physical Support 65 and over,Income,Client Contribution - Residential,EDGE HILL,DT5 ,17/02/2023,-991.08
70515349,Physical Support,Adults,Physical Support 65 and over,3rd Party Payments,Residential Care,EDGE HILL,DT5 ,17/02/2023,"26,000.00"
70515349,Physical Support,Adults,Physical Support 18 - 64,3rd Party Payments,Residential Care,EDGE HILL,DT5 ,17/02/2023,"3,017.28"
70515349,Physical Support,Adults,Physical Support 65 and over,Income,Client Contribution - Residential,EDGE HILL,DT5 ,17/02/2023,-764.94
70515349,Physical Support,Adults,Physical Support 65 and over,Income,Client Contribution - Residential,EDGE HILL,DT5 ,17/02/2023,-721.05
70515349,Physical Support,Adults,Physical Support 65 and over,Income,Client Contribution - Residential,EDGE HILL,DT5 ,17/02/2023,"-1,276.68"
70515349,Physical Support,Adults,Physical Support 65 and over,3rd Party Payments,Residential Care,EDGE HILL,DT5 ,17/02/2023,"4,714.29"
70515349,Physical Support,Adults,Physical Support 65 and over,Income,Client Contribution - Residential,EDGE HILL,DT5 ,17/02/2023,-774.98
70515349,Physical Support,Adults,Physical Support 65 and over,Income,Client Contribution - Residential,EDGE HILL,DT5 ,17/02/2023,-829.48
70515349,Physical Support,Adults,Physical Support 65 and over,Income,Client Contribution - Residential,EDGE HILL,DT5 ,17/02/2023,-739.91
70515349,Physical Support,Adults,Physical Support 65 and over,Income,Client Contribution - Residential,EDGE HILL,DT5 ,17/02/2023,-996.6
71402233,Treasury,Corporate Finance,Private Finance Initiatives (PFI),Supplies and Services,Service Charges,EDUCATION SUPPORT (SWINDON) LTD,EH3 ,22/02/2023,"3,397.53"
71402233,Treasury,Corporate Finance,Private Finance Initiatives (PFI),Income,Settlements,EDUCATION SUPPORT (SWINDON) LTD,EH3 ,22/02/2023,"-1,066.00"
71402233,Treasury,Corporate Finance,Private Finance Initiatives (PFI),3rd Party Payments,Contract Payments,EDUCATION SUPPORT (SWINDON) LTD,EH3 ,22/02/2023,"1,004,807.64"
71401233,Treasury,Corporate Finance,Private Finance Initiatives (PFI),3rd Party Payments,Contract Payments,EDUCATION SUPPORT (SWINDON) LTD,EH3 ,22/02/2023,"1,004,807.64"
71401233,Treasury,Corporate Finance,Private Finance Initiatives (PFI),Supplies and Services,Service Charges,EDUCATION SUPPORT (SWINDON) LTD,EH3 ,22/02/2023,"3,397.53"
71401233,Treasury,Corporate Finance,Private Finance Initiatives (PFI),Income,Settlements,EDUCATION SUPPORT (SWINDON) LTD,EH3 ,22/02/2023,"-1,066.00"
69913233,,,Balance Sheet,Balance Sheet & Recharge,Mobile phone invoices,EE (EVERYTHING EVERYWHERE),S98 ,15/02/2023,10.73
69913233,,,Balance Sheet,Balance Sheet & Recharge,Mobile phone invoices,EE (EVERYTHING EVERYWHERE),S98 ,15/02/2023,"7,626.45"
72057613,Digital & Business Change,Digital & Business Change,IT Operations,Supplies and Services,Equipment,EE (EVERYTHING EVERYWHERE),S98 ,24/02/2023,"22,420.00"
71903233,Planning & Regulatory,Strategic Planning,Planning Development,Employees,Temporary / Agency - by Accounts Payable,EGGLETON PLANNING AND DESIGN LTD,HG4 ,24/02/2023,"1,896.00"
69055233,Social Care,"Children, Families and Community Health Services",Placement Fostering Service,3rd Party Payments,Foster Care Basic Payments,REDACTED PERSONAL DATA,SN5 ,13/02/2023,506
69055233,Social Care,"Children, Families and Community Health Services",Placement Fostering Service,3rd Party Payments,Carers Skills Payments - Advanced,REDACTED PERSONAL DATA,SN5 ,13/02/2023,370
69055233,Social Care,"Children, Families and Community Health Services",Placement Fostering Service,3rd Party Payments,Foster Care Basic Payments,REDACTED PERSONAL DATA,SN5 ,13/02/2023,536
72212233,Social Care,"Children, Families and Community Health Services",Placement Fostering Service,3rd Party Payments,Carers Skills Payments - Advanced,REDACTED PERSONAL DATA,SN5 ,27/02/2023,370
72212233,Social Care,"Children, Families and Community Health Services",Placement Fostering Service,3rd Party Payments,Foster Care Basic Payments,REDACTED PERSONAL DATA,SN5 ,27/02/2023,536
72212233,Social Care,"Children, Families and Community Health Services",Placement Fostering Service,3rd Party Payments,Foster Care Basic Payments,REDACTED PERSONAL DATA,SN5 ,27/02/2023,506
70943233,Learning Disabilities,Adults,Learning Disability 18 - 64,3rd Party Payments,Supported Accommodation Scheme,REDACTED PERSONAL DATA,SN25,22/02/2023,"1,671.04"
69030233,High Needs Block,DSG Skills and Attainment,SEN Resourcing Assessment Panel,3rd Party Payments,Top up funding - Maintained providers Pre 16,ELDENE PRIMARY SCHOOL,SN3 ,13/02/2023,"6,636.26"
67977256,DSG Other Funding,DSG Skills and Attainment,LAC pupil premium,Supplies and Services,Services,ELDENE PRIMARY SCHOOL,SN3 ,15/02/2023,600
69494233,DSG Other Funding,DSG Skills and Attainment,DFE Additional Grants,3rd Party Payments,Payment of Pupil Premium to school,ELDENE PRIMARY SCHOOL,SN3 ,17/02/2023,"14,973.00"
69030261,High Needs Block,DSG Skills and Attainment,SEN Resourcing Assessment Panel,3rd Party Payments,Top up funding - Maintained providers Pre 16,ELDENE PRIMARY SCHOOL,SN3 ,13/02/2023,"10,925.62"
69493233,Schools - Primary,DSG Skills and Attainment,Primary School Budgets,3rd Party Payments,Mainstream Delegated Funding,ELDENE PRIMARY SCHOOL,SN3 ,17/02/2023,"128,237.00"
69500233,High Needs Block,DSG Skills and Attainment,SRP (Special Resource Provision) Place,3rd Party Payments,HNB- Place Funding pre 16,ELDENE PRIMARY SCHOOL,SN3 ,17/02/2023,"5,000.00"
71766233,Public Health,Public Health,Sexual Health & Health Protection Budget,3rd Party Payments,Contract Payments,ELDENE SURGERY,SN3 ,24/02/2023,536
70515404,Physical Support,Adults,Physical Support 65 and over,3rd Party Payments,Residential Care,ELM GROVE CARE HOME,GL7 ,17/02/2023,"3,192.94"
66632233,Property & Assets,Property & Assets,General Enhancement Works Corporate Buildings,Capital,Contractor Payments,EMERGENCY SECURITY SERVICES LTD,SN2 ,01/02/2023,"1,485.00"
70171233,Responsive Repairs,Repairs,Responsive Repairs,3rd Party Payments,Contract Payments,EMERGENCY SECURITY SERVICES LTD,SN2 ,17/02/2023,"1,778.56"
70169233,Responsive Repairs,Repairs,Responsive Repairs,3rd Party Payments,Contract Payments,EMERGENCY SECURITY SERVICES LTD,SN2 ,17/02/2023,"1,987.32"
71928234,Responsive Repairs,Repairs,Responsive Repairs,3rd Party Payments,Contract Payments,EMERGENCY SECURITY SERVICES LTD,SN2 ,24/02/2023,957.66
68973234,Responsive Repairs,Repairs,Responsive Repairs,Supplies and Services,Materials,EMERGENCY SECURITY SERVICES LTD,SN2 ,13/02/2023,952.13
68973233,Responsive Repairs,Repairs,Responsive Repairs,3rd Party Payments,Contract Payments,EMERGENCY SECURITY SERVICES LTD,SN2 ,13/02/2023,"1,298.42"
68970233,Responsive Repairs,Repairs,Responsive Repairs,3rd Party Payments,Contract Payments,EMERGENCY SECURITY SERVICES LTD,SN2 ,13/02/2023,918.2
68972233,Responsive Repairs,Repairs,Responsive Repairs,3rd Party Payments,Contract Payments,EMERGENCY SECURITY SERVICES LTD,SN2 ,13/02/2023,993.53
70170233,Responsive Repairs,Repairs,Responsive Repairs,3rd Party Payments,Contract Payments,EMERGENCY SECURITY SERVICES LTD,SN2 ,17/02/2023,"1,448.20"
66267233,Sheltered Accomodation,Special Services,James Wilks House,Premises Costs,Maintenance - Buildings,EMERGENCY SECURITY SERVICES LTD,SN2 ,01/02/2023,812.6
68971233,Responsive Repairs,Repairs,Responsive Repairs,3rd Party Payments,Contract Payments,EMERGENCY SECURITY SERVICES LTD,SN2 ,13/02/2023,931.91
66630233,Property & Assets,Property & Assets,General Enhancement Works Corporate Buildings,Capital,Contractor Payments,EMERGENCY SECURITY SERVICES LTD,SN2 ,01/02/2023,"7,481.25"
68842233,Early Years Block,DSG Skills and Attainment,Free Nursery Education Commissioning - three & four  year olds,3rd Party Payments,Contracts - Child Care,REDACTED PERSONAL DATA,SN4 ,15/02/2023,"1,202.23"
72057366,Learning Disabilities,Adults,Learning Disability 18 - 64,3rd Party Payments,Carers,REDACTED PERSONAL DATA,SP11,27/02/2023,648.32
65691336,Learning Disabilities,Adults,Learning Disability 18 - 64,3rd Party Payments,Carers,REDACTED PERSONAL DATA,SP11,01/02/2023,648.32
66663233,School Transport,"Education, Inclusion and Skills",Special Educational Needs Transport,Transport Costs,Home to School Transport,REDACTED PERSONAL DATA,SN25,01/02/2023,645.5
70621233,Human Resources and Organisational Development,"People, Culture and Organisational Resilience",Organisational Development,Employees,Training,ENERGY DEVELOPMENT SERVICES LIMITED,SN4 ,20/02/2023,105
70621233,Human Resources and Organisational Development,"People, Culture and Organisational Resilience",Organisational Development,Employees,Training,ENERGY DEVELOPMENT SERVICES LIMITED,SN4 ,20/02/2023,744
66797233,"Volutary Sector, Equipment and Carers",Adults,Voluntary Sector Adults,3rd Party Payments,Contracts - Social Care,ENHAM TRUST,SP11,01/02/2023,"13,455.00"
72328235,"Volutary Sector, Equipment and Carers",Adults,Voluntary Sector Adults,3rd Party Payments,Contracts - Social Care,ENHAM TRUST,SP11,27/02/2023,"13,455.00"
69238233,Digital & Business Change,Digital & Business Change,IT Operations,Supplies and Services,Equipment,EOL IT SERVICES,CM9 ,13/02/2023,"7,591.95"
69493253,High Needs Block,DSG Skills and Attainment,Special School Place,3rd Party Payments,Alternative Provision Place Funding,EOTAS,SN2 ,17/02/2023,"129,166.00"
69493254,High Needs Block,DSG Skills and Attainment,Special School Place,3rd Party Payments,Alternative Provision Place Funding,EOTAS,SN2 ,17/02/2023,"42,541.00"
67977257,DSG Other Funding,DSG Skills and Attainment,LAC pupil premium,Supplies and Services,Services,EOTAS,SN2 ,15/02/2023,600
69030337,High Needs Block,DSG Skills and Attainment,SEN Resourcing Assessment Panel,3rd Party Payments,Alternative Provision Top-up Funding,EOTAS,SN2 ,13/02/2023,"219,250.00"
69499234,DSG Other Funding,DSG Skills and Attainment,DFE Additional Grants,3rd Party Payments,Payment of Pupil Premium to school,EOTAS,SN2 ,17/02/2023,"2,487.00"
